Date the expenditure incurred,Local authority department which incurred the expenditure,SUPPLIER_DESC,Summary of the purpose of the expenditure,Amount,VAT,"Merchant Category (e.g computers , software ect)"
04/08/2017,Adults & Housing Department,Croft Hotel,Accommodation Expenses,"1,000.00",200.00,Accommodation Expenses
22/08/2017,Adults & Housing Department,Croft Hotel,Accommodation Expenses,"1,000.00",200.00,Accommodation Expenses
,Adults & Housing Department,Westcotes House Ltd,Accommodation Expenses,"1,485.00",297.00,Accommodation Expenses
,Adults & Housing Department,Westcotes House Ltd,Accommodation Expenses,"1,534.50",306.90,Accommodation Expenses
,Adults & Housing Department,Westcotes House Ltd,Accommodation Expenses,"1,534.50",306.90,Accommodation Expenses
,Adults & Housing Department,Westcotes House Ltd,Accommodation Expenses,"1,188.00",237.60,Accommodation Expenses
,Education & Childrens Services,Capita Resourcing LTd,Agency Local Government Staff,"5,985.00","1,197.00",Agency Local Government Staff
,Education & Childrens Services,Capita Resourcing LTd,Agency Local Government Staff,"2,750.00",550.00,Agency Local Government Staff
,Education & Childrens Services,Capita Resourcing LTd,Agency Local Government Staff,"3,600.00",720.00,Agency Local Government Staff
,Education & Childrens Services,Capita Resourcing LTd,Agency Local Government Staff,"2,750.00",550.00,Agency Local Government Staff
04/08/2017,Education & Childrens Services,Capita Resourcing LTd,Agency Local Government Staff,"2,750.00",550.00,Agency Local Government Staff
04/08/2017,Education & Childrens Services,Capita Resourcing LTd,Agency Local Government Staff,"2,750.00",550.00,Agency Local Government Staff
04/08/2017,Education & Childrens Services,Capita Resourcing LTd,Agency Local Government Staff,"9,000.00","1,800.00",Agency Local Government Staff
25/08/2017,Education & Childrens Services,Capita Resourcing LTd,Agency Local Government Staff,"2,750.00",550.00,Agency Local Government Staff
23/08/2017,Education & Childrens Services,Randstad Education Ltd,Agency Local Government Staff,536.45,107.29,Agency Local Government Staff
08/08/2017,Education & Childrens Services,Randstad Education Ltd,Agency Local Government Staff,536.45,107.29,Agency Local Government Staff
22/08/2017,Education & Childrens Services,Randstad Education Ltd,Agency Local Government Staff,536.45,107.29,Agency Local Government Staff
25/08/2017,Education & Childrens Services,Randstad Education Ltd,Agency Local Government Staff,536.45,107.29,Agency Local Government Staff
22/08/2017,Education & Childrens Services,Randstad Education Ltd,Agency Local Government Staff,536.45,107.29,Agency Local Government Staff
15/08/2017,Corporate Resources & Support,Reed Specialist Recruitment Ltd,Agency Local Government Staff,"209,377.05","41,875.41",Agency Local Government Staff
01/08/2017,Corporate Resources & Support,Reed Specialist Recruitment Ltd,Agency Local Government Staff,"204,816.14","40,963.23",Agency Local Government Staff
22/08/2017,Corporate Resources & Support,Reed Specialist Recruitment Ltd,Agency Local Government Staff,"215,556.74","43,111.35",Agency Local Government Staff
30/08/2017,Corporate Resources & Support,Reed Specialist Recruitment Ltd,Agency Local Government Staff,"210,090.89","42,018.18",Agency Local Government Staff
09/08/2017,Corporate Resources & Support,Reed Specialist Recruitment Ltd,Agency Local Government Staff,"230,944.84","46,188.97",Agency Local Government Staff
30/08/2017,Adults & Housing Department,Age UK Leicester Shire & Rutland,Aids & Adaptations,"1,221.85",244.37,Aids & Adaptations
25/08/2017,Adults & Housing Department,Age UK Leicester Shire & Rutland,Aids & Adaptations,"3,103.10",620.62,Aids & Adaptations
,Adults & Housing Department,Armson Electrical Services Ltd,Aids & Adaptations,"1,139.16",227.83,Aids & Adaptations
25/08/2017,Adults & Housing Department,Armson Electrical Services Ltd,Aids & Adaptations,"2,459.09",491.82,Aids & Adaptations
,Adults & Housing Department,Armson Electrical Services Ltd,Aids & Adaptations,"1,027.76",205.55,Aids & Adaptations
30/08/2017,Adults & Housing Department,Medpage Ltd t/a Easylink UK,Aids & Adaptations,"2,158.65",431.73,Aids & Adaptations
,Adults & Housing Department,Medpage Ltd t/a Easylink UK,Aids & Adaptations,"1,592.35",318.47,Aids & Adaptations
25/08/2017,Adults & Housing Department,Medpage Ltd t/a Easylink UK,Aids & Adaptations,"1,672.00",334.40,Aids & Adaptations
30/08/2017,Adults & Housing Department,Medpage Ltd t/a Easylink UK,Aids & Adaptations,"1,439.10",287.82,Aids & Adaptations
,Adults & Housing Department,Medpage Ltd t/a Easylink UK,Aids & Adaptations,797.50,159.50,Aids & Adaptations
30/08/2017,Adults & Housing Department,Nottingham Rehab Ltd t/a NRS Healthcare,Aids & Adaptations,856.80,171.36,Aids & Adaptations
25/08/2017,Adults & Housing Department,Pivotell Ltd,Aids & Adaptations,"3,042.00",608.40,Aids & Adaptations
25/08/2017,Adults & Housing Department,S&W Mobility Services Ltd,Aids & Adaptations,"2,104.55",420.91,Aids & Adaptations
25/08/2017,Adults & Housing Department,S&W Mobility Services Ltd,Aids & Adaptations,"2,548.15",509.63,Aids & Adaptations
25/08/2017,Adults & Housing Department,S&W Mobility Services Ltd,Aids & Adaptations,"2,888.25",577.65,Aids & Adaptations
25/08/2017,Adults & Housing Department,S&W Mobility Services Ltd,Aids & Adaptations,"2,304.90",460.98,Aids & Adaptations
25/08/2017,Adults & Housing Department,S&W Mobility Services Ltd,Aids & Adaptations,626.05,125.21,Aids & Adaptations
25/08/2017,Adults & Housing Department,S&W Mobility Services Ltd,Aids & Adaptations,999.25,199.85,Aids & Adaptations
,Adults & Housing Department,Tynetec Ltd,Aids & Adaptations,582.21,116.44,Aids & Adaptations
,Adults & Housing Department,Tynetec Ltd,Aids & Adaptations,"2,347.50",469.50,Aids & Adaptations
,Adults & Housing Department,Tynetec Ltd,Aids & Adaptations,"8,890.45","1,778.09",Aids & Adaptations
22/08/2017,Adults & Housing Department,Uk Gas Services Ltd,Aids & Adaptations,836.00,167.20,Aids & Adaptations
22/08/2017,City Developments and Neighbourhood,Oliveti Construction Ltd,Asbestos - Surveys,778.63,155.73,Asbestos
18/08/2017,,Shield Environmental Services Ltd,Asbestos - Surveys,"1,000.00",200.00,Asbestos
,,Shield Environmental Services Ltd,Asbestos - Surveys,800.00,160.00,Asbestos
18/08/2017,Corporate Finance,PayPoint Collections Ltd,Bank Charges,800.58,160.12,Bank Charges
18/08/2017,Corporate Finance,PayPoint Collections Ltd,Bank Charges,970.64,194.13,Bank Charges
18/08/2017,Corporate Finance,PayPoint Collections Ltd,Bank Charges,967.72,193.54,Bank Charges
18/08/2017,Corporate Finance,PayPoint Collections Ltd,Bank Charges,778.14,155.63,Bank Charges
,Corporate Finance,PayPoint Collections Ltd,Bank Charges,519.20,103.84,Bank Charges
,Corporate Finance,PayPoint Collections Ltd,Bank Charges,765.27,153.05,Bank Charges
,Corporate Finance,PayPoint Collections Ltd,Bank Charges,787.05,157.41,Bank Charges
15/08/2017,Corporate Finance,PayPoint Collections Ltd,Bank Charges,827.09,165.42,Bank Charges
16/08/2017,Corporate Finance,PayPoint Collections Ltd,Bank Charges,899.14,179.83,Bank Charges
,Corporate Finance,PayPoint Network Ltd,Bank Charges,"1,460.97",PE,Bank Charges
18/08/2017,Corporate Finance,PayPoint Network Ltd,Bank Charges,"1,716.54",PE,Bank Charges
18/08/2017,Corporate Finance,PayPoint Network Ltd,Bank Charges,"1,853.04",PE,Bank Charges
15/08/2017,Corporate Finance,PayPoint Network Ltd,Bank Charges,842.73,PE,Bank Charges
,Corporate Finance,PayPoint Network Ltd,Bank Charges,"1,502.55",PE,Bank Charges
15/08/2017,Corporate Finance,PayPoint Network Ltd,Bank Charges,991.20,PE,Bank Charges
,Corporate Finance,PayPoint Network Ltd,Bank Charges,783.51,PE,Bank Charges
18/08/2017,Corporate Finance,PayPoint Network Ltd,Bank Charges,"1,837.92",PE,Bank Charges
18/08/2017,Corporate Finance,PayPoint Network Ltd,Bank Charges,"1,578.99",PE,Bank Charges
18/08/2017,Corporate Finance,PayPoint Network Ltd,Bank Charges,"1,528.38",PE,Bank Charges
15/08/2017,Corporate Finance,PayPoint Network Ltd,Bank Charges,"1,485.54",PE,Bank Charges
15/08/2017,Education & Childrens Services,Leicester BSF Company 1 Ltd,BSF - Unitary Charge,"553,068.32","110,613.66",BSF - Unitary Charge
15/08/2017,Education & Childrens Services,Leicester BSF Company 2 Ltd,BSF - Unitary Charge,"557,717.23","111,543.45",BSF - Unitary Charge
15/08/2017,Education & Childrens Services,Leicester BSF Company 1 Ltd,BSF - Utilities,"18,384.81","3,676.96",BSF - Utilities
15/08/2017,Education & Childrens Services,Leicester BSF Company 1 Ltd,BSF - Utilities,"19,181.42","3,836.28",BSF - Utilities
15/08/2017,Education & Childrens Services,Leicester BSF Company 2 Ltd,BSF - Utilities,"12,433.79","2,486.76",BSF - Utilities
15/08/2017,Education & Childrens Services,Leicester BSF Company 2 Ltd,BSF - Utilities,"10,414.05","2,082.81",BSF - Utilities
04/08/2017,City Developments and Neighbourhood,Arthur J Gallagher Ltd,Building Insurance Premiums,"4,082.00",0.00,Building Insurance
08/08/2017,City Developments and Neighbourhood,The Exilarchs Foundation,Building Insurance Premiums,"10,053.13",0.00,Building Insurance
23/08/2017,City Developments and Neighbourhood,ADT Fire & Security plc,Responsive,"6,076.96","1,215.39",Building Services / Repairs & Maintenance  Fixtures & Fittings
23/08/2017,City Developments and Neighbourhood,ADT Fire & Security plc,Responsive,"8,561.34","1,712.27",Building Services / Repairs & Maintenance  Fixtures & Fittings
01/08/2017,City Developments and Neighbourhood,ADT Fire & Security plc,Responsive,554.96,110.99,Building Services / Repairs & Maintenance  Fixtures & Fittings
,City Developments and Neighbourhood,ADT Fire & Security plc,Responsive,"1,251.42",250.28,Building Services / Repairs & Maintenance  Fixtures & Fittings
18/08/2017,City Developments and Neighbourhood,ADT Fire & Security plc,Responsive,"12,493.90","2,498.78",Building Services / Repairs & Maintenance  Fixtures & Fittings
04/08/2017,City Developments and Neighbourhood,ADT Fire & Security plc,Responsive,803.00,160.60,Building Services / Repairs & Maintenance  Fixtures & Fittings
,City Developments and Neighbourhood,ADT Fire & Security plc,Responsive,992.54,198.51,Building Services / Repairs & Maintenance  Fixtures & Fittings
23/08/2017,City Developments and Neighbourhood,ADT Fire & Security plc,Responsive,"1,540.22",308.04,Building Services / Repairs & Maintenance  Fixtures & Fittings
22/08/2017,City Developments and Neighbourhood,ADT Fire & Security plc,Responsive,"1,416.41",283.28,Building Services / Repairs & Maintenance  Fixtures & Fittings
22/08/2017,City Developments and Neighbourhood,Ashwell Maintenance Ltd,Responsive,962.00,192.40,Building Services / Repairs & Maintenance  Fixtures & Fittings
16/08/2017,City Developments and Neighbourhood,AT Services Ltd,Responsive,"3,887.94",777.59,Building Services / Repairs & Maintenance  Fixtures & Fittings
16/08/2017,City Developments and Neighbourhood,AT Services Ltd,Servicing,"1,020.00",204.00,Building Services / Repairs & Maintenance  Fixtures & Fittings
11/08/2017,City Developments and Neighbourhood,AT Services Ltd,Responsive,"1,015.39",203.08,Building Services / Repairs & Maintenance  Fixtures & Fittings
16/08/2017,City Developments and Neighbourhood,AT Services Ltd,Responsive,"1,016.51",203.30,Building Services / Repairs & Maintenance  Fixtures & Fittings
25/08/2017,City Developments and Neighbourhood,AT Services Ltd,Servicing,660.00,132.00,Building Services / Repairs & Maintenance  Fixtures & Fittings
22/08/2017,City Developments and Neighbourhood,AT Services Ltd,Responsive,552.86,110.57,Building Services / Repairs & Maintenance  Fixtures & Fittings
16/08/2017,City Developments and Neighbourhood,AT Services Ltd,Responsive,629.00,125.80,Building Services / Repairs & Maintenance  Fixtures & Fittings
25/08/2017,City Developments and Neighbourhood,AT Services Ltd,Responsive,506.10,101.22,Building Services / Repairs & Maintenance  Fixtures & Fittings
11/08/2017,City Developments and Neighbourhood,AT Services Ltd,Responsive,564.99,113.00,Building Services / Repairs & Maintenance  Fixtures & Fittings
16/08/2017,City Developments and Neighbourhood,AT Services Ltd,Responsive,680.03,136.01,Building Services / Repairs & Maintenance  Fixtures & Fittings
16/08/2017,City Developments and Neighbourhood,AT Services Ltd,Servicing,"1,643.04",328.61,Building Services / Repairs & Maintenance  Fixtures & Fittings
23/08/2017,City Developments and Neighbourhood,AT Services Ltd,Responsive,668.71,133.74,Building Services / Repairs & Maintenance  Fixtures & Fittings
18/08/2017,City Developments and Neighbourhood,AT Services Ltd,Responsive,620.87,124.17,Building Services / Repairs & Maintenance  Fixtures & Fittings
18/08/2017,City Developments and Neighbourhood,AT Services Ltd,Responsive,"1,428.51",285.70,Building Services / Repairs & Maintenance  Fixtures & Fittings
18/08/2017,City Developments and Neighbourhood,AT Services Ltd,Responsive,995.68,199.14,Building Services / Repairs & Maintenance  Fixtures & Fittings
16/08/2017,City Developments and Neighbourhood,AT Services Ltd,Responsive,"1,244.68",248.94,Building Services / Repairs & Maintenance  Fixtures & Fittings
16/08/2017,City Developments and Neighbourhood,AT Services Ltd,Responsive,"1,081.43",216.29,Building Services / Repairs & Maintenance  Fixtures & Fittings
15/08/2017,City Developments and Neighbourhood,AT Services Ltd,Responsive,529.20,105.84,Building Services / Repairs & Maintenance  Fixtures & Fittings
16/08/2017,City Developments and Neighbourhood,AT Services Ltd,Servicing,"1,701.72",340.34,Building Services / Repairs & Maintenance  Fixtures & Fittings
16/08/2017,City Developments and Neighbourhood,AT Services Ltd,Servicing,"1,287.60",257.52,Building Services / Repairs & Maintenance  Fixtures & Fittings
22/08/2017,City Developments and Neighbourhood,AT Services Ltd,Responsive,668.46,133.69,Building Services / Repairs & Maintenance  Fixtures & Fittings
18/08/2017,City Developments and Neighbourhood,AT Services Ltd,Responsive,"6,313.51","1,262.70",Building Services / Repairs & Maintenance  Fixtures & Fittings
11/08/2017,City Developments and Neighbourhood,AT Services Ltd,Responsive,679.38,135.88,Building Services / Repairs & Maintenance  Fixtures & Fittings
11/08/2017,City Developments and Neighbourhood,AT Services Ltd,Responsive,"32,125.96","6,425.19",Building Services / Repairs & Maintenance  Fixtures & Fittings
23/08/2017,City Developments and Neighbourhood,AT Services Ltd,Servicing,640.08,128.02,Building Services / Repairs & Maintenance  Fixtures & Fittings
22/08/2017,City Developments and Neighbourhood,AT Services Ltd,Servicing,909.54,181.91,Building Services / Repairs & Maintenance  Fixtures & Fittings
30/08/2017,City Developments and Neighbourhood,Balfour Beatty Living Places Ltd,Planned,"35,301.46","7,060.29",Building Services / Repairs & Maintenance  Fixtures & Fittings
04/08/2017,City Developments and Neighbourhood,County Drains Leicester Ltd,Planned,800.00,160.00,Building Services / Repairs & Maintenance  Fixtures & Fittings
,City Developments and Neighbourhood,East Berks Electrical Ltd,Responsive,642.00,128.40,Building Services / Repairs & Maintenance  Fixtures & Fittings
18/08/2017,City Developments and Neighbourhood,East Berks Electrical Ltd,Responsive,888.00,177.60,Building Services / Repairs & Maintenance  Fixtures & Fittings
25/08/2017,City Developments and Neighbourhood,East Berks Electrical Ltd,Responsive,"2,042.76",408.55,Building Services / Repairs & Maintenance  Fixtures & Fittings
08/08/2017,City Developments and Neighbourhood,Gap Property Services (Leicester) Ltd,Responsive,"12,764.01","2,552.80",Building Services / Repairs & Maintenance  Fixtures & Fittings
18/08/2017,City Developments and Neighbourhood,Gas Measurement Instruments Ltd,Responsive,"13,871.36","2,774.27",Building Services / Repairs & Maintenance  Fixtures & Fittings
18/08/2017,City Developments and Neighbourhood,Integrated Water Services Ltd,Servicing,599.00,119.80,Building Services / Repairs & Maintenance  Fixtures & Fittings
,City Developments and Neighbourhood,JCW Energy Services Ltd,Responsive,"1,645.08",329.02,Building Services / Repairs & Maintenance  Fixtures & Fittings
25/08/2017,City Developments and Neighbourhood,JCW Energy Services Ltd,Responsive,"2,381.95",476.39,Building Services / Repairs & Maintenance  Fixtures & Fittings
,City Developments and Neighbourhood,JCW Energy Services Ltd,Responsive,515.00,103.00,Building Services / Repairs & Maintenance  Fixtures & Fittings
11/08/2017,City Developments and Neighbourhood,JCW Energy Services Ltd,Servicing,"1,375.00",275.00,Building Services / Repairs & Maintenance  Fixtures & Fittings
18/08/2017,City Developments and Neighbourhood,JCW Energy Services Ltd,Servicing,680.00,136.00,Building Services / Repairs & Maintenance  Fixtures & Fittings
16/08/2017,City Developments and Neighbourhood,JCW Energy Services Ltd,Responsive,534.60,106.92,Building Services / Repairs & Maintenance  Fixtures & Fittings
09/08/2017,City Developments and Neighbourhood,JCW Energy Services Ltd,Responsive,"2,189.95",437.99,Building Services / Repairs & Maintenance  Fixtures & Fittings
25/08/2017,Education & Childrens Services,JCW Energy Services Ltd,Responsive,"2,199.92",439.98,Building Services / Repairs & Maintenance  Fixtures & Fittings
18/08/2017,City Developments and Neighbourhood,JCW Energy Services Ltd,Responsive,699.59,139.92,Building Services / Repairs & Maintenance  Fixtures & Fittings
11/08/2017,City Developments and Neighbourhood,JCW Energy Services Ltd,Responsive,777.50,155.50,Building Services / Repairs & Maintenance  Fixtures & Fittings
11/08/2017,City Developments and Neighbourhood,JCW Energy Services Ltd,Responsive,"3,323.25",664.65,Building Services / Repairs & Maintenance  Fixtures & Fittings
25/08/2017,City Developments and Neighbourhood,Lift & Engineering Services Ltd,Responsive,"1,005.00",201.00,Building Services / Repairs & Maintenance  Fixtures & Fittings
04/08/2017,City Developments and Neighbourhood,Lift & Engineering Services Ltd,Servicing,"4,960.00",992.00,Building Services / Repairs & Maintenance  Fixtures & Fittings
16/08/2017,City Developments and Neighbourhood,Lift & Engineering Services Ltd,Responsive,645.00,129.00,Building Services / Repairs & Maintenance  Fixtures & Fittings
11/08/2017,City Developments and Neighbourhood,Lift & Engineering Services Ltd,Servicing,"3,991.00",798.20,Building Services / Repairs & Maintenance  Fixtures & Fittings
22/08/2017,City Developments and Neighbourhood,Lift & Engineering Services Ltd,Servicing,574.00,114.80,Building Services / Repairs & Maintenance  Fixtures & Fittings
16/08/2017,City Developments and Neighbourhood,Lift & Engineering Services Ltd,Responsive,730.00,146.00,Building Services / Repairs & Maintenance  Fixtures & Fittings
23/08/2017,City Developments and Neighbourhood,Lift & Engineering Services Ltd,Responsive,"1,075.00",215.00,Building Services / Repairs & Maintenance  Fixtures & Fittings
18/08/2017,City Developments and Neighbourhood,Lowe Electrical,Responsive,591.19,118.24,Building Services / Repairs & Maintenance  Fixtures & Fittings
11/08/2017,City Developments and Neighbourhood,Lowe Electrical,Responsive,920.15,184.03,Building Services / Repairs & Maintenance  Fixtures & Fittings
18/08/2017,City Developments and Neighbourhood,Lowe Electrical,Planned,"1,893.41",378.68,Building Services / Repairs & Maintenance  Fixtures & Fittings
16/08/2017,City Developments and Neighbourhood,Lowe Electrical,Responsive,"3,744.67",748.93,Building Services / Repairs & Maintenance  Fixtures & Fittings
16/08/2017,City Developments and Neighbourhood,Lowe Electrical,Responsive,"1,547.86",309.57,Building Services / Repairs & Maintenance  Fixtures & Fittings
11/08/2017,City Developments and Neighbourhood,Lowe Electrical,Responsive,"1,570.35",314.07,Building Services / Repairs & Maintenance  Fixtures & Fittings
11/08/2017,City Developments and Neighbourhood,Lowe Electrical,Responsive,"1,457.23",291.45,Building Services / Repairs & Maintenance  Fixtures & Fittings
16/08/2017,City Developments and Neighbourhood,Lowe Electrical,Responsive,810.93,162.19,Building Services / Repairs & Maintenance  Fixtures & Fittings
16/08/2017,City Developments and Neighbourhood,Lowe Electrical,Responsive,"1,399.67",279.93,Building Services / Repairs & Maintenance  Fixtures & Fittings
11/08/2017,City Developments and Neighbourhood,Lowe Electrical,Responsive,"1,244.10",248.82,Building Services / Repairs & Maintenance  Fixtures & Fittings
29/08/2017,Education & Childrens Services,Lowe Electrical,Responsive,591.42,118.28,Building Services / Repairs & Maintenance  Fixtures & Fittings
23/08/2017,City Developments and Neighbourhood,Lowe Electrical,Responsive,"1,828.50",365.70,Building Services / Repairs & Maintenance  Fixtures & Fittings
11/08/2017,City Developments and Neighbourhood,Lowe Electrical,Responsive,"1,866.14",373.23,Building Services / Repairs & Maintenance  Fixtures & Fittings
25/08/2017,City Developments and Neighbourhood,Lowe Electrical,Responsive,601.40,120.28,Building Services / Repairs & Maintenance  Fixtures & Fittings
16/08/2017,City Developments and Neighbourhood,Lowe Electrical,Responsive,552.10,110.42,Building Services / Repairs & Maintenance  Fixtures & Fittings
11/08/2017,City Developments and Neighbourhood,Lowe Electrical,Responsive,"1,073.81",214.76,Building Services / Repairs & Maintenance  Fixtures & Fittings
16/08/2017,City Developments and Neighbourhood,Lowe Electrical,Responsive,"1,492.37",298.47,Building Services / Repairs & Maintenance  Fixtures & Fittings
18/08/2017,City Developments and Neighbourhood,Lowe Electrical,Servicing,560.00,112.00,Building Services / Repairs & Maintenance  Fixtures & Fittings
11/08/2017,City Developments and Neighbourhood,Lowe Electrical,Responsive,926.80,185.36,Building Services / Repairs & Maintenance  Fixtures & Fittings
16/08/2017,City Developments and Neighbourhood,Lowe Electrical,Responsive,"2,178.02",435.60,Building Services / Repairs & Maintenance  Fixtures & Fittings
16/08/2017,City Developments and Neighbourhood,Lowe Electrical,Responsive,"2,451.45",490.29,Building Services / Repairs & Maintenance  Fixtures & Fittings
16/08/2017,City Developments and Neighbourhood,Lowe Electrical,Responsive,"1,742.68",348.54,Building Services / Repairs & Maintenance  Fixtures & Fittings
25/08/2017,City Developments and Neighbourhood,Lowe Electrical,Responsive,540.40,108.08,Building Services / Repairs & Maintenance  Fixtures & Fittings
23/08/2017,City Developments and Neighbourhood,Lowe Electrical,Responsive,"1,889.85",377.97,Building Services / Repairs & Maintenance  Fixtures & Fittings
18/08/2017,City Developments and Neighbourhood,Lowe Electrical,Responsive,"1,255.01",251.00,Building Services / Repairs & Maintenance  Fixtures & Fittings
11/08/2017,City Developments and Neighbourhood,Lowe Electrical,Responsive,787.48,157.50,Building Services / Repairs & Maintenance  Fixtures & Fittings
11/08/2017,City Developments and Neighbourhood,Lowe Electrical,Responsive,"11,000.00","2,200.00",Building Services / Repairs & Maintenance  Fixtures & Fittings
16/08/2017,City Developments and Neighbourhood,Lowe Electrical,Responsive,"1,447.43",289.49,Building Services / Repairs & Maintenance  Fixtures & Fittings
11/08/2017,City Developments and Neighbourhood,Lowe Electrical,Responsive,"1,733.82",346.76,Building Services / Repairs & Maintenance  Fixtures & Fittings
16/08/2017,City Developments and Neighbourhood,Lowe Electrical,Servicing,"1,854.46",370.89,Building Services / Repairs & Maintenance  Fixtures & Fittings
29/08/2017,City Developments and Neighbourhood,Lowe Electrical,Responsive,753.25,150.65,Building Services / Repairs & Maintenance  Fixtures & Fittings
25/08/2017,City Developments and Neighbourhood,Lowe Electrical,Responsive,616.85,123.37,Building Services / Repairs & Maintenance  Fixtures & Fittings
18/08/2017,City Developments and Neighbourhood,Norman & Underwood (Glazing Systems) Ltd,Vandalism,541.20,108.24,Building Services / Repairs & Maintenance  Fixtures & Fittings
25/08/2017,City Developments and Neighbourhood,P & S Electrical (South East) Ltd T/a P & S Electrical,Servicing,"1,277.50",255.50,Building Services / Repairs & Maintenance  Fixtures & Fittings
18/08/2017,City Developments and Neighbourhood,Polygon,Responsive,"5,417.90",270.90,Building Services / Repairs & Maintenance  Fixtures & Fittings
11/08/2017,Education & Childrens Services,Rossells Locksmiths Ltd,Responsive,730.00,146.00,Building Services / Repairs & Maintenance  Fixtures & Fittings
25/08/2017,City Developments and Neighbourhood,William Freer Ltd,Responsive,"1,472.80",294.56,Building Services / Repairs & Maintenance  Fixtures & Fittings
11/08/2017,City Developments and Neighbourhood,William Freer Ltd,Responsive,"3,580.60",716.12,Building Services / Repairs & Maintenance  Fixtures & Fittings
11/08/2017,City Developments and Neighbourhood,William Freer Ltd,Responsive,"1,019.34",203.87,Building Services / Repairs & Maintenance  Fixtures & Fittings
23/08/2017,City Developments and Neighbourhood,William Freer Ltd,Servicing,635.00,127.00,Building Services / Repairs & Maintenance  Fixtures & Fittings
23/08/2017,City Developments and Neighbourhood,William Freer Ltd,Servicing,615.00,123.00,Building Services / Repairs & Maintenance  Fixtures & Fittings
04/08/2017,,A Hull Electrical Ltd,Building Works - Alterations,"91,103.48","18,220.70",Building Works - Alterations
,,A Hull Electrical Ltd,Building Works - Alterations,"105,360.93","21,072.19",Building Works - Alterations
29/08/2017,,Adams Contractors (Leicester) LTD,Building Works - Alterations,"12,497.25",0.00,Building Works - Alterations
18/08/2017,,Adroit Roofing Contractors,Building Works - Alterations,"6,600.00",0.00,Building Works - Alterations
18/08/2017,,Alfred Bagnalls & Sons (East Midlands) Ltd,Building Works - Alterations,"1,802.94",360.59,Building Works - Alterations
09/08/2017,,Arcadis LLP,Building Works - Alterations,"7,170.10","1,434.02",Building Works - Alterations
29/08/2017,,Ashby & Croft Ltd,Building Works - Alterations,"8,955.73","1,791.15",Building Works - Alterations
29/08/2017,,Ashby & Croft Ltd,Building Works - Alterations,"230,502.57","46,100.51",Building Works - Alterations
08/08/2017,,Ashby & Croft Ltd,Building Works - Alterations,"20,093.70","4,018.74",Building Works - Alterations
29/08/2017,,Ashby & Croft Ltd,Building Works - Alterations,"197,440.53","39,488.11",Building Works - Alterations
08/08/2017,,Ashby & Croft Ltd,Building Works - Alterations,"6,360.82","1,272.16",Building Works - Alterations
08/08/2017,,Ashby & Croft Ltd,Building Works - Alterations,"7,971.64","1,594.33",Building Works - Alterations
08/08/2017,,Ashby & Croft Ltd,Building Works - Alterations,"109,802.52","21,960.50",Building Works - Alterations
08/08/2017,,Ashby & Croft Ltd,Building Works - Alterations,"18,273.79","3,654.76",Building Works - Alterations
08/08/2017,,Ashby & Croft Ltd,Building Works - Alterations,"75,384.26","15,076.85",Building Works - Alterations
29/08/2017,,Ashby & Croft Ltd,Building Works - Alterations,"13,297.53","2,659.51",Building Works - Alterations
25/08/2017,,B & A Construction (Leic) Ltd,Building Works - Alterations,"273,955.12","54,791.02",Building Works - Alterations
18/08/2017,,B Jarvis Roofing Ltd,Building Works - Alterations,"40,885.22","8,177.04",Building Works - Alterations
11/08/2017,,British Gas Social Housing T/A: P H Jones Ltd,Building Works - Alterations,"8,069.71","1,613.94",Building Works - Alterations
08/08/2017,,BT PLC - Openreach,Building Works - Alterations,"3,275.00",655.00,Building Works - Alterations
,,BT PLC - Openreach,Building Works - Alterations,"6,732.00","1,346.40",Building Works - Alterations
18/08/2017,,Canal and River Trust,Building Works - Alterations,"15,767.00",0.00,Building Works - Alterations
04/08/2017,,Chris Siddons Building and Property Repair,Building Works - Alterations,"3,648.00",0.00,Building Works - Alterations
18/08/2017,,Close Circuit Security Services Ltd (CCSS),Building Works - Alterations,"3,039.37",607.87,Building Works - Alterations
30/08/2017,,Cvn Property Repair Services,Building Works - Alterations,"6,190.00",0.00,Building Works - Alterations
18/08/2017,,Cvn Property Repair Services,Building Works - Alterations,"5,930.00",0.00,Building Works - Alterations
04/08/2017,,F Stimpson (Leicester) Ltd,Building Works - Alterations,745.68,149.14,Building Works - Alterations
29/08/2017,,G W Throop Ltd,Building Works - Alterations,"4,520.00",0.00,Building Works - Alterations
11/08/2017,,Gap Property Services (Leicester) Ltd,Building Works - Alterations,"28,578.96","5,715.79",Building Works - Alterations
,,Gap Property Services (Leicester) Ltd,Building Works - Alterations,"21,095.10","4,219.02",Building Works - Alterations
04/08/2017,,Global HSE Solutions Ltd,Building Works - Alterations,"29,686.94","5,937.39",Building Works - Alterations
,,Global HSE Solutions Ltd,Building Works - Alterations,"37,576.25","7,515.25",Building Works - Alterations
04/08/2017,,Global HSE Solutions Ltd,Building Works - Alterations,"14,621.93","2,924.39",Building Works - Alterations
,,Global HSE Solutions Ltd,Building Works - Alterations,"18,507.70","3,701.54",Building Works - Alterations
,,Handicare,Building Works - Alterations,"3,694.00",738.80,Building Works - Alterations
11/08/2017,,Handicare,Building Works - Alterations,"1,795.00",359.00,Building Works - Alterations
,,Handicare,Building Works - Alterations,"1,360.00",272.00,Building Works - Alterations
29/08/2017,,Injecta Dampcourse Company,Building Works - Alterations,"2,878.80",0.00,Building Works - Alterations
11/08/2017,,J Clark Electrical Ltd,Building Works - Alterations,"2,574.00",0.00,Building Works - Alterations
18/08/2017,,Kingkraft Ltd,Building Works - Alterations,"3,700.00",0.00,Building Works - Alterations
18/08/2017,,Kneller & Kneller,Building Works - Alterations,"2,818.99",0.00,Building Works - Alterations
04/08/2017,,Leawood Builders,Building Works - Alterations,"7,429.00",0.00,Building Works - Alterations
18/08/2017,,Leawood Builders,Building Works - Alterations,"4,832.00",0.00,Building Works - Alterations
30/08/2017,,Leawood Builders,Building Works - Alterations,"8,753.00",0.00,Building Works - Alterations
11/08/2017,,Mitie Property Services (Uk) Ltd,Building Works - Alterations,"27,213.00","5,442.60",Building Works - Alterations
11/08/2017,,Mitie Property Services (Uk) Ltd,Building Works - Alterations,"2,698.68",539.74,Building Works - Alterations
25/08/2017,,MJE Contracts (Leicester) Limited,Building Works - Alterations,"33,672.00","6,734.40",Building Works - Alterations
25/08/2017,,MJE Contracts (Leicester) Limited,Building Works - Alterations,"8,600.00","1,720.00",Building Works - Alterations
22/08/2017,,MJE Contracts (Leicester) Limited,Building Works - Alterations,"13,194.50","2,638.90",Building Works - Alterations
30/08/2017,,MJE Contracts (Leicester) Limited,Building Works - Alterations,"3,156.07",631.21,Building Works - Alterations
30/08/2017,,MJE Contracts (Leicester) Limited,Building Works - Alterations,"1,608.92",321.78,Building Works - Alterations
,,MJE Contracts (Leicester) Limited,Building Works - Alterations,544.50,108.90,Building Works - Alterations
16/08/2017,,Oliveti Construction Ltd,Building Works - Alterations,"15,000.00","3,000.00",Building Works - Alterations
16/08/2017,,Oliveti Construction Ltd,Building Works - Alterations,"10,000.00","2,000.00",Building Works - Alterations
16/08/2017,,Oliveti Construction Ltd,Building Works - Alterations,"5,000.00","1,000.00",Building Works - Alterations
11/08/2017,,Oliveti Construction Ltd,Building Works - Alterations,"5,263.00",0.00,Building Works - Alterations
16/08/2017,,Oliveti Construction Ltd,Building Works - Alterations,"10,000.00","2,000.00",Building Works - Alterations
15/08/2017,,Oliveti Construction Ltd,Building Works - Alterations,600.00,120.00,Building Works - Alterations
16/08/2017,,Oliveti Construction Ltd,Building Works - Alterations,"15,000.00","3,000.00",Building Works - Alterations
,,Oliveti Construction Ltd,Building Works - Alterations,762.59,152.52,Building Works - Alterations
,,Oliveti Construction Ltd,Building Works - Alterations,675.00,135.00,Building Works - Alterations
04/08/2017,,Premiere Property Services Ltd,Building Works - Alterations,"54,412.56","10,882.51",Building Works - Alterations
29/08/2017,,Prism Medical UK,Building Works - Alterations,"1,900.00",0.00,Building Works - Alterations
15/08/2017,,Prism UK Medical Ltd,Building Works - Alterations,"1,250.00",250.00,Building Works - Alterations
11/08/2017,,Prism UK Medical Ltd,Building Works - Alterations,"7,915.00","1,583.00",Building Works - Alterations
11/08/2017,,Prism UK Medical Ltd,Building Works - Alterations,"3,730.00",746.00,Building Works - Alterations
,,Prism UK Medical Ltd,Building Works - Alterations,"8,335.00","1,667.00",Building Works - Alterations
,,Prism UK Medical Ltd,Building Works - Alterations,"8,800.00","1,760.00",Building Works - Alterations
11/08/2017,,Prism UK Medical Ltd,Building Works - Alterations,"3,745.00",749.00,Building Works - Alterations
,,Prism UK Medical Ltd,Building Works - Alterations,"7,945.00","1,589.00",Building Works - Alterations
11/08/2017,,Prism UK Medical Ltd,Building Works - Alterations,"1,250.00",250.00,Building Works - Alterations
18/08/2017,,Prism UK Medical Ltd,Building Works - Alterations,"4,000.00",800.00,Building Works - Alterations
11/08/2017,,Property Maintenance Services Ltd,Building Works - Alterations,"2,541.00",0.00,Building Works - Alterations
18/08/2017,,Richard Simmons Ltd,Building Works - Alterations,"10,117.00",0.00,Building Works - Alterations
29/08/2017,,Rudkin & Herbert,Building Works - Alterations,"5,901.00",0.00,Building Works - Alterations
29/08/2017,,Rudkin & Herbert,Building Works - Alterations,"4,645.50",0.00,Building Works - Alterations
04/08/2017,,Sign Windows & Conservatories,Building Works - Alterations,"1,944.00",0.00,Building Works - Alterations
30/08/2017,,Thurmaston Roofing,Building Works - Alterations,"4,680.00",0.00,Building Works - Alterations
25/08/2017,,VerticA Consulting Ltd,Building Works - Alterations,"2,453.64",490.73,Building Works - Alterations
18/08/2017,,Wessex Lift Co Ltd,Building Works - Alterations,"15,901.00","3,180.20",Building Works - Alterations
11/08/2017,,Wessex Lift Co Ltd,Building Works - Alterations,"8,750.00","1,750.00",Building Works - Alterations
04/08/2017,City Developments and Neighbourhood,A Hull Electrical Ltd,Responsive,546.00,109.20,Building Works & Repairs/Maintenance/Alterations
04/08/2017,City Developments and Neighbourhood,A Hull Electrical Ltd,Responsive,"5,213.25","1,042.65",Building Works & Repairs/Maintenance/Alterations
,City Developments and Neighbourhood,A Hull Electrical Ltd,Responsive,"1,991.47",398.29,Building Works & Repairs/Maintenance/Alterations
,City Developments and Neighbourhood,A Hull Electrical Ltd,Responsive,"3,475.50",695.10,Building Works & Repairs/Maintenance/Alterations
,City Developments and Neighbourhood,Abca Systems,Responsive,"3,310.01",662.00,Building Works & Repairs/Maintenance/Alterations
04/08/2017,City Developments and Neighbourhood,Abca Systems,Responsive,"4,403.97",880.79,Building Works & Repairs/Maintenance/Alterations
25/08/2017,City Developments and Neighbourhood,Aggregate Industries UK Ltd,Responsive,"1,317.70",263.54,Building Works & Repairs/Maintenance/Alterations
,City Developments and Neighbourhood,Aggregate Industries UK Ltd,Responsive,"3,680.64",736.13,Building Works & Repairs/Maintenance/Alterations
18/08/2017,Education & Childrens Services,Alfred Bagnalls & Sons (East Midlands) Ltd,Planned,"3,198.02",639.60,Building Works & Repairs/Maintenance/Alterations
16/08/2017,City Developments and Neighbourhood,Alfred Bagnalls & Sons (East Midlands) Ltd,Responsive,546.40,109.28,Building Works & Repairs/Maintenance/Alterations
11/08/2017,City Developments and Neighbourhood,Alfred Bagnalls & Sons (East Midlands) Ltd,Responsive,"6,304.39","1,260.88",Building Works & Repairs/Maintenance/Alterations
,City Developments and Neighbourhood,Alfred Bagnalls & Sons (East Midlands) Ltd,Responsive,"9,417.26","1,883.45",Building Works & Repairs/Maintenance/Alterations
18/08/2017,Education & Childrens Services,Alfred Bagnalls & Sons (East Midlands) Ltd,Planned,"4,386.02",877.20,Building Works & Repairs/Maintenance/Alterations
09/08/2017,City Developments and Neighbourhood,Alfred Bagnalls & Sons (East Midlands) Ltd,Responsive,"4,592.15",918.43,Building Works & Repairs/Maintenance/Alterations
16/08/2017,City Developments and Neighbourhood,Aqua-Jet Specialist Drainage Contractors Ltd,Responsive,650.00,130.00,Building Works & Repairs/Maintenance/Alterations
11/08/2017,Education & Childrens Services,AT Services Ltd,Responsive,573.56,114.71,Building Works & Repairs/Maintenance/Alterations
25/08/2017,City Developments and Neighbourhood,AT Services Ltd,Responsive,568.16,113.63,Building Works & Repairs/Maintenance/Alterations
18/08/2017,City Developments and Neighbourhood,AT Services Ltd,Responsive,908.05,181.61,Building Works & Repairs/Maintenance/Alterations
18/08/2017,City Developments and Neighbourhood,AT Services Ltd,Responsive,"3,049.54",609.91,Building Works & Repairs/Maintenance/Alterations
18/08/2017,City Developments and Neighbourhood,Call Connect Services Ltd,Responsive,750.00,150.00,Building Works & Repairs/Maintenance/Alterations
01/08/2017,Education & Childrens Services,Call Connect Services Ltd,Responsive,"1,140.00",228.00,Building Works & Repairs/Maintenance/Alterations
,City Developments and Neighbourhood,City B Group Ltd,Responsive,"1,250.00",250.00,Building Works & Repairs/Maintenance/Alterations
,City Developments and Neighbourhood,Close Circuit Security Services Ltd (CCSS),Responsive,"1,407.50",281.50,Building Works & Repairs/Maintenance/Alterations
25/08/2017,City Developments and Neighbourhood,E H Smith (Builders Merchant) Ltd,Planned,799.76,159.95,Building Works & Repairs/Maintenance/Alterations
29/08/2017,City Developments and Neighbourhood,E H Smith (Builders Merchant) Ltd,Planned,715.72,143.14,Building Works & Repairs/Maintenance/Alterations
29/08/2017,City Developments and Neighbourhood,E H Smith (Builders Merchant) Ltd,Planned,715.72,143.14,Building Works & Repairs/Maintenance/Alterations
29/08/2017,City Developments and Neighbourhood,E H Smith (Builders Merchant) Ltd,Planned,715.72,143.14,Building Works & Repairs/Maintenance/Alterations
25/08/2017,Education & Childrens Services,G & R Refrigeration Ltd,Responsive,"4,142.00",828.40,Building Works & Repairs/Maintenance/Alterations
18/08/2017,City Developments and Neighbourhood,Hardscape Products Ltd,Planned,"3,805.91",761.18,Building Works & Repairs/Maintenance/Alterations
18/08/2017,City Developments and Neighbourhood,Hardscape Products Ltd,Planned,"17,051.15","3,410.23",Building Works & Repairs/Maintenance/Alterations
,City Developments and Neighbourhood,Hardscape Products Ltd,Planned,"4,969.25",993.85,Building Works & Repairs/Maintenance/Alterations
15/08/2017,City Developments and Neighbourhood,Instarmac Group Plc,Responsive,"2,995.00",599.00,Building Works & Repairs/Maintenance/Alterations
25/08/2017,Education & Childrens Services,John Unwin Electrical Cntr Ltd,Alterations,"2,695.00",539.00,Building Works & Repairs/Maintenance/Alterations
25/08/2017,Education & Childrens Services,John Unwin Electrical Cntr Ltd,Planned,"1,228.00",245.60,Building Works & Repairs/Maintenance/Alterations
18/08/2017,City Developments and Neighbourhood,Larsen Manufacturing Ltd  T/A Larsen Building Products,Responsive,"3,525.20",705.04,Building Works & Repairs/Maintenance/Alterations
22/08/2017,City Developments and Neighbourhood,Lowe Electrical,Servicing,"17,983.31","3,596.66",Building Works & Repairs/Maintenance/Alterations
,City Developments and Neighbourhood,Marshalls Mono Ltd t/a Marshalls Street Furniture,Responsive,"1,712.48",342.50,Building Works & Repairs/Maintenance/Alterations
25/08/2017,City Developments and Neighbourhood,Mitie Property Services (Uk) Ltd,Responsive,"20,000.00","4,000.00",Building Works & Repairs/Maintenance/Alterations
22/08/2017,City Developments and Neighbourhood,MJE Contracts (Leicester) Limited,Responsive,"19,516.35","3,903.27",Building Works & Repairs/Maintenance/Alterations
25/08/2017,City Developments and Neighbourhood,MJE Contracts (Leicester) Limited,Responsive,534.00,106.80,Building Works & Repairs/Maintenance/Alterations
25/08/2017,City Developments and Neighbourhood,MJE Contracts (Leicester) Limited,Responsive,"1,563.55",312.71,Building Works & Repairs/Maintenance/Alterations
15/08/2017,City Developments and Neighbourhood,MJE Contracts (Leicester) Limited,Responsive,"1,270.61",254.12,Building Works & Repairs/Maintenance/Alterations
25/08/2017,City Developments and Neighbourhood,MJE Contracts (Leicester) Limited,Responsive,"1,605.76",321.15,Building Works & Repairs/Maintenance/Alterations
23/08/2017,City Developments and Neighbourhood,MJE Contracts (Leicester) Limited,Responsive,660.00,132.00,Building Works & Repairs/Maintenance/Alterations
25/08/2017,City Developments and Neighbourhood,MJE Contracts (Leicester) Limited,Responsive,793.43,158.69,Building Works & Repairs/Maintenance/Alterations
23/08/2017,City Developments and Neighbourhood,NJS ELECTRICS LTD,Responsive,526.08,105.22,Building Works & Repairs/Maintenance/Alterations
18/08/2017,City Developments and Neighbourhood,Norman & Underwood (Glazing Systems) Ltd,Responsive,970.00,194.00,Building Works & Repairs/Maintenance/Alterations
,City Developments and Neighbourhood,Norman & Underwood (Glazing Systems) Ltd,Responsive,"9,686.32","1,937.26",Building Works & Repairs/Maintenance/Alterations
25/08/2017,City Developments and Neighbourhood,Norman & Underwood (Glazing Systems) Ltd,Vandalism,"1,446.24",289.25,Building Works & Repairs/Maintenance/Alterations
25/08/2017,City Developments and Neighbourhood,NRA Roofing and Flooring Services Ltd,Planned,"86,420.24","17,284.05",Building Works & Repairs/Maintenance/Alterations
16/08/2017,City Developments and Neighbourhood,Oliveti Construction Ltd,Responsive,"2,000.00",400.00,Building Works & Repairs/Maintenance/Alterations
11/08/2017,City Developments and Neighbourhood,Oliveti Construction Ltd,Responsive,"4,105.64",821.13,Building Works & Repairs/Maintenance/Alterations
22/08/2017,City Developments and Neighbourhood,Oliveti Construction Ltd,Responsive,645.75,129.15,Building Works & Repairs/Maintenance/Alterations
11/08/2017,City Developments and Neighbourhood,Oliveti Construction Ltd,Responsive,676.25,135.25,Building Works & Repairs/Maintenance/Alterations
15/08/2017,City Developments and Neighbourhood,Oliveti Construction Ltd,Responsive,812.89,162.58,Building Works & Repairs/Maintenance/Alterations
18/08/2017,City Developments and Neighbourhood,Oliveti Construction Ltd,Responsive,569.72,113.94,Building Works & Repairs/Maintenance/Alterations
16/08/2017,City Developments and Neighbourhood,Oliveti Construction Ltd,Responsive,739.34,147.87,Building Works & Repairs/Maintenance/Alterations
16/08/2017,City Developments and Neighbourhood,Oliveti Construction Ltd,Responsive,"4,000.00",800.00,Building Works & Repairs/Maintenance/Alterations
16/08/2017,City Developments and Neighbourhood,Oliveti Construction Ltd,Servicing,697.50,139.50,Building Works & Repairs/Maintenance/Alterations
18/08/2017,Education & Childrens Services,Oliveti Construction Ltd,Responsive,"5,000.00","1,000.00",Building Works & Repairs/Maintenance/Alterations
16/08/2017,City Developments and Neighbourhood,Oliveti Construction Ltd,Responsive,"2,475.89",495.18,Building Works & Repairs/Maintenance/Alterations
16/08/2017,City Developments and Neighbourhood,Oliveti Construction Ltd,Responsive,"10,000.00","2,000.00",Building Works & Repairs/Maintenance/Alterations
15/08/2017,City Developments and Neighbourhood,Oliveti Construction Ltd,Responsive,564.36,112.87,Building Works & Repairs/Maintenance/Alterations
25/08/2017,City Developments and Neighbourhood,Oliveti Construction Ltd,Responsive,"1,230.50",246.10,Building Works & Repairs/Maintenance/Alterations
04/08/2017,City Developments and Neighbourhood,Pennine Management Services,Responsive,"3,750.00",750.00,Building Works & Repairs/Maintenance/Alterations
11/08/2017,City Developments and Neighbourhood,Pennine Management Services,Responsive,"4,324.00",864.80,Building Works & Repairs/Maintenance/Alterations
25/08/2017,City Developments and Neighbourhood,Premier Waste And Recycling,Responsive,"3,359.20",671.84,Building Works & Repairs/Maintenance/Alterations
11/08/2017,City Developments and Neighbourhood,Thomas Cassie & Sons,Responsive,"3,740.64",748.13,Building Works & Repairs/Maintenance/Alterations
04/08/2017,City Developments and Neighbourhood,Thomas Cassie & Sons,Responsive,"5,560.88","1,112.18",Building Works & Repairs/Maintenance/Alterations
25/08/2017,City Developments and Neighbourhood,Thomas Cassie & Sons,Responsive,509.71,101.94,Building Works & Repairs/Maintenance/Alterations
25/08/2017,City Developments and Neighbourhood,Thomas Cassie & Sons,Responsive,"2,174.84",434.97,Building Works & Repairs/Maintenance/Alterations
,City Developments and Neighbourhood,Thomas Cassie & Sons,Responsive,506.91,101.38,Building Works & Repairs/Maintenance/Alterations
30/08/2017,City Developments and Neighbourhood,Thomas Cassie & Sons,Responsive,862.02,172.40,Building Works & Repairs/Maintenance/Alterations
11/08/2017,City Developments and Neighbourhood,Thomas Cassie & Sons,Responsive,"4,386.63",877.33,Building Works & Repairs/Maintenance/Alterations
25/08/2017,City Developments and Neighbourhood,Thomas Cassie & Sons,Responsive,856.52,171.30,Building Works & Repairs/Maintenance/Alterations
18/08/2017,City Developments and Neighbourhood,Thomas Cassie & Sons,Responsive,"2,500.00",500.00,Building Works & Repairs/Maintenance/Alterations
11/08/2017,City Developments and Neighbourhood,Thomas Cassie & Sons,Responsive,"4,584.51",916.90,Building Works & Repairs/Maintenance/Alterations
,City Developments and Neighbourhood,Thomas Cassie & Sons,Responsive,973.13,194.63,Building Works & Repairs/Maintenance/Alterations
25/08/2017,City Developments and Neighbourhood,VIX TECHNOLOGY UK LIMITED,Alterations,"1,728.00",345.60,Building Works & Repairs/Maintenance/Alterations
25/08/2017,City Developments and Neighbourhood,VIX TECHNOLOGY UK LIMITED,Alterations,"1,728.00",345.60,Building Works & Repairs/Maintenance/Alterations
30/08/2017,City Developments and Neighbourhood,Matthew Clark Wholesale Ltd,Catering - Supplies,"1,290.67",258.13,Catering Provisions / Food & Drink
25/08/2017,City Developments and Neighbourhood,Molson Coors,Catering - Provisions,"2,217.07",443.41,Catering Provisions / Food & Drink
23/08/2017,City Developments and Neighbourhood,Molson Coors,Catering - Provisions,"4,919.25",983.85,Catering Provisions / Food & Drink
25/08/2017,City Developments and Neighbourhood,Molson Coors,Catering - Provisions,798.16,159.63,Catering Provisions / Food & Drink
16/08/2017,Adults & Housing Department,Molson Coors,Catering - Provisions,693.45,138.69,Catering Provisions / Food & Drink
23/08/2017,City Developments and Neighbourhood,Molson Coors,Catering - Provisions,"2,682.32",536.46,Catering Provisions / Food & Drink
,Education & Childrens Services,Total Produce Foodservice,Catering - Provisions,"2,143.75",0.00,Catering Provisions / Food & Drink
15/08/2017,Corporate Resources & Support,Zurich Insurance PLC t/a Zurich Municipal,Claims Settlement,"10,000.00",0.00,Claims Settlement
15/08/2017,Corporate Resources & Support,Zurich Insurance PLC t/a Zurich Municipal,Claims Settlement,"15,000.00",0.00,Claims Settlement
15/08/2017,Corporate Resources & Support,Zurich Insurance PLC t/a Zurich Municipal,Claims Settlement,"15,000.00",0.00,Claims Settlement
11/08/2017,City Developments and Neighbourhood,Arco Ltd,Clothing Footwear & Laundry,"2,345.25",469.05,"Clothing, Footwear & Laundry"
11/08/2017,City Developments and Neighbourhood,Arco Ltd,Clothing Footwear & Laundry,"2,830.85",566.17,"Clothing, Footwear & Laundry"
11/08/2017,City Developments and Neighbourhood,Arco Ltd,Clothing Footwear & Laundry,"4,897.50",979.50,"Clothing, Footwear & Laundry"
,City Developments and Neighbourhood,Arco Ltd,Clothing Footwear & Laundry,"1,200.00",240.00,"Clothing, Footwear & Laundry"
25/08/2017,City Developments and Neighbourhood,Keltic Ltd,Clothing Footwear & Laundry,986.05,197.21,"Clothing, Footwear & Laundry"
,City Developments and Neighbourhood,Keltic Ltd,Clothing Footwear & Laundry,"1,858.35",371.67,"Clothing, Footwear & Laundry"
09/08/2017,City Developments and Neighbourhood,Westbury Industrial Supplies Ltd,Clothing Footwear & Laundry,"1,080.24",216.05,"Clothing, Footwear & Laundry"
30/08/2017,Education & Childrens Services,WORKWEAR EXPRESS LTD,Clothing Footwear & Laundry,708.00,141.60,"Clothing, Footwear & Laundry"
,Corporate Resources & Support,Adept Telecom Plc,Telephony lease / rental,"6,081.32","1,216.26",Communications Equipment Lease / Rental
25/08/2017,Corporate Resources & Support,Esendex Ltd,Communication Equipment Lease / Rental,565.00,113.00,Communications Equipment Lease / Rental
15/08/2017,Corporate Resources & Support,Everything Everywhere Ltd t/a Orange,Communication Equipment Lease / Rental,"1,293.75",258.75,Communications Equipment Lease / Rental
15/08/2017,Corporate Resources & Support,Everything Everywhere Ltd t/a Orange,Communication Equipment Lease / Rental,775.51,155.10,Communications Equipment Lease / Rental
11/08/2017,Corporate Resources & Support,KCOM Group PLC,Communication Equipment Lease / Rental,644.25,128.85,Communications Equipment Lease / Rental
11/08/2017,Corporate Resources & Support,KCOM Group PLC,Communication Equipment Lease / Rental,644.25,128.85,Communications Equipment Lease / Rental
11/08/2017,Corporate Resources & Support,KCOM Group PLC,Communication Equipment Lease / Rental,"6,730.81","1,346.16",Communications Equipment Lease / Rental
11/08/2017,Corporate Resources & Support,KCOM Group PLC,Communication Equipment Lease / Rental,644.25,128.85,Communications Equipment Lease / Rental
11/08/2017,Corporate Resources & Support,KCOM Group PLC,Communication Equipment Lease / Rental,644.25,128.85,Communications Equipment Lease / Rental
11/08/2017,Corporate Resources & Support,KCOM Group PLC,Communication Equipment Lease / Rental,644.25,128.85,Communications Equipment Lease / Rental
11/08/2017,Corporate Resources & Support,KCOM Group PLC,Communication Equipment Lease / Rental,"2,375.00",475.00,Communications Equipment Lease / Rental
11/08/2017,Corporate Resources & Support,KCOM Group PLC,Communication Equipment Lease / Rental,644.25,128.85,Communications Equipment Lease / Rental
11/08/2017,Corporate Resources & Support,KCOM Group PLC,Communication Equipment Lease / Rental,644.25,128.85,Communications Equipment Lease / Rental
09/08/2017,Corporate Resources & Support,Telefonica O2 UK Ltd,Telephony lease / rental,"1,067.30",213.46,Communications Equipment Lease / Rental
11/08/2017,Corporate Resources & Support,Telefonica O2 UK Ltd,Mobile Phone Charges,"16,822.75","3,364.55",Communications Equipment Lease / Rental
29/08/2017,Corporate Resources & Support,Virgin Media Payments Ltd t/a Virgin Media Business,Communication Equipment Lease / Rental,536.12,107.22,Communications Equipment Lease / Rental
29/08/2017,Corporate Resources & Support,Virgin Media Payments Ltd t/a Virgin Media Business,Communication Equipment Lease / Rental,"4,852.13",970.43,Communications Equipment Lease / Rental
29/08/2017,Corporate Resources & Support,Virgin Media Payments Ltd t/a Virgin Media Business,Communication Equipment Lease / Rental,"4,891.72",978.34,Communications Equipment Lease / Rental
29/08/2017,Corporate Resources & Support,Virgin Media Payments Ltd t/a Virgin Media Business,Communication Equipment Lease / Rental,"4,888.88",977.78,Communications Equipment Lease / Rental
29/08/2017,Corporate Resources & Support,Virgin Media Payments Ltd t/a Virgin Media Business,Communication Equipment Lease / Rental,535.15,107.03,Communications Equipment Lease / Rental
29/08/2017,Corporate Resources & Support,Virgin Media Payments Ltd t/a Virgin Media Business,Communication Equipment Lease / Rental,535.29,107.06,Communications Equipment Lease / Rental
29/08/2017,Corporate Resources & Support,VMedia Pay Ltd (NTL Business),Communication Equipment Lease / Rental,"9,553.32","1,910.66",Communications Equipment Lease / Rental
29/08/2017,Corporate Resources & Support,VMedia Pay Ltd (NTL Business),Communication Equipment Lease / Rental,"10,276.33","2,055.27",Communications Equipment Lease / Rental
29/08/2017,Corporate Resources & Support,VMedia Pay Ltd (NTL Business),Communication Equipment Lease / Rental,"9,776.73","1,955.35",Communications Equipment Lease / Rental
,Corporate Resources & Support,VMedia Pay Ltd (NTL Business),Communication Equipment Lease / Rental,"10,018.09","2,003.62",Communications Equipment Lease / Rental
29/08/2017,Corporate Resources & Support,VMedia Pay Ltd (NTL Business),Communication Equipment Lease / Rental,"10,498.74","2,099.75",Communications Equipment Lease / Rental
23/08/2017,Corporate Resources & Support,Vodafone Ltd,Telephony lease / rental,"1,523.99",304.80,Communications Equipment Lease / Rental
29/08/2017,Adults & Housing Department,Art of Brillance Ltd,Mental Health,"1,270.80",254.16,Community Engagement
,Adults & Housing Department,Chelsea & Westminster Hospital NHS Foundation Trust,STI treatment (ISHS),613.04,0.00,Community Engagement
25/08/2017,Adults & Housing Department,Guy's and St Thomas' NHS Foundation Trust,STI treatment (ISHS),855.00,0.00,Community Engagement
02/08/2017,Adults & Housing Department,Preventx Limited,STI treatment (ISHS),586.00,117.20,Community Engagement
,Adults & Housing Department,University Hospitals Birmingham NHS FT,STI treatment (ISHS),510.73,0.00,Community Engagement
,Adults & Housing Department,University Hospitals Birmingham NHS FT,STI treatment (ISHS),655.00,0.00,Community Engagement
,City Developments and Neighbourhood,British Cycling,Activities Child & Adults,"10,000.00",PE,Community Expenditure
16/08/2017,City Developments and Neighbourhood,Cyclone Works,Activities Child & Adults,"2,605.00",0.00,Community Expenditure
30/08/2017,City Developments and Neighbourhood,Seed Creativity,Community Expenditure,"1,892.00",378.40,Community Expenditure
,City Developments and Neighbourhood,Style Bicycle,Community Expenditure,"2,500.00",0.00,Community Expenditure
09/08/2017,City Developments and Neighbourhood,Systemlevel Ltd,Community Expenditure,800.00,160.00,Community Expenditure
,Adults & Housing Department,Advanced Health and Care Ltd,Consultants Fees,520.00,104.00,Consultant Fees
18/08/2017,,AECOM Infrastructure & Environment UK Limited,Consultant Fees,"18,728.94","3,745.79",Consultant Fees
15/08/2017,Adults & Housing Department,Age UK Leicester Shire & Rutland,Consultants Fees,528.55,0.00,Consultant Fees
,Adults & Housing Department,Alzheimers Society,Consultants Fees,"1,618.38",0.00,Consultant Fees
04/08/2017,,Arcadis LLP,Consultant Fees,"12,972.17","2,594.43",Consultant Fees
09/08/2017,,Arcadis LLP,Consultant Fees,"1,180.00",236.00,Consultant Fees
09/08/2017,,Arcadis LLP,Consultant Fees,"1,972.73",394.55,Consultant Fees
04/08/2017,City Developments and Neighbourhood,Arcadis LLP,Consultants Fees,"14,529.07","2,905.81",Consultant Fees
09/08/2017,,Arcadis LLP,Consultant Fees,"1,824.15",364.83,Consultant Fees
08/08/2017,,Arcadis LLP,Consultant Fees,"24,730.90","4,946.18",Consultant Fees
,,Arcadis LLP,Consultant Fees,"228,247.68","45,649.54",Consultant Fees
08/08/2017,,Arcadis LLP,Consultant Fees,"29,691.13","5,938.23",Consultant Fees
09/08/2017,,Arcadis LLP,Consultant Fees,"1,845.00",369.00,Consultant Fees
09/08/2017,,Arcadis LLP,Consultant Fees,"2,500.00",500.00,Consultant Fees
25/08/2017,,Arcadis LLP,Consultant Fees,"1,627.40",325.48,Consultant Fees
18/08/2017,Adults & Housing Department,CFE Research Ltd,Consultants Fees,"8,275.00","1,655.00",Consultant Fees
22/08/2017,City Developments and Neighbourhood,Edwards & Edwards Consultancy Ltd,Consultants Fees,"5,783.65","1,156.73",Consultant Fees
18/08/2017,City Developments and Neighbourhood,Edwards & Edwards Consultancy Ltd,Consultants Fees,663.30,132.66,Consultant Fees
15/08/2017,,Faithful+Gould Ltd,Consultant Fees,"156,272.19","31,254.44",Consultant Fees
25/08/2017,City Developments and Neighbourhood,Gage-Tupper & Associates Ltd,Consultants Fees,"4,361.50",872.30,Consultant Fees
23/08/2017,,Gateley Hamer Limited,Consultant Fees,"1,725.62",345.12,Consultant Fees
,,Gateley Hamer Limited,Consultant Fees,"3,554.93",710.99,Consultant Fees
25/08/2017,,GL Hearn Ltd,Consultant Fees,"4,312.31",862.46,Consultant Fees
25/08/2017,Corporate Resources & Support,IT Efficient Limited,Consultants Fees,807.00,161.40,Consultant Fees
,Adults & Housing Department,JW CARE SERVICES (UK) LTD,3rd party engaged consultants to be re-imbursed,"1,350.00",0.00,Consultant Fees
15/08/2017,Adults & Housing Department,JW CARE SERVICES (UK) LTD,3rd party engaged consultants to be re-imbursed,500.00,0.00,Consultant Fees
29/08/2017,Adults & Housing Department,Leicestershire County Council,Consultants Fees,"3,400.00",0.00,Consultant Fees
16/08/2017,,Maber Associates Limited,Consultant Fees,"5,468.00","1,093.60",Consultant Fees
25/08/2017,Adults & Housing Department,MCS Care Services Ltd,3rd party engaged consultants to be re-imbursed,"1,350.00",0.00,Consultant Fees
,Adults & Housing Department,MCS Care Services Ltd,3rd party engaged consultants to be re-imbursed,"1,500.00",0.00,Consultant Fees
22/08/2017,Education & Childrens Services,Millcrane Ltd,Consultants Fees,"4,500.00",900.00,Consultant Fees
15/08/2017,Adults & Housing Department,Mosaic Shaping(Dis Serv)Main,Consultants Fees,859.55,0.00,Consultant Fees
25/08/2017,Adults & Housing Department,Mosaic Shaping(Dis Serv)Main,Consultants Fees,"1,139.65",0.00,Consultant Fees
25/08/2017,Adults & Housing Department,Mosaic Shaping(Dis Serv)Main,Consultants Fees,640.35,0.00,Consultant Fees
25/08/2017,Adults & Housing Department,Mosaic Shaping(Dis Serv)Main,Consultants Fees,845.00,0.00,Consultant Fees
25/08/2017,Adults & Housing Department,Mosaic Shaping(Dis Serv)Main,Consultants Fees,753.55,0.00,Consultant Fees
25/08/2017,Adults & Housing Department,Mosaic Shaping(Dis Serv)Main,Consultants Fees,782.05,0.00,Consultant Fees
25/08/2017,Adults & Housing Department,Mosaic Shaping(Dis Serv)Main,Consultants Fees,673.20,0.00,Consultant Fees
25/08/2017,Adults & Housing Department,Mosaic Shaping(Dis Serv)Main,Consultants Fees,664.15,0.00,Consultant Fees
18/08/2017,Adults & Housing Department,Mosaic Shaping(Dis Serv)Main,Consultants Fees,"1,050.20",0.00,Consultant Fees
25/08/2017,Adults & Housing Department,Mosaic Shaping(Dis Serv)Main,Consultants Fees,550.00,0.00,Consultant Fees
29/08/2017,,Nicholls Colton Group Ltd,Consultant Fees,550.00,110.00,Consultant Fees
29/08/2017,,Nicholls Colton Group Ltd,Consultant Fees,550.00,110.00,Consultant Fees
29/08/2017,,Nicholls Colton Group Ltd,Consultant Fees,550.00,110.00,Consultant Fees
29/08/2017,,Nicholls Colton Group Ltd,Consultant Fees,550.00,110.00,Consultant Fees
29/08/2017,,Nicholls Colton Group Ltd,Consultant Fees,550.00,110.00,Consultant Fees
29/08/2017,,Nicholls Colton Group Ltd,Consultant Fees,550.00,110.00,Consultant Fees
25/08/2017,Adults & Housing Department,POhWER,3rd party engaged consultants to be re-imbursed,"2,375.34",0.00,Consultant Fees
22/08/2017,,Rg & P Ltd,Consultant Fees,540.50,108.10,Consultant Fees
22/08/2017,,Rg & P Ltd,Consultant Fees,640.00,128.00,Consultant Fees
,,Richard Julian & Associates,Consultant Fees,"1,772.00",354.40,Consultant Fees
18/08/2017,,WYG Environment Planning Transport Ltd,Consultant Fees,"9,995.49","1,999.10",Consultant Fees
18/08/2017,,WYG Environment Planning Transport Ltd,Consultant Fees,"8,910.00","1,782.00",Consultant Fees
11/08/2017,,YMDBoon Ltd,Consultant Fees,"2,388.75",477.75,Consultant Fees
16/08/2017,Adults & Housing Department,Lester Hall Apartments Ltd,Continuing Health Care Contribution - Residential Care,"2,454.89",0.00,Continuing Health Care Contribution - Residential Care
16/08/2017,Adults & Housing Department,Lester Hall Apartments Ltd,Continuing Health Care Contribution - Residential Care,"1,289.33",0.00,Continuing Health Care Contribution - Residential Care
16/08/2017,Adults & Housing Department,Lester Hall Apartments Ltd,Continuing Health Care Contribution - Residential Care,"2,454.89",0.00,Continuing Health Care Contribution - Residential Care
16/08/2017,Adults & Housing Department,Prime Life Plc,Continuing Health Care Contribution - Residential Care,"1,528.00",0.00,Continuing Health Care Contribution - Residential Care
16/08/2017,Adults & Housing Department,Prime Life Plc,Continuing Health Care Contribution - Residential Care,"1,558.56",0.00,Continuing Health Care Contribution - Residential Care
16/08/2017,Adults & Housing Department,Prime Life Plc,Continuing Health Care Contribution - Residential Care,764.00,0.00,Continuing Health Care Contribution - Residential Care
16/08/2017,Adults & Housing Department,Prime Life Plc,Continuing Health Care Contribution - Residential Care,"1,528.00",0.00,Continuing Health Care Contribution - Residential Care
16/08/2017,Adults & Housing Department,Prime Life Plc,Continuing Health Care Contribution - Residential Care,"1,528.00",0.00,Continuing Health Care Contribution - Residential Care
16/08/2017,Adults & Housing Department,Prime Life Plc,Continuing Health Care Contribution - Residential Care,764.00,0.00,Continuing Health Care Contribution - Residential Care
16/08/2017,Adults & Housing Department,Prime Life Plc,Continuing Health Care Contribution - Residential Care,"1,528.00",0.00,Continuing Health Care Contribution - Residential Care
16/08/2017,Adults & Housing Department,Prime Life Plc,Continuing Health Care Contribution - Residential Care,"1,558.56",0.00,Continuing Health Care Contribution - Residential Care
16/08/2017,Adults & Housing Department,Prime Life Plc,Continuing Health Care Contribution - Residential Care,"1,528.00",0.00,Continuing Health Care Contribution - Residential Care
16/08/2017,Adults & Housing Department,Prime Life Plc,Continuing Health Care Contribution - Residential Care,"1,528.00",0.00,Continuing Health Care Contribution - Residential Care
16/08/2017,Adults & Housing Department,Prime Life Plc,Continuing Health Care Contribution - Residential Care,"1,476.00",0.00,Continuing Health Care Contribution - Residential Care
16/08/2017,Adults & Housing Department,Prime Life Plc,Continuing Health Care Contribution - Residential Care,"1,528.00",0.00,Continuing Health Care Contribution - Residential Care
30/08/2017,Adults & Housing Department,Beaumont Lodge Medical Practice,P Care Services  contraceptive  implants (LES),765.00,0.00,Contraception
29/08/2017,Adults & Housing Department,Boots UK Limited T/a Boots The Chemist,Emergency hormonal contraception LES,"11,286.00",0.00,Contraception
30/08/2017,Adults & Housing Department,Downing Drive Surgery Limited,Pcare services IUD contraceptive devices (LES),"1,008.31",0.00,Contraception
30/08/2017,Adults & Housing Department,East Leicester Medical Practice,Pcare services IUD contraceptive devices (LES),986.62,0.00,Contraception
30/08/2017,Adults & Housing Department,Heatherbrook Surgery,Pcare services IUD contraceptive devices (LES),878.17,0.00,Contraception
30/08/2017,Adults & Housing Department,Humberstone Medical Centre,P Care Services  contraceptive  implants (LES),"1,297.44",0.00,Contraception
29/08/2017,Adults & Housing Department,Leicestershire Independent Pharmacy Co Ltd T/A LIPCO Healthcare,Emergency hormonal contraception LES,"3,608.00",0.00,Contraception
,Adults & Housing Department,Spinney Hill Medical Centre,P Care Services  contraceptive  implants (LES),"1,040.58",0.00,Contraception
,Adults & Housing Department,Spinney Hill Medical Centre,Pcare services IUD contraceptive devices (LES),829.45,0.00,Contraception
30/08/2017,Adults & Housing Department,SSAFA Care CIC Health & Walk In Centre,P Care Services  contraceptive  implants (LES),944.01,0.00,Contraception
30/08/2017,Adults & Housing Department,The Hedges Medical Centre,P Care Services  contraceptive  implants (LES),"2,691.45",0.00,Contraception
30/08/2017,Adults & Housing Department,The Hedges Medical Centre,Pcare services IUD contraceptive devices (LES),840.35,0.00,Contraception
18/08/2017,Corporate Resources & Support,Innes England,Corporate Items,"12,887.00","2,577.40",Corporate Items
04/08/2017,Adults & Housing Department,Association of Directors of Public Health,Membership and Subscriptions,"3,400.00",0.00,Corporate Membership & Subscriptions
01/08/2017,Corporate Resources & Support,Learning Pool Ltd,Membership and Subscriptions,"25,800.00","5,160.00",Corporate Membership & Subscriptions
,Corporate Resources & Support,Learning Pool Ltd,Membership and Subscriptions,"51,600.00","10,320.00",Corporate Membership & Subscriptions
04/08/2017,City Developments and Neighbourhood,Leicestershire County Council Environment & Transport,Membership and Subscriptions,"6,000.00",0.00,Corporate Membership & Subscriptions
11/08/2017,Adults & Housing Department,Nottinghamshire Healthcare NHS Trust,Drug And Alcohol De Toxification Beds (LPT),"23,079.08",0.00,D&A Detoxication
,Adults & Housing Department,Age UK Leicester Shire & Rutland,Day Care /Community Opportunities,649.20,0.00,Day Care /Community Opportunities
,Adults & Housing Department,Age UK Leicester Shire & Rutland,Day Care /Community Opportunities,519.36,0.00,Day Care /Community Opportunities
,Adults & Housing Department,Age UK Leicester Shire & Rutland,Day Care /Community Opportunities,551.82,0.00,Day Care /Community Opportunities
,Adults & Housing Department,Age UK Leicester Shire & Rutland,Day Care /Community Opportunities,649.20,0.00,Day Care /Community Opportunities
,Adults & Housing Department,Age UK Leicester Shire & Rutland,Day Care /Community Opportunities,519.36,0.00,Day Care /Community Opportunities
11/08/2017,Adults & Housing Department,Guru Nanak Community Centre,Day Care /Community Opportunities,686.60,0.00,Day Care /Community Opportunities
,Adults & Housing Department,Guru Nanak Community Centre,Day Care /Community Opportunities,686.60,0.00,Day Care /Community Opportunities
11/08/2017,Adults & Housing Department,Mosaic Shaping Disability Serv,Day Care /Community Opportunities,"3,146.88",0.00,Day Care /Community Opportunities
11/08/2017,Adults & Housing Department,Mosaic Shaping Disability Serv,Day Care /Community Opportunities,590.04,0.00,Day Care /Community Opportunities
11/08/2017,Adults & Housing Department,Mosaic Shaping Disability Serv,Day Care /Community Opportunities,983.40,0.00,Day Care /Community Opportunities
11/08/2017,Adults & Housing Department,Mosaic Shaping Disability Serv,Day Care /Community Opportunities,590.04,0.00,Day Care /Community Opportunities
30/08/2017,Adults & Housing Department,Royal Mencap Society,Day Care /Community Opportunities,593.76,0.00,Day Care /Community Opportunities
30/08/2017,Adults & Housing Department,Royal Mencap Society,Day Care /Community Opportunities,593.76,0.00,Day Care /Community Opportunities
30/08/2017,Adults & Housing Department,Royal Mencap Society,Day Care /Community Opportunities,791.68,0.00,Day Care /Community Opportunities
30/08/2017,Adults & Housing Department,Royal Mencap Society,Day Care /Community Opportunities,989.60,0.00,Day Care /Community Opportunities
30/08/2017,Adults & Housing Department,Royal Mencap Society,Day Care /Community Opportunities,593.76,0.00,Day Care /Community Opportunities
30/08/2017,Adults & Housing Department,Royal Mencap Society,Day Care /Community Opportunities,593.76,0.00,Day Care /Community Opportunities
30/08/2017,Adults & Housing Department,Royal Mencap Society,Day Care /Community Opportunities,593.76,0.00,Day Care /Community Opportunities
30/08/2017,Adults & Housing Department,Royal Mencap Society,Day Care /Community Opportunities,791.68,0.00,Day Care /Community Opportunities
30/08/2017,Adults & Housing Department,Royal Mencap Society,Day Care /Community Opportunities,989.60,0.00,Day Care /Community Opportunities
30/08/2017,Adults & Housing Department,Royal Mencap Society,Day Care /Community Opportunities,593.76,0.00,Day Care /Community Opportunities
,Adults & Housing Department,Sanatan Manavta Day Care Serv,Day Care /Community Opportunities,542.20,0.00,Day Care /Community Opportunities
,Adults & Housing Department,Sanatan Manavta Day Care Serv,Day Care /Community Opportunities,542.20,0.00,Day Care /Community Opportunities
16/08/2017,Adults & Housing Department,Santosh Community Centre,Day Care /Community Opportunities,565.20,0.00,Day Care /Community Opportunities
11/08/2017,Corporate Resources & Support,Disclosure & Barring Service,DBS Checks,"11,748.00",0.00,DBS Checks
04/08/2017,Adults & Housing Department,Enham,Direct Payments,"19,512.06","3,902.41",Direct Payments
18/08/2017,Adults & Housing Department,Mosaic Shaping Disability Services FA SL&FSB,Direct Payments,"4,454.61",890.92,Direct Payments
11/08/2017,Adults & Housing Department,Inclusion healthcare social enterprise CIC,Anchor Centre,"11,599.00",0.00,Drug and Alcohol Services
11/08/2017,Adults & Housing Department,Turning Point (Services) Ltd,Leicestershire Partnership Trust - Drug Services,"387,516.88","77,503.38",Drug and Alcohol Services
11/08/2017,City Developments and Neighbourhood,Cliveden Conservation Workshops Limited,Editorial and Design and Graphic and Fine Art Services,"2,268.00",453.60,Editorial & Design & Graphic & Fine Art Services
18/08/2017,City Developments and Neighbourhood,Cliveden Conservation Workshops Limited,Editorial and Design and Graphic and Fine Art Services,"7,020.00","1,404.00",Editorial & Design & Graphic & Fine Art Services
08/08/2017,Education & Childrens Services,Coventry City Council,Editorial and Design and Graphic and Fine Art Services,"1,038.55",207.71,Editorial & Design & Graphic & Fine Art Services
,Corporate Resources & Support,Design & Technology Association,Education and Training Services,"1,000.00",200.00,Education & Training Services
30/08/2017,Corporate Resources & Support,Expert Leadership Training Ltd,Education and Training Services,800.00,160.00,Education & Training Services
22/08/2017,City Developments and Neighbourhood,FreeVA,Education and Training Services,700.00,0.00,Education & Training Services
25/08/2017,Education & Childrens Services,Fresh Start in Education Ltd,Education and Training Services,"2,720.00",544.00,Education & Training Services
,Education & Childrens Services,Leicester Football Club Plc (Leicester Tigers),Education and Training Services,"3,584.00",0.00,Education & Training Services
04/08/2017,Education & Childrens Services,Lincolnshire County Council,Education and Training Services,"2,200.00",0.00,Education & Training Services
04/08/2017,Education & Childrens Services,Lincolnshire County Council,Education and Training Services,"5,400.00",0.00,Education & Training Services
18/08/2017,City Developments and Neighbourhood,Mgas Ltd,Education and Training Services,"4,680.00",936.00,Education & Training Services
04/08/2017,Education & Childrens Services,Nottingham City Council,Education and Training Services,"1,635.83",327.17,Education & Training Services
30/08/2017,Education & Childrens Services,Pedestrian Trading Ltd,Education and Training Services,"2,860.00",572.00,Education & Training Services
,Education & Childrens Services,Trinity College London,Education and Training Services,515.75,0.00,Education & Training Services
11/08/2017,Education & Childrens Services,WH Training & Consultancy Ltd,Education and Training Services,675.00,0.00,Education & Training Services
,Education & Childrens Services,WH Training & Consultancy Ltd,Education and Training Services,"2,031.25",0.00,Education & Training Services
11/08/2017,Education & Childrens Services,WH Training & Consultancy Ltd,Education and Training Services,"2,031.25",0.00,Education & Training Services
,Education & Childrens Services,Leicestershire County Council,Educational Transport Schools,"3,085.00",617.00,Educational Transport
22/08/2017,City Developments and Neighbourhood,P & S Electrical (South East) Ltd T/a P & S Electrical,Electric Equipment Testing,800.00,160.00,Electric Equipment Testing
18/08/2017,City Developments and Neighbourhood,P & S Electrical (South East) Ltd T/a P & S Electrical,Electric Equipment Testing,520.00,104.00,Electric Equipment Testing
16/08/2017,City Developments and Neighbourhood,Lowe Electrical,Electricity at Work - Works,"2,428.52",485.70,Electricity at Work
16/08/2017,City Developments and Neighbourhood,Lowe Electrical,Electricity at Work - Works,"1,768.07",353.61,Electricity at Work
18/08/2017,City Developments and Neighbourhood,Lowe Electrical,Electricity at Work - Works,582.48,116.50,Electricity at Work
18/08/2017,City Developments and Neighbourhood,Lowe Electrical,Electricity at Work - Works,"2,172.06",434.41,Electricity at Work
11/08/2017,City Developments and Neighbourhood,Lowe Electrical,Electricity at Work - Surveys,"10,704.55","2,140.91",Electricity at Work
11/08/2017,City Developments and Neighbourhood,Lowe Electrical,Electricity at Work - Surveys,"3,181.53",636.31,Electricity at Work
16/08/2017,City Developments and Neighbourhood,Lowe Electrical,Electricity at Work - Works,"3,489.58",697.92,Electricity at Work
11/08/2017,City Developments and Neighbourhood,Lowe Electrical,Electricity at Work - Surveys,"3,245.39",649.08,Electricity at Work
18/08/2017,City Developments and Neighbourhood,Lowe Electrical,Electricity at Work - Works,580.99,116.20,Electricity at Work
18/08/2017,City Developments and Neighbourhood,Lowe Electrical,Electricity at Work - Works,"2,685.76",537.15,Electricity at Work
16/08/2017,City Developments and Neighbourhood,Lowe Electrical,Electricity at Work - Works,781.17,156.23,Electricity at Work
16/08/2017,City Developments and Neighbourhood,Lowe Electrical,Electricity at Work - Works,"3,898.86",779.77,Electricity at Work
16/08/2017,City Developments and Neighbourhood,Lowe Electrical,Electricity at Work - Surveys,"1,727.39",345.48,Electricity at Work
11/08/2017,City Developments and Neighbourhood,Lowe Electrical,Electricity at Work - Surveys,"1,988.06",397.61,Electricity at Work
16/08/2017,City Developments and Neighbourhood,Lowe Electrical,Electricity at Work - Works,"1,798.21",359.64,Electricity at Work
29/08/2017,City Developments and Neighbourhood,E.ON UK plc (Metered Electricity Account),Electricity Bills,"1,652.25",330.45,Electricity Utilities
18/08/2017,City Developments and Neighbourhood,E.ON UK plc (Metered Electricity Account),Electricity Bills,"2,984.11",596.82,Electricity Utilities
25/08/2017,City Developments and Neighbourhood,Innes England,Electricity Bills,"1,127.71",225.54,Electricity Utilities
22/08/2017,City Developments and Neighbourhood,SCOTTISH AND SOUTHERN,Electricity Bills,"1,889.79",377.96,Electricity Utilities
22/08/2017,City Developments and Neighbourhood,SCOTTISH AND SOUTHERN,Electricity Bills,539.52,107.90,Electricity Utilities
22/08/2017,City Developments and Neighbourhood,SCOTTISH AND SOUTHERN,Electricity Bills,"9,635.43","1,927.09",Electricity Utilities
22/08/2017,City Developments and Neighbourhood,SCOTTISH AND SOUTHERN,Electricity Bills,"1,890.21",378.04,Electricity Utilities
22/08/2017,City Developments and Neighbourhood,SCOTTISH AND SOUTHERN,Electricity Bills,"2,492.82",498.56,Electricity Utilities
04/08/2017,Adults & Housing Department,Total Gas & Power Ltd,Electricity Bills,561.95,112.39,Electricity Utilities
04/08/2017,City Developments and Neighbourhood,Total Gas & Power Ltd,Electricity Bills,813.78,162.76,Electricity Utilities
04/08/2017,City Developments and Neighbourhood,Total Gas & Power Ltd,Electricity Bills,665.45,33.27,Electricity Utilities
04/08/2017,City Developments and Neighbourhood,Total Gas & Power Ltd,Electricity Bills,"1,150.74",57.54,Electricity Utilities
04/08/2017,City Developments and Neighbourhood,Total Gas & Power Ltd,Electricity Bills,"1,013.15",50.66,Electricity Utilities
04/08/2017,City Developments and Neighbourhood,Total Gas & Power Ltd,Electricity Bills,799.67,159.93,Electricity Utilities
04/08/2017,City Developments and Neighbourhood,Total Gas & Power Ltd,Electricity Bills,846.99,169.40,Electricity Utilities
04/08/2017,City Developments and Neighbourhood,Total Gas & Power Ltd,Electricity Bills,805.50,161.10,Electricity Utilities
04/08/2017,Education & Childrens Services,Total Gas & Power Ltd,Electricity Bills,631.00,126.20,Electricity Utilities
04/08/2017,City Developments and Neighbourhood,Total Gas & Power Ltd,Electricity Bills,"1,385.35",69.27,Electricity Utilities
04/08/2017,City Developments and Neighbourhood,Total Gas & Power Ltd,Electricity Bills,566.69,113.34,Electricity Utilities
02/08/2017,City Developments and Neighbourhood,Total Gas & Power Ltd,Electricity Bills,553.36,110.67,Electricity Utilities
04/08/2017,Adults & Housing Department,Total Gas & Power Ltd,Electricity Bills,"1,153.48",57.67,Electricity Utilities
04/08/2017,Education & Childrens Services,Total Gas & Power Ltd,Electricity Bills,825.71,41.29,Electricity Utilities
04/08/2017,City Developments and Neighbourhood,Total Gas & Power Ltd,Electricity Bills,959.72,191.94,Electricity Utilities
04/08/2017,City Developments and Neighbourhood,Total Gas & Power Ltd,Electricity Bills,523.48,104.70,Electricity Utilities
04/08/2017,City Developments and Neighbourhood,Total Gas & Power Ltd,Electricity Bills,617.08,123.42,Electricity Utilities
,Education & Childrens Services,Total Gas & Power Ltd,Electricity Bills,565.72,113.14,Electricity Utilities
04/08/2017,City Developments and Neighbourhood,Total Gas & Power Ltd,Electricity Bills,636.69,127.34,Electricity Utilities
04/08/2017,Adults & Housing Department,Total Gas & Power Ltd,Electricity Bills,"1,029.85",205.97,Electricity Utilities
04/08/2017,City Developments and Neighbourhood,Total Gas & Power Ltd,Electricity Bills,546.32,109.26,Electricity Utilities
04/08/2017,City Developments and Neighbourhood,Total Gas & Power Ltd,Electricity Bills,"1,073.81",214.76,Electricity Utilities
04/08/2017,City Developments and Neighbourhood,Total Gas & Power Ltd,Electricity Bills,520.52,26.03,Electricity Utilities
04/08/2017,City Developments and Neighbourhood,Total Gas & Power Ltd,Electricity Bills,774.44,154.89,Electricity Utilities
04/08/2017,City Developments and Neighbourhood,Total Gas & Power Ltd,Electricity Bills,"1,018.05",50.90,Electricity Utilities
04/08/2017,City Developments and Neighbourhood,Total Gas & Power Ltd,Electricity Bills,782.61,156.52,Electricity Utilities
,City Developments and Neighbourhood,Total Gas & Power Ltd,Electricity Bills,"16,246.19","3,249.24",Electricity Utilities
04/08/2017,City Developments and Neighbourhood,Total Gas & Power Ltd,Electricity Bills,708.89,141.78,Electricity Utilities
04/08/2017,City Developments and Neighbourhood,Total Gas & Power Ltd,Electricity Bills,"1,089.26",54.46,Electricity Utilities
04/08/2017,City Developments and Neighbourhood,Total Gas & Power Ltd,Electricity Bills,687.07,137.41,Electricity Utilities
04/08/2017,City Developments and Neighbourhood,Total Gas & Power Ltd,Electricity Bills,"1,746.60",349.32,Electricity Utilities
04/08/2017,City Developments and Neighbourhood,Total Gas & Power Ltd,Electricity Bills,662.84,132.57,Electricity Utilities
04/08/2017,City Developments and Neighbourhood,Total Gas & Power Ltd,Electricity Bills,"1,083.50",216.70,Electricity Utilities
04/08/2017,City Developments and Neighbourhood,Total Gas & Power Ltd,Electricity Bills,"1,123.78",224.76,Electricity Utilities
04/08/2017,City Developments and Neighbourhood,Total Gas & Power Ltd,Electricity Bills,981.89,196.38,Electricity Utilities
02/08/2017,City Developments and Neighbourhood,Total Gas & Power Ltd,Electricity Bills,546.42,109.28,Electricity Utilities
04/08/2017,City Developments and Neighbourhood,Total Gas & Power Ltd,Electricity Bills,531.53,106.31,Electricity Utilities
04/08/2017,City Developments and Neighbourhood,Total Gas & Power Ltd,Electricity Bills,"1,567.62",313.52,Electricity Utilities
,City Developments and Neighbourhood,Total Gas & Power Ltd,Electricity Bills,"61,774.62","12,354.92",Electricity Utilities
16/08/2017,City Developments and Neighbourhood,Construct Training Ltd,Training,"1,185.00",237.00,Employee Training
22/08/2017,City Developments and Neighbourhood,DASH (decent and safe homes),Training,650.00,0.00,Employee Training
15/08/2017,City Developments and Neighbourhood,Gas Training Solutions Ltd,Training,"1,000.00",200.00,Employee Training
25/08/2017,City Developments and Neighbourhood,J  COATES(GARAGE SERVICES) LTD,Training,652.50,130.50,Employee Training
25/08/2017,Education & Childrens Services,Junction 17 Defensive Driver Training Ltd,Training,805.00,0.00,Employee Training
25/08/2017,Education & Childrens Services,Junction 17 Defensive Driver Training Ltd,Training,"1,500.00",300.00,Employee Training
16/08/2017,Corporate Resources & Support,Leicester College,Training,500.00,0.00,Employee Training
29/08/2017,City Developments and Neighbourhood,Leicester College,Training,"2,076.00",0.00,Employee Training
29/08/2017,City Developments and Neighbourhood,Park Hill Training Ltd,Training,625.00,125.00,Employee Training
11/08/2017,City Developments and Neighbourhood,Park Hill Training Ltd,Training,592.00,118.40,Employee Training
22/08/2017,City Developments and Neighbourhood,Park Hill Training Ltd,Training,620.00,124.00,Employee Training
22/08/2017,City Developments and Neighbourhood,Park Hill Training Ltd,Training,620.00,124.00,Employee Training
18/08/2017,City Developments and Neighbourhood,Park Hill Training Ltd,Training,660.00,132.00,Employee Training
18/08/2017,City Developments and Neighbourhood,Park Hill Training Ltd,Training,660.00,132.00,Employee Training
09/08/2017,Education & Childrens Services,Red Balloon Training,Training,633.00,0.00,Employee Training
25/08/2017,City Developments and Neighbourhood,S & T Services UK Ltd,Training,"2,000.00",400.00,Employee Training
,Education & Childrens Services,South London and Maudsley - NHS Foundation Trust,Training,"1,000.00",0.00,Employee Training
,Education & Childrens Services,South London and Maudsley - NHS Foundation Trust,Training,"1,000.00",0.00,Employee Training
02/08/2017,City Developments and Neighbourhood,The Dyslexia Association,Training,960.00,0.00,Employee Training
23/08/2017,,Capita Managed IT Solutions Ltd,Engineering & Research & Technology Based Services,"5,942.00","1,188.40",Engineering & Research & Technology Based Services
23/08/2017,,Capita Managed IT Solutions Ltd,Engineering & Research & Technology Based Services,"5,942.00","1,188.40",Engineering & Research & Technology Based Services
23/08/2017,,Capita Managed IT Solutions Ltd,Engineering & Research & Technology Based Services,"5,942.00","1,188.40",Engineering & Research & Technology Based Services
23/08/2017,,Capita Managed IT Solutions Ltd,Engineering & Research & Technology Based Services,"5,942.00","1,188.40",Engineering & Research & Technology Based Services
23/08/2017,,Capita Managed IT Solutions Ltd,Engineering & Research & Technology Based Services,"5,942.00","1,188.40",Engineering & Research & Technology Based Services
23/08/2017,,Capita Managed IT Solutions Ltd,Engineering & Research & Technology Based Services,"5,942.00","1,188.40",Engineering & Research & Technology Based Services
11/08/2017,,North Midland Construction Plc,Engineering & Research & Technology Based Services,"66,004.07","13,200.81",Engineering & Research & Technology Based Services
02/08/2017,,Trueform Engineering Ltd,Engineering Consultancy / Consultants Services,"5,975.40","1,195.08",Engineering & Research & Technology Based Services
23/08/2017,,Trueform Engineering Ltd,Engineering Consultancy / Consultants Services,"3,345.58",669.12,Engineering & Research & Technology Based Services
25/08/2017,City Developments and Neighbourhood,CET STRUCTURES LTD T/A CET,Engineering / Research / Technology / Science Services,"1,217.50",243.50,Engineering / Research / Technology / Science Services
18/08/2017,City Developments and Neighbourhood,CET STRUCTURES LTD T/A CET,Engineering / Research / Technology / Science Services,"2,062.50",412.50,Engineering / Research / Technology / Science Services
11/08/2017,City Developments and Neighbourhood,Leicestershire County Council,Research / Data Collection / Surveys / Sampling,"1,350.00",270.00,Engineering / Research / Technology / Science Services
11/08/2017,City Developments and Neighbourhood,Leicestershire County Council,Research / Data Collection / Surveys / Sampling,810.00,162.00,Engineering / Research / Technology / Science Services
11/08/2017,City Developments and Neighbourhood,Leicestershire County Council,Research / Data Collection / Surveys / Sampling,810.00,162.00,Engineering / Research / Technology / Science Services
,Adults & Housing Department,LIquidlogic Ltd,Engineering / Research / Technology / Science Services,"25,000.00","5,000.00",Engineering / Research / Technology / Science Services
16/08/2017,City Developments and Neighbourhood,Readings Property Group Limited,Engineering / Research / Technology / Science Services,550.00,110.00,Engineering / Research / Technology / Science Services
30/08/2017,City Developments and Neighbourhood,Readings Property Group Limited,Engineering / Research / Technology / Science Services,770.00,154.00,Engineering / Research / Technology / Science Services
,City Developments and Neighbourhood,Readings Property Group Limited,Engineering / Research / Technology / Science Services,660.00,132.00,Engineering / Research / Technology / Science Services
15/08/2017,City Developments and Neighbourhood,Readings Property Group Limited,Engineering / Research / Technology / Science Services,"2,605.00",521.00,Engineering / Research / Technology / Science Services
15/08/2017,City Developments and Neighbourhood,Readings Property Group Limited,Engineering / Research / Technology / Science Services,800.00,160.00,Engineering / Research / Technology / Science Services
25/08/2017,City Developments and Neighbourhood,Readings Property Group Limited,Engineering / Research / Technology / Science Services,"1,320.00",264.00,Engineering / Research / Technology / Science Services
,City Developments and Neighbourhood,We Do Powder Coating Ltd,Engineering / Research / Technology / Science Services,810.75,162.15,Engineering / Research / Technology / Science Services
,City Developments and Neighbourhood,We Do Powder Coating Ltd,Engineering / Research / Technology / Science Services,740.25,148.05,Engineering / Research / Technology / Science Services
,City Developments and Neighbourhood,Beaumont Shopping Centre,Environmental Services,744.00,148.80,Environment Related Services
08/08/2017,City Developments and Neighbourhood,Biffa Waste Services Ltd,Environmental Services,"1,005.00",201.00,Environment Related Services
22/08/2017,City Developments and Neighbourhood,Biffa Waste Services Ltd,Environmental Services,908.00,181.60,Environment Related Services
18/08/2017,Education & Childrens Services,Biffa Waste Services Ltd,Environmental Services,521.48,104.30,Environment Related Services
,City Developments and Neighbourhood,Biffa Waste Services Ltd,Environmental Services,888.16,177.63,Environment Related Services
30/08/2017,City Developments and Neighbourhood,Central Construction Services Ltd,Environmental Services,570.00,114.00,Environment Related Services
,City Developments and Neighbourhood,Central Construction Services Ltd,Environmental Services,"1,920.00",384.00,Environment Related Services
,City Developments and Neighbourhood,Cleansing Service Group Ltd,Environmental Services,"2,146.00",429.20,Environment Related Services
04/08/2017,City Developments and Neighbourhood,Environmental Husbandry Ltd,Environmental Services,"12,840.00","2,568.00",Environment Related Services
18/08/2017,Education & Childrens Services,JG PESTCONTROL,Pest Control,949.00,189.80,Environment Related Services
16/08/2017,City Developments and Neighbourhood,Ramora Ltd,Environmental Services,"6,300.00","1,260.00",Environment Related Services
09/08/2017,City Developments and Neighbourhood,Ramora Ltd,Environmental Services,"5,250.00","1,050.00",Environment Related Services
08/08/2017,City Developments and Neighbourhood,Sapphire Energy Recovery,Environmental Services,"13,331.55","2,666.31",Environment Related Services
01/08/2017,City Developments and Neighbourhood,Wastecycle Ltd,Tipping charges,697.60,139.52,Environment Related Services
25/08/2017,City Developments and Neighbourhood,Wastecycle Ltd,Environmental Services,"4,898.46",979.69,Environment Related Services
11/08/2017,City Developments and Neighbourhood,Wastecycle Ltd,Tipping charges,634.38,126.88,Environment Related Services
18/08/2017,City Developments and Neighbourhood,Wastecycle Ltd,Environmental Services,700.00,140.00,Environment Related Services
25/08/2017,City Developments and Neighbourhood,Wastecycle Ltd,Environmental Services,"3,511.86",702.37,Environment Related Services
01/08/2017,City Developments and Neighbourhood,Wastecycle Ltd,Tipping charges,915.60,183.12,Environment Related Services
,City Developments and Neighbourhood,Ashtead Plant Hire Co Ltd,Equipment Hire/Lease,"1,427.47",285.49,Equipment Hire / Lease
25/08/2017,City Developments and Neighbourhood,BANNER PLANT LIMITED,Plant Hire/Lease,"1,312.50",262.50,Equipment Hire / Lease
25/08/2017,City Developments and Neighbourhood,BANNER PLANT LIMITED,Plant Hire/Lease,"1,816.50",363.30,Equipment Hire / Lease
25/08/2017,City Developments and Neighbourhood,BANNER PLANT LIMITED,Plant Hire/Lease,540.00,108.00,Equipment Hire / Lease
25/08/2017,City Developments and Neighbourhood,BANNER PLANT LIMITED,Plant Hire/Lease,823.00,164.60,Equipment Hire / Lease
25/08/2017,City Developments and Neighbourhood,BANNER PLANT LIMITED,Plant Hire/Lease,"1,942.50",388.50,Equipment Hire / Lease
25/08/2017,City Developments and Neighbourhood,BANNER PLANT LIMITED,Plant Hire/Lease,"1,207.00",241.40,Equipment Hire / Lease
02/08/2017,City Developments and Neighbourhood,De Lage Landen Leasing Ltd t/a Oc� Finance,Photocopier lease / rental,635.55,127.11,Equipment Hire / Lease
25/08/2017,City Developments and Neighbourhood,Gap Group Ltd,Plant Hire/Lease,840.00,168.00,Equipment Hire / Lease
18/08/2017,City Developments and Neighbourhood,Hawthorn Theatrical Ltd,Equipment Hire/Lease,821.16,164.23,Equipment Hire / Lease
,Adults & Housing Department,Leicester Sound & Lighting,Equipment Hire/Lease,"1,300.00",260.00,Equipment Hire / Lease
29/08/2017,City Developments and Neighbourhood,Leicester YMCA,Equipment Hire/Lease,"2,000.00",0.00,Equipment Hire / Lease
25/08/2017,City Developments and Neighbourhood,ND Brown Ltd,Equipment Hire/Lease,"1,627.50",325.50,Equipment Hire / Lease
09/08/2017,City Developments and Neighbourhood,Pitney Bowes Finance Ltd,Equipment Hire/Lease,"1,214.71",242.94,Equipment Hire / Lease
18/08/2017,City Developments and Neighbourhood,Pitney Bowes Ltd t/a Postage By Phone-Pitney Bowes,Equipment Hire/Lease,"1,683.18",336.64,Equipment Hire / Lease
25/08/2017,City Developments and Neighbourhood,Quinto Crane & Plant Ltd,Equipment Hire/Lease,"1,350.00",270.00,Equipment Hire / Lease
25/08/2017,City Developments and Neighbourhood,S Tysoe Installations,Equipment Hire/Lease,"1,050.00",210.00,Equipment Hire / Lease
08/08/2017,City Developments and Neighbourhood,Thistle Loo Hire,Equipment Hire/Lease,900.00,180.00,Equipment Hire / Lease
,City Developments and Neighbourhood,Upstage Theatre Supplies Ltd,Equipment Hire/Lease,788.00,157.60,Equipment Hire / Lease
25/08/2017,Education & Childrens Services,ADT Fire & Security plc,Equipment Purchase,"13,694.00","2,738.80",Equipment Purchase
,Education & Childrens Services,Arco Ltd,Equipment Purchase,532.38,106.48,Equipment Purchase
29/08/2017,Adults & Housing Department,ASA Awards Scheme,Equipment Purchased for Resale,522.93,104.59,Equipment Purchase
08/08/2017,,ATG Access Ltd,Equipment Purchase,"3,198.95",639.79,Equipment Purchase
16/08/2017,,Babington Community  College (Academy),Equipment Purchase,"48,423.27",0.00,Equipment Purchase
02/08/2017,City Developments and Neighbourhood,Barhale Construction Plc T/a BCS Group,Equipment Purchase,"1,111.70",222.34,Equipment Purchase
,Education & Childrens Services,Bluestone Catering Solultions Ltd,Catering Equipment Purchase,"26,220.04","5,244.01",Equipment Purchase
,Education & Childrens Services,Bluestone Catering Solultions Ltd,Equipment Purchase,625.00,125.00,Equipment Purchase
,Education & Childrens Services,Bluestone Catering Solultions Ltd,Catering Equipment Purchase,"1,696.94",339.39,Equipment Purchase
,Education & Childrens Services,Bluestone Catering Solultions Ltd,Catering Equipment Purchase,847.41,169.48,Equipment Purchase
25/08/2017,City Developments and Neighbourhood,Border Barrier systems ltd,Equipment Purchase,"8,510.00","1,702.00",Equipment Purchase
25/08/2017,Adults & Housing Department,British Gymnastics,Equipment Purchased for Resale,"1,105.50",221.10,Equipment Purchase
,City Developments and Neighbourhood,Broxap Ltd,Equipment Purchase,741.00,148.20,Equipment Purchase
09/08/2017,City Developments and Neighbourhood,Bunzl UK Ltd t/a Bunzl Catering Supplies,Equipment Purchase,582.65,116.53,Equipment Purchase
30/08/2017,City Developments and Neighbourhood,Canford Audio Plc,Equipment Purchase,980.80,196.16,Equipment Purchase
18/08/2017,City Developments and Neighbourhood,Diatech Scotland Ltd.,Equipment Purchase,"1,050.02",210.00,Equipment Purchase
18/08/2017,City Developments and Neighbourhood,Diatech Scotland Ltd.,Equipment Purchase,"1,238.15",247.63,Equipment Purchase
18/08/2017,City Developments and Neighbourhood,Diatech Scotland Ltd.,Equipment Purchase,"1,164.63",232.93,Equipment Purchase
22/08/2017,Education & Childrens Services,Digiteck Ltd,Equipment Purchase,550.00,110.00,Equipment Purchase
,City Developments and Neighbourhood,Entwistle & Joynt Ltd T/a North West Tools,Equipment Purchase,690.00,138.00,Equipment Purchase
25/08/2017,City Developments and Neighbourhood,Entwistle & Joynt Ltd T/a North West Tools,Equipment Purchase,"1,881.00",376.20,Equipment Purchase
22/08/2017,City Developments and Neighbourhood,Entwistle & Joynt Ltd T/a North West Tools,Equipment Purchase,589.00,117.80,Equipment Purchase
18/08/2017,City Developments and Neighbourhood,Entwistle & Joynt Ltd T/a North West Tools,Equipment Purchase,635.00,127.00,Equipment Purchase
25/08/2017,City Developments and Neighbourhood,Entwistle & Joynt Ltd T/a North West Tools,Equipment Purchase,635.00,127.00,Equipment Purchase
,City Developments and Neighbourhood,Entwistle & Joynt Ltd T/a North West Tools,Equipment Purchase,"1,388.00",277.60,Equipment Purchase
,City Developments and Neighbourhood,ESPO,Equipment Purchase,851.10,170.22,Equipment Purchase
08/08/2017,Adults & Housing Department,ESPO,Equipment Purchase,"1,121.66",224.33,Equipment Purchase
16/08/2017,City Developments and Neighbourhood,ESPO,Equipment Purchase,805.50,161.10,Equipment Purchase
23/08/2017,City Developments and Neighbourhood,ESPO,Equipment Purchase,529.72,105.94,Equipment Purchase
30/08/2017,City Developments and Neighbourhood,ESPO,Equipment Purchase,"1,795.53",359.11,Equipment Purchase
30/08/2017,City Developments and Neighbourhood,ESPO,Equipment Purchase,974.08,194.82,Equipment Purchase
,Adults & Housing Department,ESPO,Equipment Purchase,774.02,154.80,Equipment Purchase
25/08/2017,City Developments and Neighbourhood,ESPO,Equipment Purchase,879.23,175.85,Equipment Purchase
08/08/2017,Education & Childrens Services,ESPO,Equipment Purchase,"1,277.29",255.46,Equipment Purchase
08/08/2017,City Developments and Neighbourhood,ESPO,Equipment Purchase,748.74,149.75,Equipment Purchase
11/08/2017,City Developments and Neighbourhood,ESPO,Equipment Purchase,866.68,173.34,Equipment Purchase
,City Developments and Neighbourhood,ESPO,Equipment Purchase,655.00,131.00,Equipment Purchase
15/08/2017,City Developments and Neighbourhood,Euronova Ltd,Security Equipment,"1,536.50",307.30,Equipment Purchase
,City Developments and Neighbourhood,Furnitubes International Ltd,Equipment Purchase,998.00,199.60,Equipment Purchase
23/08/2017,City Developments and Neighbourhood,GB Sport & Leisure UK Ltd,Equipment Purchase,"2,274.25",454.85,Equipment Purchase
23/08/2017,City Developments and Neighbourhood,GDMS (UK),Cleaning Equipment Purchase,"1,195.00",239.00,Equipment Purchase
04/08/2017,City Developments and Neighbourhood,Gelpack Excelsior Ltd,Cleaning Equipment Purchase,"4,234.00",846.80,Equipment Purchase
23/08/2017,City Developments and Neighbourhood,Grafton Merchanting GB Ltd trading as Jackson Buildbase Grantham,Equipment Purchase,765.00,153.00,Equipment Purchase
23/08/2017,City Developments and Neighbourhood,Grafton Merchanting GB Ltd trading as Jackson Buildbase Grantham,Equipment Purchase,765.00,153.00,Equipment Purchase
23/08/2017,City Developments and Neighbourhood,Grafton Merchanting GB Ltd trading as Jackson Buildbase Grantham,Equipment Purchase,765.00,153.00,Equipment Purchase
15/08/2017,City Developments and Neighbourhood,H&B Specialist Supplies Ltd,Equipment Purchase,576.00,115.20,Equipment Purchase
04/08/2017,City Developments and Neighbourhood,Hags-SMP Ltd,Equipment Purchase,"2,509.68",501.94,Equipment Purchase
,Adults & Housing Department,Jaspal Singh Bhamara T/A  D T F Distributors,Equipment Purchase,598.00,119.60,Equipment Purchase
25/08/2017,City Developments and Neighbourhood,Keltic Ltd,Equipment Purchase,988.20,197.64,Equipment Purchase
15/08/2017,City Developments and Neighbourhood,Kingfisher Direct Ltd,Cleaning Equipment Purchase,"3,232.20",646.44,Equipment Purchase
04/08/2017,City Developments and Neighbourhood,Leicester Outdoor Pursuits Centre,PPE / Protective Clothing,560.04,112.01,Equipment Purchase
11/08/2017,,Millennium Quest Ltd,Equipment Purchase,"1,035.00",207.00,Equipment Purchase
25/08/2017,Adults & Housing Department,Northgate Public Services (uk) Ltd,Equipment Purchase,"2,074.00",414.80,Equipment Purchase
02/08/2017,Adults & Housing Department,Northgate Public Services (uk) Ltd,Equipment Purchase,"1,786.80",357.36,Equipment Purchase
25/08/2017,City Developments and Neighbourhood,PC Environmental Ltd,Security Equipment,980.00,196.00,Equipment Purchase
,Education & Childrens Services,Pearson Education Ltd t/a EDI,Equipment Purchase,619.35,123.87,Equipment Purchase
,Education & Childrens Services,Pearson Education Ltd t/a EDI,Equipment Purchase,722.90,0.00,Equipment Purchase
,City Developments and Neighbourhood,Peter Savage Limited,Equipment Purchase,576.10,115.22,Equipment Purchase
,City Developments and Neighbourhood,Peter Savage Limited,Equipment Purchase,"1,061.90",212.38,Equipment Purchase
,City Developments and Neighbourhood,Peter Savage Limited,Equipment Purchase,985.70,197.14,Equipment Purchase
,City Developments and Neighbourhood,Platts Harris Ltd,Equipment Purchase,"4,366.00",873.20,Equipment Purchase
,City Developments and Neighbourhood,Platts Harris Ltd,Equipment Purchase,"2,907.40",581.48,Equipment Purchase
11/08/2017,City Developments and Neighbourhood,Playdale Playgrounds Ltd,Equipment Purchase,"2,148.26",429.65,Equipment Purchase
,City Developments and Neighbourhood,Reactec Ltd,Equipment Purchase,"11,568.16","2,313.63",Equipment Purchase
16/08/2017,,Rushey Mead Academy,Equipment Purchase,"50,104.75",0.00,Equipment Purchase
11/08/2017,City Developments and Neighbourhood,Sutcliffe Play Limited,Equipment Purchase,509.16,101.83,Equipment Purchase
08/08/2017,City Developments and Neighbourhood,Sutcliffe Play Limited,Equipment Purchase,"1,473.89",294.78,Equipment Purchase
18/08/2017,City Developments and Neighbourhood,Sutcliffe Play Limited,Equipment Purchase,"40,775.80","8,155.16",Equipment Purchase
18/08/2017,City Developments and Neighbourhood,Taylor Instrument Services Ltd,Equipment Purchase,"1,582.00",316.40,Equipment Purchase
18/08/2017,City Developments and Neighbourhood,Taylor Instrument Services Ltd,Equipment Purchase,545.00,109.00,Equipment Purchase
,City Developments and Neighbourhood,Terratruck Distrbution Services Ltd,Equipment Purchase,848.25,169.65,Equipment Purchase
,City Developments and Neighbourhood,Terratruck Distrbution Services Ltd,Equipment Purchase,"2,250.00",450.00,Equipment Purchase
,City Developments and Neighbourhood,Terratruck Distrbution Services Ltd,Equipment Purchase,507.50,101.50,Equipment Purchase
22/08/2017,City Developments and Neighbourhood,Travis Perkins Trading Co Ltd,Equipment Purchase,"5,500.00",0.00,Equipment Purchase
11/08/2017,City Developments and Neighbourhood,Travis Perkins Trading Co Ltd,Equipment Purchase,"4,500.00",900.00,Equipment Purchase
22/08/2017,City Developments and Neighbourhood,Travis Perkins Trading Co Ltd,Equipment Purchase,505.00,101.00,Equipment Purchase
25/08/2017,City Developments and Neighbourhood,Tuffbau Limited,Equipment Purchase,750.00,150.00,Equipment Purchase
08/08/2017,City Developments and Neighbourhood,Tyco Integrated Fire & Security,Equipment Purchase,"1,440.00",288.00,Equipment Purchase
,Corporate Resources & Support,VP Bastion Ltd,Equipment Purchase,"2,191.70",438.34,Equipment Purchase
18/08/2017,City Developments and Neighbourhood,Westbury Industrial Supplies Ltd,PPE / Protective Clothing,920.00,184.00,Equipment Purchase
,Education & Childrens Services,Westbury Industrial Supplies Ltd,PPE / Protective Clothing,"1,159.45",231.89,Equipment Purchase
,City Developments and Neighbourhood,Westbury Industrial Supplies Ltd,Equipment Purchase,543.00,108.60,Equipment Purchase
,City Developments and Neighbourhood,Westbury Industrial Supplies Ltd,Equipment Purchase,501.44,100.29,Equipment Purchase
18/08/2017,City Developments and Neighbourhood,Wicksteed Leisure Ltd,Equipment Purchase,"2,280.00",456.00,Equipment Purchase
,Adults & Housing Department,Zoggs International Limited,Equipment Purchased for Resale,577.20,115.44,Equipment Purchase
18/08/2017,Adults & Housing Department,Zoggs International Limited,Equipment Purchased for Resale,955.80,191.16,Equipment Purchase
23/08/2017,Adults & Housing Department,Zoggs International Limited,Equipment Purchased for Resale,702.00,140.40,Equipment Purchase
15/08/2017,City Developments and Neighbourhood,Ace Cleaning Company (Leicester) Ltd,External Building Cleaning Contractors,"5,368.00","1,073.60",External Building Cleaning Contractors
15/08/2017,City Developments and Neighbourhood,Ace Cleaning Company (Leicester) Ltd,External Building Cleaning Contractors,"1,380.46",276.09,External Building Cleaning Contractors
,Education & Childrens Services,Ace Cleaning Company (Leicester) Ltd,External Building Cleaning Contractors,"1,104.00",220.80,External Building Cleaning Contractors
18/08/2017,Education & Childrens Services,Ace Cleaning Company (Leicester) Ltd,External Building Cleaning Contractors,"2,004.00",400.80,External Building Cleaning Contractors
,Education & Childrens Services,Ace Cleaning Company (Leicester) Ltd,External Building Cleaning Contractors,640.00,128.00,External Building Cleaning Contractors
15/08/2017,City Developments and Neighbourhood,Ace Cleaning Company (Leicester) Ltd,External Building Cleaning Contractors,"1,509.60",301.92,External Building Cleaning Contractors
18/08/2017,Education & Childrens Services,Ace Cleaning Company (Leicester) Ltd,External Building Cleaning Contractors,722.00,144.40,External Building Cleaning Contractors
22/08/2017,Education & Childrens Services,Ace Cleaning Company (Leicester) Ltd,External Building Cleaning Contractors,888.00,177.60,External Building Cleaning Contractors
18/08/2017,Education & Childrens Services,Ace Cleaning Company (Leicester) Ltd,External Building Cleaning Contractors,774.00,154.80,External Building Cleaning Contractors
15/08/2017,City Developments and Neighbourhood,Grays Coffee Shop & Kitchen,External Catering Charges,510.90,102.18,External Catering Charges
29/08/2017,City Developments and Neighbourhood,Grays Coffee Shop & Kitchen,External Catering Charges,"2,295.00",459.00,External Catering Charges
,Corporate Resources & Support,Po Boys Ltd t/a Taste Incorporated,External Catering Charges,530.00,106.00,External Catering Charges
,Education & Childrens Services,Po Boys Ltd t/a Taste Incorporated,External Catering Charges,560.00,112.00,External Catering Charges
11/08/2017,City Developments and Neighbourhood,J.D & A Barker t/a College Garth Kennels,Farming and Fishing and Forestry and Wildlife Contracting Services,"4,073.00",814.60,Farming & Fishing & Forestry & Wildlife Services
04/08/2017,Corporate Finance,KPMG,External Auditor Fees,"51,460.00","10,292.00",Financial & Insurance Services
09/08/2017,Corporate Resources & Support,Rogers Spencer Ltd,Financial Services,"1,625.00",325.00,Financial & Insurance Services
22/08/2017,City Developments and Neighbourhood,Sgs Uk Ltd,Fees Adjusters,890.00,178.00,Financial & Insurance Services
04/08/2017,,A Hull Electrical Ltd,Fixtures & Fittings,"8,887.08","1,777.42",Fixtures & Fittings
,,A Hull Electrical Ltd,Fixtures & Fittings,"14,003.69","2,800.74",Fixtures & Fittings
04/08/2017,,A Hull Electrical Ltd,Fixtures & Fittings,"18,617.20","3,723.44",Fixtures & Fittings
,,A Hull Electrical Ltd,Fixtures & Fittings,"7,647.42","1,529.48",Fixtures & Fittings
04/08/2017,,A Hull Electrical Ltd,Fixtures & Fittings,"13,136.32","2,627.26",Fixtures & Fittings
,,A Hull Electrical Ltd,Fixtures & Fittings,"18,409.38","3,681.88",Fixtures & Fittings
,,A Hull Electrical Ltd,Fixtures & Fittings,"21,425.21","4,285.04",Fixtures & Fittings
18/08/2017,,AT Services Ltd,Fixtures & Fittings,"49,564.29","9,912.86",Fixtures & Fittings
11/08/2017,,C V Lane & Son,Fixtures & Fittings,"14,005.57","2,801.11",Fixtures & Fittings
23/08/2017,,Complete Detection Systems Ltd,Fixtures & Fittings,"26,469.94","5,293.99",Fixtures & Fittings
18/08/2017,,Energy Saving Lighting (UK) Ltd,Fixtures & Fittings,"3,455.00",691.00,Fixtures & Fittings
22/08/2017,,Energy Saving Lighting (UK) Ltd,Fixtures & Fittings,"2,980.00",596.00,Fixtures & Fittings
18/08/2017,,Energy Saving Lighting (UK) Ltd,Fixtures & Fittings,885.00,177.00,Fixtures & Fittings
22/08/2017,,Energy Saving Lighting (UK) Ltd,Fixtures & Fittings,"9,125.00","1,825.00",Fixtures & Fittings
08/08/2017,,Gap Property Services (Leicester) Ltd,Fixtures & Fittings,"33,847.71","6,769.54",Fixtures & Fittings
08/08/2017,,Gap Property Services (Leicester) Ltd,Fixtures & Fittings,"14,387.92","2,877.58",Fixtures & Fittings
08/08/2017,,Gap Property Services (Leicester) Ltd,Fixtures & Fittings,"35,614.56","7,122.91",Fixtures & Fittings
08/08/2017,,Gap Property Services (Leicester) Ltd,Fixtures & Fittings,"3,236.35",647.27,Fixtures & Fittings
18/08/2017,,Gap Property Services (Leicester) Ltd,Fixtures & Fittings,"147,068.67","29,413.73",Fixtures & Fittings
04/08/2017,,John greasley Ltd,Fixtures & Fittings,"24,874.75","4,974.95",Fixtures & Fittings
11/08/2017,,Oliveti Construction Ltd,Fixtures & Fittings,"4,578.05",915.61,Fixtures & Fittings
11/08/2017,,Oliveti Construction Ltd,Fixtures & Fittings,"7,304.18","1,460.84",Fixtures & Fittings
11/08/2017,,Oliveti Construction Ltd,Fixtures & Fittings,"24,570.94","4,914.19",Fixtures & Fittings
11/08/2017,,Stearn Electric Co Ltd,Fixtures & Fittings,"2,014.65",402.93,Fixtures & Fittings
23/08/2017,,Stearn Electric Co Ltd,Fixtures & Fittings,"1,333.76",266.75,Fixtures & Fittings
30/08/2017,,Stearn Electric Co Ltd,Fixtures & Fittings,"3,150.00",630.00,Fixtures & Fittings
11/08/2017,,Stearn Electric Co Ltd,Fixtures & Fittings,"3,290.00",658.00,Fixtures & Fittings
04/08/2017,,Stearn Electric Co Ltd,Fixtures & Fittings,"9,586.40","1,917.28",Fixtures & Fittings
11/08/2017,,Travis Perkins Trading Co Ltd,Fixtures & Fittings,"5,555.16","1,111.03",Fixtures & Fittings
11/08/2017,,Travis Perkins Trading Co Ltd,Fixtures & Fittings,"22,339.29","4,467.86",Fixtures & Fittings
11/08/2017,,Travis Perkins Trading Co Ltd,Fixtures & Fittings,"18,656.88","3,731.38",Fixtures & Fittings
11/08/2017,,Travis Perkins Trading Co Ltd,Fixtures & Fittings,"8,467.60","1,693.52",Fixtures & Fittings
18/08/2017,,Uk Gas Services Ltd,Fixtures & Fittings,"112,740.09","22,548.02",Fixtures & Fittings
04/08/2017,,William Bailey (Ripley) Ltd,Fixtures & Fittings,"18,976.82","3,795.36",Fixtures & Fittings
08/08/2017,Education & Childrens Services,ESPO,Responsive,875.00,175.00,Fixtures & Fittings Purchases
15/08/2017,Adults & Housing Department,Advance Housing & Support Ltd.,Floating Support - ILS,"5,840.52",0.00,Floating Support - ILS
11/08/2017,Corporate Resources & Support,Expert in Mind Ltd,Coroners Inquest Costs,"1,755.00",351.00,Funeral Services
,Corporate Resources & Support,MCS Funeral Services Ltd (inc. t/a Asian Funeral Company),Removal Of Bodies,650.00,130.00,Funeral Services
,Corporate Resources & Support,MCS Funeral Services Ltd (inc. t/a Asian Funeral Company),Removal Of Bodies,650.00,130.00,Funeral Services
02/08/2017,Corporate Resources & Support,MCS Funeral Services Ltd (inc. t/a Asian Funeral Company),Removal Of Bodies,650.00,130.00,Funeral Services
29/08/2017,City Developments and Neighbourhood,MCS Funeral Services Ltd (inc. t/a Asian Funeral Company),Welfare Funeral Costs,"1,234.00",0.00,Funeral Services
02/08/2017,Corporate Resources & Support,MCS Funeral Services Ltd (inc. t/a Asian Funeral Company),Removal Of Bodies,650.00,130.00,Funeral Services
,City Developments and Neighbourhood,MCS Funeral Services Ltd (inc. t/a Asian Funeral Company),Welfare Funeral Costs,"1,234.00",0.00,Funeral Services
,Corporate Resources & Support,MCS Funeral Services Ltd (inc. t/a Asian Funeral Company),Removal Of Bodies,650.00,130.00,Funeral Services
08/08/2017,City Developments and Neighbourhood,MCS Funeral Services Ltd (inc. t/a Asian Funeral Company),Welfare Funeral Costs,"1,398.00",0.00,Funeral Services
02/08/2017,Corporate Resources & Support,MCS Funeral Services Ltd (inc. t/a Asian Funeral Company),Removal Of Bodies,650.00,130.00,Funeral Services
08/08/2017,City Developments and Neighbourhood,MCS Funeral Services Ltd (inc. t/a Asian Funeral Company),Welfare Funeral Costs,"1,398.00",0.00,Funeral Services
,City Developments and Neighbourhood,MCS Funeral Services Ltd (inc. t/a Asian Funeral Company),Welfare Funeral Costs,"1,234.00",0.00,Funeral Services
,Corporate Resources & Support,MCS Funeral Services Ltd (inc. t/a Asian Funeral Company),Removal Of Bodies,650.00,130.00,Funeral Services
02/08/2017,Corporate Resources & Support,MCS Funeral Services Ltd (inc. t/a Asian Funeral Company),Removal Of Bodies,650.00,130.00,Funeral Services
08/08/2017,Corporate Resources & Support,Richard Ward Funeral Services Ltd,Removal Of Bodies,"1,355.00",0.00,Funeral Services
25/08/2017,Corporate Resources & Support,University Hospitals of Leicester NHS Trust,Mortuary Services,"12,492.04","2,498.41",Funeral Services
25/08/2017,Corporate Resources & Support,University Hospitals of Leicester NHS Trust,Mortuary Toxicology costs,"8,181.92","1,636.38",Funeral Services
25/08/2017,Corporate Resources & Support,University Hospitals of Leicester NHS Trust,Genetic Services,500.85,100.17,Funeral Services
23/08/2017,City Developments and Neighbourhood,Broxap Ltd,Furniture Purchase,"2,490.00",498.00,Furniture Purchase
,Corporate Resources & Support,Leicester Office Furnishers,Furniture Purchase,712.00,142.40,Furniture Purchase
,City Developments and Neighbourhood,Leicester Office Furnishers,Furniture Purchase,"1,242.00",248.40,Furniture Purchase
,City Developments and Neighbourhood,Leicester Office Furnishers,Furniture Purchase,882.00,176.40,Furniture Purchase
,Education & Childrens Services,Leicester Office Furnishers,Furniture Purchase,580.00,116.00,Furniture Purchase
,City Developments and Neighbourhood,Leicester Office Furnishers,Furniture Purchase,"1,105.00",221.00,Furniture Purchase
23/08/2017,City Developments and Neighbourhood,Leicester Office Furnishers,Furniture Purchase,720.00,144.00,Furniture Purchase
,,BT PLC - Openreach,Gas Utilities,"1,081.65",216.33,Gas and Electricity Utilities
11/08/2017,,Cadent Gas Limited,Gas Utilities,"17,602.78","3,520.56",Gas and Electricity Utilities
,,Open Reach Bt Plc,Gas Utilities,"6,455.91","1,291.18",Gas and Electricity Utilities
16/08/2017,,Western Power Distribution PLC,Electricity Utilities,"40,477.00","8,095.40",Gas and Electricity Utilities
,City Developments and Neighbourhood,Total Gas & Power Ltd,Gas Bills,"18,408.19",920.41,Gas Utilities
,City Developments and Neighbourhood,Total Gas & Power Ltd,Gas Bills,"1,875.49",375.10,Gas Utilities
22/08/2017,City Developments and Neighbourhood,Total Gas & Power Ltd,Gas Bills,"19,874.55",993.73,Gas Utilities
,City Developments and Neighbourhood,Total Gas & Power Ltd,Gas Bills,"1,191.69",238.34,Gas Utilities
,City Developments and Neighbourhood,Total Gas & Power Ltd,Gas Bills,"1,573.68",78.68,Gas Utilities
,Adults & Housing Department,Total Gas & Power Ltd,Gas Bills,"2,441.09",488.22,Gas Utilities
,Adults & Housing Department,Total Gas & Power Ltd,Gas Bills,"2,185.62",437.12,Gas Utilities
,City Developments and Neighbourhood,Total Gas & Power Ltd,Gas Bills,"1,280.08",256.02,Gas Utilities
,City Developments and Neighbourhood,Total Gas & Power Ltd,Gas Bills,"42,524.94","2,126.25",Gas Utilities
,City Developments and Neighbourhood,Total Gas & Power Ltd,Gas Bills,800.79,40.04,Gas Utilities
,City Developments and Neighbourhood,Total Gas & Power Ltd,Gas Bills,984.26,196.85,Gas Utilities
,City Developments and Neighbourhood,Total Gas & Power Ltd,Gas Bills,749.62,37.48,Gas Utilities
,City Developments and Neighbourhood,Total Gas & Power Ltd,Gas Bills,"10,409.66",520.48,Gas Utilities
,Adults & Housing Department,Total Gas & Power Ltd,Gas Bills,547.49,27.37,Gas Utilities
,Adults & Housing Department,Total Gas & Power Ltd,Gas Bills,"1,259.73",251.95,Gas Utilities
,City Developments and Neighbourhood,Total Gas & Power Ltd,Gas Bills,699.92,139.98,Gas Utilities
,City Developments and Neighbourhood,Total Gas & Power Ltd,Gas Bills,"15,572.81",778.64,Gas Utilities
,Adults & Housing Department,Total Gas & Power Ltd,Gas Bills,"3,116.69",155.83,Gas Utilities
,Adults & Housing Department,Total Gas & Power Ltd,Gas Bills,"1,418.11",283.62,Gas Utilities
25/08/2017,City Developments and Neighbourhood,City of Leic. Hortic. Society,Community Cohesion Fund,"2,000.00",0.00,Grant Funded Projects
,Corporate Resources & Support,JC Furniture Warehouse,Bulk Mattresses,"3,339.00",667.80,Grant Payments
15/08/2017,Corporate Resources & Support,JC Furniture Warehouse,Bulk Mattresses,"2,060.00",412.00,Grant Payments
15/08/2017,Corporate Resources & Support,JC Furniture Warehouse,Carpets,"13,143.00","2,628.60",Grant Payments
,Corporate Resources & Support,JC Furniture Warehouse,Carpets,"10,613.00","2,122.60",Grant Payments
29/08/2017,Education & Childrens Services,Mosaic Shaping Disability Serv,Grant to Voluntary Organisation,"4,991.00",0.00,Grant to Voluntary Organisation
,City Developments and Neighbourhood,The Sparks Childrens Arts Festival,Grant to Voluntary Organisation,550.00,0.00,Grant to Voluntary Organisation
30/08/2017,City Developments and Neighbourhood,Andy Kirk Contractors Limited,Grounds Maintenance,"1,800.00",360.00,Grounds Maintenance
11/08/2017,City Developments and Neighbourhood,BTCV t/a The Conservation Volunteers (TCV),Landscaping,"4,152.00",830.40,Grounds Maintenance
08/08/2017,City Developments and Neighbourhood,Property & Landscape Developments Ltd,Landscaping,645.65,0.00,Grounds Maintenance
08/08/2017,City Developments and Neighbourhood,Property & Landscape Developments Ltd,Landscaping,526.20,0.00,Grounds Maintenance
16/08/2017,Adults & Housing Department,Sportslab,Grounds Maintenance,995.00,199.00,Grounds Maintenance
15/08/2017,Education & Childrens Services,Leicestershire Partnership NHS Trust,PCT - Primary Care Trust,"34,922.90",0.00,Health Authorities
30/08/2017,Adults & Housing Department,Leicestershire Partnership NHS Trust,LPT (Leicestershire Primary Trust),"726,250.00",0.00,Health Authorities
,Education & Childrens Services,Childrens Therapy Solutions Ltd,Healthcare Services,747.08,0.00,Healthcare Services
23/08/2017,Corporate Resources & Support,Health Management Limited,Healthcare Services,"17,865.15","3,573.03",Healthcare Services
25/08/2017,Education & Childrens Services,Lextox,Medical Reports,"1,541.00",308.20,Healthcare Services
15/08/2017,Education & Childrens Services,Mixed Foundation Ltd,Medical Reports,"1,403.60",0.00,Healthcare Services
23/08/2017,Education & Childrens Services,PAC-UK Ltd,Healthcare Services,749.00,149.80,Healthcare Services
,Education & Childrens Services,Playful Family Psychotherapy Ltd,Healthcare Services,"2,441.50",488.30,Healthcare Services
16/08/2017,Education & Childrens Services,Rutland House Counselling,Medical Reports,825.00,0.00,Healthcare Services
09/08/2017,Education & Childrens Services,Semaphore Psychology & Consultancy Ltd,Medical Reports,"4,000.00",0.00,Healthcare Services
23/08/2017,City Developments and Neighbourhood,Pace Fuelcare,Heating Oil,"1,868.80",373.76,Heating Oil
09/08/2017,City Developments and Neighbourhood,Dawson Rentals Sweepers,Hire Vehicles,"1,608.00",321.60,Hire Vehicles
08/08/2017,City Developments and Neighbourhood,Dawson Rentals Sweepers,Hire Vehicles,"1,922.00",384.40,Hire Vehicles
,City Developments and Neighbourhood,Dawson Rentals Sweepers,Hire Vehicles,535.80,0.00,Hire Vehicles
,City Developments and Neighbourhood,Dawson Rentals Sweepers,Hire Vehicles,564.73,0.00,Hire Vehicles
08/08/2017,City Developments and Neighbourhood,Dawson Rentals Sweepers,Hire Vehicles,"1,922.00",384.40,Hire Vehicles
08/08/2017,City Developments and Neighbourhood,Dawson Rentals Sweepers,Hire Vehicles,"1,922.00",384.40,Hire Vehicles
08/08/2017,City Developments and Neighbourhood,Dawson Rentals Sweepers,Hire Vehicles,"1,922.00",384.40,Hire Vehicles
08/08/2017,City Developments and Neighbourhood,Enterprise Rent-A-Car,Hire Vehicles,765.00,153.00,Hire Vehicles
08/08/2017,City Developments and Neighbourhood,Enterprise Rent-A-Car,Hire Vehicles,945.00,189.00,Hire Vehicles
04/08/2017,City Developments and Neighbourhood,Maun Motors,Hire Vehicles,741.80,148.36,Hire Vehicles
04/08/2017,City Developments and Neighbourhood,Maun Motors,Hire Vehicles,"2,475.02",495.00,Hire Vehicles
25/08/2017,City Developments and Neighbourhood,Newline Midlands Ltd,Hire Vehicles,"2,275.00",455.00,Hire Vehicles
,City Developments and Neighbourhood,Newline Midlands Ltd,Hire Vehicles,525.00,105.00,Hire Vehicles
04/08/2017,City Developments and Neighbourhood,Northgate Vehicle Hire (east midlands) Ltd,Hire Vehicles,607.50,121.50,Hire Vehicles
25/08/2017,City Developments and Neighbourhood,Riverside Truck Rental Ltd,Hire Vehicles,"5,250.00","1,050.00",Hire Vehicles
04/08/2017,City Developments and Neighbourhood,Riverside Truck Rental Ltd,Hire Vehicles,"3,000.00",600.00,Hire Vehicles
02/08/2017,City Developments and Neighbourhood,Scot Group Ltd,Hire Vehicles,978.24,195.65,Hire Vehicles
16/08/2017,Adults & Housing Department,Always There Homecare Ltd,Personal Care / Generic,984.93,0.00,Home Care
16/08/2017,Adults & Housing Department,Always There Homecare Ltd,Personal Care / Generic,"1,990.04",0.00,Home Care
16/08/2017,Adults & Housing Department,Always There Homecare Ltd,Personal Care / Generic,783.20,0.00,Home Care
16/08/2017,Adults & Housing Department,Always There Homecare Ltd,Personal Care / Generic,583.84,0.00,Home Care
16/08/2017,Adults & Housing Department,Always There Homecare Ltd,Personal Care / Generic,690.64,0.00,Home Care
16/08/2017,Adults & Housing Department,Always There Homecare Ltd,Personal Care / Generic,"1,585.87",0.00,Home Care
16/08/2017,Adults & Housing Department,Always There Homecare Ltd,Personal Care / Generic,640.09,0.00,Home Care
16/08/2017,Adults & Housing Department,Always There Homecare Ltd,Personal Care / Generic,792.22,0.00,Home Care
16/08/2017,Adults & Housing Department,Always There Homecare Ltd,Personal Care / Generic,697.76,0.00,Home Care
16/08/2017,Adults & Housing Department,Always There Homecare Ltd,Personal Care / Generic,"1,358.73",0.00,Home Care
16/08/2017,Adults & Housing Department,Always There Homecare Ltd,Personal Care / Generic,800.29,0.00,Home Care
16/08/2017,Adults & Housing Department,Always There Homecare Ltd,Personal Care / Generic,701.32,0.00,Home Care
16/08/2017,Adults & Housing Department,Always There Homecare Ltd,Personal Care / Generic,575.77,0.00,Home Care
16/08/2017,Adults & Housing Department,Always There Homecare Ltd,Personal Care / Generic,"1,364.43",0.00,Home Care
16/08/2017,Adults & Housing Department,Always There Homecare Ltd,Personal Care / Generic,"1,787.12",0.00,Home Care
16/08/2017,Adults & Housing Department,Always There Homecare Ltd,Personal Care / Generic,704.88,0.00,Home Care
16/08/2017,Adults & Housing Department,Always There Homecare Ltd,Personal Care / Generic,"5,651.86",0.00,Home Care
22/08/2017,Adults & Housing Department,Always There Homecare Ltd,Personal Care / Generic,"1,239.12",0.00,Home Care
16/08/2017,Adults & Housing Department,Always There Homecare Ltd,Personal Care / Generic,"1,780.24",0.00,Home Care
16/08/2017,Adults & Housing Department,Always There Homecare Ltd,Personal Care / Generic,922.51,0.00,Home Care
16/08/2017,Adults & Housing Department,Always There Homecare Ltd,Personal Care / Generic,"1,253.36",0.00,Home Care
16/08/2017,Adults & Housing Department,Always There Homecare Ltd,Personal Care / Generic,751.64,0.00,Home Care
16/08/2017,Adults & Housing Department,Always There Homecare Ltd,Personal Care / Generic,"1,342.12",0.00,Home Care
30/08/2017,Adults & Housing Department,Always There Homecare Ltd,Personal Care / Generic,546.82,0.00,Home Care
16/08/2017,Adults & Housing Department,Always There Homecare Ltd,Personal Care / Generic,511.22,0.00,Home Care
16/08/2017,Adults & Housing Department,Always There Homecare Ltd,Personal Care / Generic,555.12,0.00,Home Care
16/08/2017,Adults & Housing Department,Always There Homecare Ltd,Personal Care / Generic,872.68,0.00,Home Care
16/08/2017,Adults & Housing Department,Always There Homecare Ltd,Personal Care / Generic,548.24,0.00,Home Care
16/08/2017,Adults & Housing Department,Always There Homecare Ltd,Personal Care / Generic,"2,109.42",0.00,Home Care
16/08/2017,Adults & Housing Department,Always There Homecare Ltd,Personal Care / Generic,993.48,0.00,Home Care
30/08/2017,Adults & Housing Department,Always There Homecare Ltd,Personal Care / Generic,830.67,0.00,Home Care
16/08/2017,Adults & Housing Department,Always There Homecare Ltd,Personal Care / Generic,516.20,0.00,Home Care
16/08/2017,Adults & Housing Department,Always There Homecare Ltd,Personal Care / Generic,911.36,0.00,Home Care
16/08/2017,Adults & Housing Department,Always There Homecare Ltd,Personal Care / Generic,930.11,0.00,Home Care
16/08/2017,Adults & Housing Department,Always There Homecare Ltd,Personal Care / Generic,"1,827.47",0.00,Home Care
16/08/2017,Adults & Housing Department,Always There Homecare Ltd,Personal Care / Generic,"1,352.80",0.00,Home Care
16/08/2017,Adults & Housing Department,Always There Homecare Ltd,Personal Care / Generic,808.83,0.00,Home Care
16/08/2017,Adults & Housing Department,Always There Homecare Ltd,Personal Care / Generic,"1,448.92",0.00,Home Care
16/08/2017,Adults & Housing Department,Always There Homecare Ltd,Personal Care / Generic,505.52,0.00,Home Care
16/08/2017,Adults & Housing Department,Always There Homecare Ltd,Personal Care / Generic,835.18,0.00,Home Care
30/08/2017,Adults & Housing Department,Always There Homecare Ltd,Personal Care / Generic,801.95,0.00,Home Care
18/08/2017,Adults & Housing Department,Amicare Domiciliary Services Ltd,Personal Care / Generic,756.57,0.00,Home Care
18/08/2017,Adults & Housing Department,Amicare Domiciliary Services Ltd,Personal Care / Generic,501.96,0.00,Home Care
18/08/2017,Adults & Housing Department,Amicare Domiciliary Services Ltd,Personal Care / Generic,544.64,0.00,Home Care
18/08/2017,Adults & Housing Department,Amicare Domiciliary Services Ltd,Personal Care / Generic,889.17,0.00,Home Care
18/08/2017,Adults & Housing Department,Amicare Domiciliary Services Ltd,Personal Care / Generic,875.70,0.00,Home Care
18/08/2017,Adults & Housing Department,Amicare Domiciliary Services Ltd,Personal Care / Generic,833.01,0.00,Home Care
18/08/2017,Adults & Housing Department,Amicare Domiciliary Services Ltd,Personal Care / Generic,675.93,0.00,Home Care
18/08/2017,Adults & Housing Department,Amicare Domiciliary Services Ltd,Personal Care / Generic,616.51,0.00,Home Care
18/08/2017,Adults & Housing Department,Amicare Domiciliary Services Ltd,Personal Care / Generic,637.24,0.00,Home Care
18/08/2017,Adults & Housing Department,Amicare Domiciliary Services Ltd,Personal Care / Generic,"1,010.96",0.00,Home Care
18/08/2017,Adults & Housing Department,Amicare Domiciliary Services Ltd,Personal Care / Generic,"1,250.58",0.00,Home Care
18/08/2017,Adults & Housing Department,Amicare Domiciliary Services Ltd,Personal Care / Generic,"1,395.52",0.00,Home Care
18/08/2017,Adults & Housing Department,Amicare Domiciliary Services Ltd,Personal Care / Generic,"2,003.51",0.00,Home Care
18/08/2017,Adults & Housing Department,Amicare Domiciliary Services Ltd,Personal Care / Generic,501.96,0.00,Home Care
18/08/2017,Adults & Housing Department,Amicare Domiciliary Services Ltd,Personal Care / Generic,608.76,0.00,Home Care
18/08/2017,Adults & Housing Department,Amicare Domiciliary Services Ltd,Personal Care / Generic,583.84,0.00,Home Care
18/08/2017,Adults & Housing Department,Amicare Domiciliary Services Ltd,Personal Care / Generic,544.56,0.00,Home Care
18/08/2017,Adults & Housing Department,Amicare Domiciliary Services Ltd,Personal Care / Generic,"1,573.51",0.00,Home Care
18/08/2017,Adults & Housing Department,Amicare Domiciliary Services Ltd,Personal Care / Generic,694.20,0.00,Home Care
18/08/2017,Adults & Housing Department,Amicare Domiciliary Services Ltd,Personal Care / Generic,"1,755.08",0.00,Home Care
18/08/2017,Adults & Housing Department,Amicare Domiciliary Services Ltd,Personal Care / Generic,"1,708.41",0.00,Home Care
18/08/2017,Adults & Housing Department,Amicare Domiciliary Services Ltd,Personal Care / Generic,669.28,0.00,Home Care
18/08/2017,Adults & Housing Department,Amicare Domiciliary Services Ltd,Personal Care / Generic,"1,010.96",0.00,Home Care
18/08/2017,Adults & Housing Department,Amicare Domiciliary Services Ltd,Personal Care / Generic,821.07,0.00,Home Care
18/08/2017,Adults & Housing Department,Amicare Domiciliary Services Ltd,Personal Care / Generic,"1,174.49",0.00,Home Care
18/08/2017,Adults & Housing Department,Amicare Domiciliary Services Ltd,Personal Care / Generic,697.76,0.00,Home Care
18/08/2017,Adults & Housing Department,Amicare Domiciliary Services Ltd,Personal Care / Generic,699.84,0.00,Home Care
18/08/2017,Adults & Housing Department,Amicare Domiciliary Services Ltd,Personal Care / Generic,"1,029.72",0.00,Home Care
18/08/2017,Adults & Housing Department,Amicare Domiciliary Services Ltd,Personal Care / Generic,658.60,0.00,Home Care
18/08/2017,Adults & Housing Department,Amicare Domiciliary Services Ltd,Personal Care / Generic,783.14,0.00,Home Care
18/08/2017,Adults & Housing Department,Amicare Domiciliary Services Ltd,Personal Care / Generic,"1,197.92",0.00,Home Care
18/08/2017,Adults & Housing Department,Amicare Domiciliary Services Ltd,Personal Care / Generic,594.52,0.00,Home Care
18/08/2017,Adults & Housing Department,Amicare Domiciliary Services Ltd,Personal Care / Generic,690.64,0.00,Home Care
18/08/2017,Adults & Housing Department,Amicare Domiciliary Services Ltd,Personal Care / Generic,871.94,0.00,Home Care
18/08/2017,Adults & Housing Department,Amicare Domiciliary Services Ltd,Personal Care / Generic,960.64,0.00,Home Care
18/08/2017,Adults & Housing Department,Amicare Domiciliary Services Ltd,Personal Care / Generic,723.11,0.00,Home Care
18/08/2017,Adults & Housing Department,Amicare Domiciliary Services Ltd,Personal Care / Generic,"1,851.16",0.00,Home Care
18/08/2017,Adults & Housing Department,Amicare Domiciliary Services Ltd,Personal Care / Generic,"1,124.18",0.00,Home Care
18/08/2017,Adults & Housing Department,Amicare Domiciliary Services Ltd,Personal Care / Generic,"1,070.89",0.00,Home Care
18/08/2017,Adults & Housing Department,Amicare Domiciliary Services Ltd,Personal Care / Generic,626.56,0.00,Home Care
18/08/2017,Adults & Housing Department,Amicare Domiciliary Services Ltd,Personal Care / Generic,872.20,0.00,Home Care
18/08/2017,Adults & Housing Department,Amicare Domiciliary Services Ltd,Personal Care / Generic,776.72,0.00,Home Care
18/08/2017,Adults & Housing Department,Amicare Domiciliary Services Ltd,Personal Care / Generic,922.02,0.00,Home Care
18/08/2017,Adults & Housing Department,Amicare Domiciliary Services Ltd,Personal Care / Generic,541.35,0.00,Home Care
18/08/2017,Adults & Housing Department,Amicare Domiciliary Services Ltd,Personal Care / Generic,890.00,0.00,Home Care
18/08/2017,Adults & Housing Department,Amicare Domiciliary Services Ltd,Personal Care / Generic,962.59,0.00,Home Care
18/08/2017,Adults & Housing Department,Amicare Domiciliary Services Ltd,Personal Care / Generic,747.00,0.00,Home Care
18/08/2017,Adults & Housing Department,Amicare Domiciliary Services Ltd,Personal Care / Generic,583.84,0.00,Home Care
18/08/2017,Adults & Housing Department,Amicare Domiciliary Services Ltd,Personal Care / Generic,711.92,0.00,Home Care
30/08/2017,Adults & Housing Department,Amicare Domiciliary Services Ltd,Personal Care / Generic,995.93,0.00,Home Care
18/08/2017,Adults & Housing Department,Amicare Domiciliary Services Ltd,Personal Care / Generic,754.68,0.00,Home Care
18/08/2017,Adults & Housing Department,Amicare Domiciliary Services Ltd,Personal Care / Generic,820.61,0.00,Home Care
18/08/2017,Adults & Housing Department,Amicare Domiciliary Services Ltd,Personal Care / Generic,783.12,0.00,Home Care
18/08/2017,Adults & Housing Department,Amicare Domiciliary Services Ltd,Personal Care / Generic,512.56,0.00,Home Care
18/08/2017,Adults & Housing Department,Amicare Domiciliary Services Ltd,Personal Care / Generic,957.60,0.00,Home Care
18/08/2017,Adults & Housing Department,Amicare Domiciliary Services Ltd,Personal Care / Generic,576.44,0.00,Home Care
18/08/2017,Adults & Housing Department,Amicare Domiciliary Services Ltd,Personal Care / Generic,"2,192.40",0.00,Home Care
18/08/2017,Adults & Housing Department,Amicare Domiciliary Services Ltd,Personal Care / Generic,541.12,0.00,Home Care
,Adults & Housing Department,Amicare Domiciliary Services Ltd,Personal Care / Generic,583.29,0.00,Home Care
30/08/2017,Adults & Housing Department,Amicare Domiciliary Services Ltd,Personal Care / Generic,701.32,0.00,Home Care
18/08/2017,Adults & Housing Department,Amicare Domiciliary Services Ltd,Personal Care / Generic,694.20,0.00,Home Care
18/08/2017,Adults & Housing Department,Amicare Domiciliary Services Ltd,Personal Care / Generic,651.91,0.00,Home Care
18/08/2017,Adults & Housing Department,Amicare Domiciliary Services Ltd,Personal Care / Generic,694.19,0.00,Home Care
18/08/2017,Adults & Housing Department,Amicare Domiciliary Services Ltd,Personal Care / Generic,900.66,0.00,Home Care
18/08/2017,Adults & Housing Department,Amicare Domiciliary Services Ltd,Personal Care / Generic,752.90,0.00,Home Care
18/08/2017,Adults & Housing Department,Amicare Domiciliary Services Ltd,Personal Care / Generic,785.26,0.00,Home Care
18/08/2017,Adults & Housing Department,Amicare Domiciliary Services Ltd,Personal Care / Generic,"1,302.91",0.00,Home Care
18/08/2017,Adults & Housing Department,Amicare Domiciliary Services Ltd,Personal Care / Generic,"1,783.56",0.00,Home Care
18/08/2017,Adults & Housing Department,Amicare Domiciliary Services Ltd,Personal Care / Generic,976.97,0.00,Home Care
18/08/2017,Adults & Housing Department,Amicare Domiciliary Services Ltd,Personal Care / Generic,907.80,0.00,Home Care
18/08/2017,Adults & Housing Department,Amicare Domiciliary Services Ltd,Personal Care / Generic,568.28,0.00,Home Care
18/08/2017,Adults & Housing Department,Amicare Domiciliary Services Ltd,Personal Care / Generic,783.62,0.00,Home Care
18/08/2017,Adults & Housing Department,Amicare Domiciliary Services Ltd,Personal Care / Generic,697.76,0.00,Home Care
23/08/2017,Adults & Housing Department,Ark Home Healthcare Ltd,Personal Care / Generic,"1,943.94",0.00,Home Care
23/08/2017,Adults & Housing Department,Ark Home Healthcare Ltd,Personal Care / Generic,"1,230.86",0.00,Home Care
23/08/2017,Adults & Housing Department,Ark Home Healthcare Ltd,Personal Care / Generic,595.37,0.00,Home Care
23/08/2017,Adults & Housing Department,Ark Home Healthcare Ltd,Personal Care / Generic,877.73,0.00,Home Care
23/08/2017,Adults & Housing Department,Ark Home Healthcare Ltd,Personal Care / Generic,915.59,0.00,Home Care
23/08/2017,Adults & Housing Department,Ark Home Healthcare Ltd,Personal Care / Generic,955.71,0.00,Home Care
23/08/2017,Adults & Housing Department,Ark Home Healthcare Ltd,Personal Care / Generic,800.31,0.00,Home Care
23/08/2017,Adults & Housing Department,Ark Home Healthcare Ltd,Personal Care / Generic,677.97,0.00,Home Care
,Adults & Housing Department,Ark Home Healthcare Ltd,Personal Care / Generic,932.72,0.00,Home Care
,Adults & Housing Department,Ark Home Healthcare Ltd,Personal Care / Generic,674.53,0.00,Home Care
,Adults & Housing Department,Ark Home Healthcare Ltd,Personal Care / Generic,"1,786.41",0.00,Home Care
,Adults & Housing Department,Ark Home Healthcare Ltd,Personal Care / Generic,906.95,0.00,Home Care
,Adults & Housing Department,Ark Home Healthcare Ltd,Personal Care / Generic,588.51,0.00,Home Care
23/08/2017,Adults & Housing Department,Ark Home Healthcare Ltd,Personal Care / Generic,"1,703.80",0.00,Home Care
23/08/2017,Adults & Housing Department,Ark Home Healthcare Ltd,Personal Care / Generic,674.52,0.00,Home Care
23/08/2017,Adults & Housing Department,Ark Home Healthcare Ltd,Personal Care / Generic,640.27,0.00,Home Care
23/08/2017,Adults & Housing Department,Ark Home Healthcare Ltd,Personal Care / Generic,571.04,0.00,Home Care
23/08/2017,Adults & Housing Department,Ark Home Healthcare Ltd,Personal Care / Generic,902.16,0.00,Home Care
23/08/2017,Adults & Housing Department,Ark Home Healthcare Ltd,Personal Care / Generic,"1,710.24",0.00,Home Care
23/08/2017,Adults & Housing Department,Ark Home Healthcare Ltd,Personal Care / Generic,817.49,0.00,Home Care
23/08/2017,Adults & Housing Department,Ark Home Healthcare Ltd,Personal Care / Generic,506.03,0.00,Home Care
23/08/2017,Adults & Housing Department,Ark Home Healthcare Ltd,Personal Care / Generic,581.61,0.00,Home Care
,Adults & Housing Department,Ark Home Healthcare Ltd,Personal Care / Generic,501.43,0.00,Home Care
,Adults & Housing Department,Ark Home Healthcare Ltd,Personal Care / Generic,"1,253.59",0.00,Home Care
,Adults & Housing Department,Ark Home Healthcare Ltd,Personal Care / Generic,533.44,0.00,Home Care
,Adults & Housing Department,Ark Home Healthcare Ltd,Personal Care / Generic,571.05,0.00,Home Care
,Adults & Housing Department,Ark Home Healthcare Ltd,Personal Care / Generic,827.95,0.00,Home Care
,Adults & Housing Department,Ark Home Healthcare Ltd,Personal Care / Generic,"1,648.00",0.00,Home Care
23/08/2017,Adults & Housing Department,Ark Home Healthcare Ltd,Personal Care / Generic,877.53,0.00,Home Care
23/08/2017,Adults & Housing Department,Ark Home Healthcare Ltd,Personal Care / Generic,761.61,0.00,Home Care
23/08/2017,Adults & Housing Department,Ark Home Healthcare Ltd,Personal Care / Generic,554.80,0.00,Home Care
23/08/2017,Adults & Housing Department,Ark Home Healthcare Ltd,Personal Care / Generic,518.74,0.00,Home Care
,Adults & Housing Department,Ark Home Healthcare Ltd,Personal Care / Generic,603.68,0.00,Home Care
,Adults & Housing Department,Ark Home Healthcare Ltd,Personal Care / Generic,658.87,0.00,Home Care
,Adults & Housing Department,Ark Home Healthcare Ltd,Personal Care / Generic,950.47,0.00,Home Care
,Adults & Housing Department,Ark Home Healthcare Ltd,Personal Care / Generic,969.96,0.00,Home Care
,Adults & Housing Department,Ark Home Healthcare Ltd,Personal Care / Generic,758.55,0.00,Home Care
,Adults & Housing Department,Ark Home Healthcare Ltd,Personal Care / Generic,519.45,0.00,Home Care
23/08/2017,Adults & Housing Department,Ark Home Healthcare Ltd,Personal Care / Generic,996.47,0.00,Home Care
23/08/2017,Adults & Housing Department,Ark Home Healthcare Ltd,Personal Care / Generic,780.59,0.00,Home Care
23/08/2017,Adults & Housing Department,Ark Home Healthcare Ltd,Personal Care / Generic,618.86,0.00,Home Care
,Adults & Housing Department,Ark Home Healthcare Ltd,Personal Care / Generic,"1,025.09",0.00,Home Care
,Adults & Housing Department,Ark Home Healthcare Ltd,Personal Care / Generic,712.08,0.00,Home Care
,Adults & Housing Department,Ark Home Healthcare Ltd,Personal Care / Generic,"2,674.38",0.00,Home Care
23/08/2017,Adults & Housing Department,Ark Home Healthcare Ltd,Personal Care / Generic,604.14,0.00,Home Care
23/08/2017,Adults & Housing Department,Ark Home Healthcare Ltd,Personal Care / Generic,849.56,0.00,Home Care
23/08/2017,Adults & Housing Department,Ark Home Healthcare Ltd,Personal Care / Generic,"1,263.85",0.00,Home Care
23/08/2017,Adults & Housing Department,Ark Home Healthcare Ltd,Personal Care / Generic,790.08,0.00,Home Care
23/08/2017,Adults & Housing Department,Ark Home Healthcare Ltd,Personal Care / Generic,991.58,0.00,Home Care
23/08/2017,Adults & Housing Department,Ark Home Healthcare Ltd,Personal Care / Generic,512.24,0.00,Home Care
23/08/2017,Adults & Housing Department,Ark Home Healthcare Ltd,Personal Care / Generic,554.10,0.00,Home Care
,Adults & Housing Department,Ark Home Healthcare Ltd,Personal Care / Generic,726.20,0.00,Home Care
,Adults & Housing Department,Ark Home Healthcare Ltd,Personal Care / Generic,695.91,0.00,Home Care
,Adults & Housing Department,Ark Home Healthcare Ltd,Personal Care / Generic,649.53,0.00,Home Care
,Adults & Housing Department,Ark Home Healthcare Ltd,Personal Care / Generic,980.79,0.00,Home Care
23/08/2017,Adults & Housing Department,Ark Home Healthcare Ltd,Personal Care / Generic,"1,393.65",0.00,Home Care
23/08/2017,Adults & Housing Department,Ark Home Healthcare Ltd,Personal Care / Generic,623.45,0.00,Home Care
23/08/2017,Adults & Housing Department,Ark Home Healthcare Ltd,Personal Care / Generic,"1,014.06",0.00,Home Care
23/08/2017,Adults & Housing Department,Ark Home Healthcare Ltd,Personal Care / Generic,985.07,0.00,Home Care
23/08/2017,Adults & Housing Department,Ark Home Healthcare Ltd,Personal Care / Generic,841.51,0.00,Home Care
23/08/2017,Adults & Housing Department,Ark Home Healthcare Ltd,Personal Care / Generic,523.13,0.00,Home Care
23/08/2017,Adults & Housing Department,Ark Home Healthcare Ltd,Personal Care / Generic,908.56,0.00,Home Care
23/08/2017,Adults & Housing Department,Ark Home Healthcare Ltd,Personal Care / Generic,"2,640.83",0.00,Home Care
23/08/2017,Adults & Housing Department,Ark Home Healthcare Ltd,Personal Care / Generic,674.52,0.00,Home Care
23/08/2017,Adults & Housing Department,Ark Home Healthcare Ltd,Personal Care / Generic,788.91,0.00,Home Care
,Adults & Housing Department,Ark Home Healthcare Ltd,Personal Care / Generic,858.66,0.00,Home Care
,Adults & Housing Department,Ark Home Healthcare Ltd,Personal Care / Generic,910.03,0.00,Home Care
,Adults & Housing Department,Ark Home Healthcare Ltd,Personal Care / Generic,"1,006.21",0.00,Home Care
,Adults & Housing Department,Ark Home Healthcare Ltd,Personal Care / Generic,"1,745.39",0.00,Home Care
,Adults & Housing Department,Ark Home Healthcare Ltd,Personal Care / Generic,"1,270.27",0.00,Home Care
,Adults & Housing Department,Ark Home Healthcare Ltd,Personal Care / Generic,671.45,0.00,Home Care
,Adults & Housing Department,Ark Home Healthcare Ltd,Personal Care / Generic,785.17,0.00,Home Care
23/08/2017,Adults & Housing Department,Ark Home Healthcare Ltd,Personal Care / Generic,"1,580.43",0.00,Home Care
23/08/2017,Adults & Housing Department,Ark Home Healthcare Ltd,Personal Care / Generic,760.25,0.00,Home Care
23/08/2017,Adults & Housing Department,Ark Home Healthcare Ltd,Personal Care / Generic,597.99,0.00,Home Care
23/08/2017,Adults & Housing Department,Ark Home Healthcare Ltd,Personal Care / Generic,"1,844.28",0.00,Home Care
,Adults & Housing Department,Ark Home Healthcare Ltd,Personal Care / Generic,518.15,0.00,Home Care
,Adults & Housing Department,Ark Home Healthcare Ltd,Personal Care / Generic,"2,080.67",0.00,Home Care
,Adults & Housing Department,Ark Home Healthcare Ltd,Personal Care / Generic,546.48,0.00,Home Care
,Adults & Housing Department,Ark Home Healthcare Ltd,Personal Care / Generic,881.88,0.00,Home Care
,Adults & Housing Department,Ark Home Healthcare Ltd,Personal Care / Generic,629.80,0.00,Home Care
,Adults & Housing Department,Ark Home Healthcare Ltd,Personal Care / Generic,663.13,0.00,Home Care
,Adults & Housing Department,Ark Home Healthcare Ltd,Personal Care / Generic,"1,422.84",0.00,Home Care
23/08/2017,Adults & Housing Department,Ark Home Healthcare Ltd,Personal Care / Generic,682.58,0.00,Home Care
23/08/2017,Adults & Housing Department,Ark Home Healthcare Ltd,Personal Care / Generic,713.84,0.00,Home Care
23/08/2017,Adults & Housing Department,Ark Home Healthcare Ltd,Personal Care / Generic,654.63,0.00,Home Care
,Adults & Housing Department,Ark Home Healthcare Ltd,Personal Care / Generic,641.90,0.00,Home Care
,Adults & Housing Department,Ark Home Healthcare Ltd,Personal Care / Generic,567.62,0.00,Home Care
,Adults & Housing Department,Ark Home Healthcare Ltd,Personal Care / Generic,746.49,0.00,Home Care
,Adults & Housing Department,Ark Home Healthcare Ltd,Personal Care / Generic,956.19,0.00,Home Care
,Adults & Housing Department,Ark Home Healthcare Ltd,Personal Care / Generic,531.10,0.00,Home Care
,Adults & Housing Department,Ark Home Healthcare Ltd,Personal Care / Generic,677.98,0.00,Home Care
04/08/2017,Adults & Housing Department,Choices Care Ltd,Personal Care / Generic,"1,696.66",0.00,Home Care
04/08/2017,Adults & Housing Department,Choices Care Ltd,Personal Care / Generic,"1,710.24",0.00,Home Care
23/08/2017,Adults & Housing Department,Choices Care Ltd,Personal Care / Generic,"1,044.96",0.00,Home Care
23/08/2017,Adults & Housing Department,Choices Care Ltd,Personal Care / Generic,"1,710.24",0.00,Home Care
04/08/2017,Adults & Housing Department,Choices Care Ltd,Personal Care / Generic,"2,491.07",0.00,Home Care
23/08/2017,Adults & Housing Department,Choices Care Ltd,Personal Care / Generic,"1,330.00",0.00,Home Care
23/08/2017,Adults & Housing Department,Choices Care Ltd,Personal Care / Generic,760.48,0.00,Home Care
04/08/2017,Adults & Housing Department,Choices Care Ltd,Personal Care / Generic,760.48,0.00,Home Care
04/08/2017,Adults & Housing Department,Choices Care Ltd,Personal Care / Generic,"1,710.24",0.00,Home Care
04/08/2017,Adults & Housing Department,Choices Care Ltd,Personal Care / Generic,760.48,0.00,Home Care
04/08/2017,Adults & Housing Department,Choices Care Ltd,Personal Care / Generic,529.20,0.00,Home Care
04/08/2017,Adults & Housing Department,Choices Care Ltd,Personal Care / Generic,665.00,0.00,Home Care
04/08/2017,Adults & Housing Department,Choices Care Ltd,Personal Care / Generic,"1,044.96",0.00,Home Care
23/08/2017,Adults & Housing Department,Choices Care Ltd,Personal Care / Generic,"1,330.00",0.00,Home Care
23/08/2017,Adults & Housing Department,Choices Care Ltd,Personal Care / Generic,"1,703.45",0.00,Home Care
23/08/2017,Adults & Housing Department,Choices Care Ltd,Personal Care / Generic,570.36,0.00,Home Care
04/08/2017,Adults & Housing Department,Choices Care Ltd,Personal Care / Generic,570.36,0.00,Home Care
04/08/2017,Adults & Housing Department,Choices Care Ltd,Personal Care / Generic,549.18,0.00,Home Care
04/08/2017,Adults & Housing Department,Choices Care Ltd,Personal Care / Generic,753.32,0.00,Home Care
04/08/2017,Adults & Housing Department,Choices Care Ltd,Personal Care / Generic,855.12,0.00,Home Care
04/08/2017,Adults & Housing Department,Choices Care Ltd,Personal Care / Generic,597.10,0.00,Home Care
23/08/2017,Adults & Housing Department,Choices Care Ltd,Personal Care / Generic,"1,126.24",0.00,Home Care
23/08/2017,Adults & Housing Department,Choices Care Ltd,Personal Care / Generic,"1,710.24",0.00,Home Care
23/08/2017,Adults & Housing Department,Choices Care Ltd,Personal Care / Generic,509.02,0.00,Home Care
04/08/2017,Adults & Housing Department,Choices Care Ltd,Personal Care / Generic,"1,045.14",0.00,Home Care
04/08/2017,Adults & Housing Department,Choices Care Ltd,Personal Care / Generic,719.64,0.00,Home Care
04/08/2017,Adults & Housing Department,Choices Care Ltd,Personal Care / Generic,651.42,0.00,Home Care
23/08/2017,Adults & Housing Department,Choices Care Ltd,Personal Care / Generic,"2,477.49",0.00,Home Care
23/08/2017,Adults & Housing Department,Choices Care Ltd,Personal Care / Generic,590.31,0.00,Home Care
23/08/2017,Adults & Housing Department,Choices Care Ltd,Personal Care / Generic,753.69,0.00,Home Care
04/08/2017,Adults & Housing Department,Choices Care Ltd,Personal Care / Generic,"1,194.09",0.00,Home Care
04/08/2017,Adults & Housing Department,Choices Care Ltd,Personal Care / Generic,"1,330.00",0.00,Home Care
04/08/2017,Adults & Housing Department,Choices Care Ltd,Personal Care / Generic,949.76,0.00,Home Care
23/08/2017,Adults & Housing Department,Choices Care Ltd,Personal Care / Generic,855.12,0.00,Home Care
23/08/2017,Adults & Housing Department,Choices Care Ltd,Personal Care / Generic,"1,330.00",0.00,Home Care
23/08/2017,Adults & Housing Department,Choices Care Ltd,Personal Care / Generic,698.92,0.00,Home Care
23/08/2017,Adults & Housing Department,Choices Care Ltd,Personal Care / Generic,949.76,0.00,Home Care
04/08/2017,Adults & Housing Department,Choices Care Ltd,Personal Care / Generic,"1,323.21",0.00,Home Care
04/08/2017,Adults & Housing Department,Choices Care Ltd,Personal Care / Generic,"1,330.00",0.00,Home Care
23/08/2017,Adults & Housing Department,Choices Care Ltd,Personal Care / Generic,750.10,0.00,Home Care
23/08/2017,Adults & Housing Department,Choices Care Ltd,Personal Care / Generic,607.54,0.00,Home Care
23/08/2017,Adults & Housing Department,Choices Care Ltd,Personal Care / Generic,"1,211.18",0.00,Home Care
29/08/2017,Adults & Housing Department,Danbury Gardens - Help at Home,Home Care - Extra Care,"5,739.79",0.00,Home Care
29/08/2017,Adults & Housing Department,Danbury Gardens - Help at Home,Home Care - Extra Care,602.32,0.00,Home Care
23/08/2017,Adults & Housing Department,Danbury Gardens - Help at Home,Home Care - Extra Care,"1,481.04",0.00,Home Care
23/08/2017,Adults & Housing Department,Danbury Gardens - Help at Home,Home Care - Extra Care,"2,490.18",0.00,Home Care
23/08/2017,Adults & Housing Department,Danbury Gardens - Help at Home,Personal Care / Generic,692.82,0.00,Home Care
23/08/2017,Adults & Housing Department,Danbury Gardens - Help at Home,Personal Care / Generic,592.85,0.00,Home Care
23/08/2017,Adults & Housing Department,Danbury Gardens - Help at Home,Personal Care / Generic,745.46,0.00,Home Care
23/08/2017,Adults & Housing Department,Danbury Gardens - Help at Home,Home Care - Extra Care,755.04,0.00,Home Care
23/08/2017,Adults & Housing Department,Danbury Gardens - Help at Home,Home Care - Extra Care,972.84,0.00,Home Care
23/08/2017,Adults & Housing Department,Danbury Gardens - Help at Home,Personal Care / Generic,635.45,0.00,Home Care
23/08/2017,Adults & Housing Department,Danbury Gardens - Help at Home,Personal Care / Generic,504.09,0.00,Home Care
23/08/2017,Adults & Housing Department,Danbury Gardens - Help at Home,Personal Care / Generic,793.26,0.00,Home Care
23/08/2017,Adults & Housing Department,Danbury Gardens - Help at Home,Home Care - Extra Care,609.84,0.00,Home Care
23/08/2017,Adults & Housing Department,Danbury Gardens - Help at Home,Home Care - Extra Care,"1,074.48",0.00,Home Care
29/08/2017,Adults & Housing Department,Danbury Gardens - Help at Home,Home Care - Extra Care,896.79,0.00,Home Care
23/08/2017,Adults & Housing Department,Danbury Gardens - Help at Home,Home Care - Extra Care,"1,219.68",0.00,Home Care
23/08/2017,Adults & Housing Department,Danbury Gardens - Help at Home,Home Care - Extra Care,"3,049.20",0.00,Home Care
23/08/2017,Adults & Housing Department,Danbury Gardens - Help at Home,Home Care - Extra Care,"2,885.85",0.00,Home Care
23/08/2017,Adults & Housing Department,Danbury Gardens - Help at Home,Personal Care / Generic,904.00,0.00,Home Care
23/08/2017,Adults & Housing Department,Danbury Gardens - Help at Home,Personal Care / Generic,674.50,0.00,Home Care
23/08/2017,Adults & Housing Department,Danbury Gardens - Help at Home,Home Care - Extra Care,522.72,0.00,Home Care
23/08/2017,Adults & Housing Department,Danbury Gardens - Help at Home,Home Care - Extra Care,726.00,0.00,Home Care
23/08/2017,Adults & Housing Department,Danbury Gardens - Help at Home,Personal Care / Generic,592.85,0.00,Home Care
23/08/2017,Adults & Housing Department,Danbury Gardens - Help at Home,Home Care - Extra Care,871.20,0.00,Home Care
23/08/2017,Adults & Housing Department,Danbury Gardens - Help at Home,Home Care - Extra Care,624.36,0.00,Home Care
29/08/2017,Adults & Housing Department,Danbury Gardens - Help at Home,Home Care - Extra Care,597.86,0.00,Home Care
29/08/2017,Adults & Housing Department,Danbury Gardens - Help at Home,Home Care - Extra Care,"5,721.96",0.00,Home Care
23/08/2017,Adults & Housing Department,Danbury Gardens - Help at Home,Personal Care / Generic,646.10,0.00,Home Care
23/08/2017,Adults & Housing Department,Danbury Gardens - Help at Home,Personal Care / Generic,667.40,0.00,Home Care
23/08/2017,Adults & Housing Department,Danbury Gardens - Help at Home,Personal Care / Generic,"1,052.84",0.00,Home Care
23/08/2017,Adults & Housing Department,Danbury Gardens - Help at Home,Personal Care / Generic,567.94,0.00,Home Care
23/08/2017,Adults & Housing Department,Danbury Gardens - Help at Home,Home Care - Extra Care,769.56,0.00,Home Care
23/08/2017,Adults & Housing Department,Danbury Gardens - Help at Home,Home Care - Extra Care,508.20,0.00,Home Care
29/08/2017,Adults & Housing Department,Danbury Gardens - Help at Home,Home Care - Extra Care,903.47,0.00,Home Care
23/08/2017,Adults & Housing Department,Danbury Gardens - Help at Home,Personal Care / Generic,692.23,0.00,Home Care
23/08/2017,Adults & Housing Department,Danbury Gardens - Help at Home,Home Care - Extra Care,"1,916.64",0.00,Home Care
23/08/2017,Adults & Housing Department,Danbury Gardens - Help at Home,Home Care - Extra Care,"1,114.41",0.00,Home Care
23/08/2017,Adults & Housing Department,Danbury Gardens - Help at Home,Home Care - Extra Care,682.44,0.00,Home Care
22/08/2017,Adults & Housing Department,Direct Health UK Ltd,Personal Care / Generic,858.55,0.00,Home Care
22/08/2017,Adults & Housing Department,Direct Health UK Ltd,Personal Care / Generic,828.86,0.00,Home Care
22/08/2017,Adults & Housing Department,Direct Health UK Ltd,Personal Care / Generic,807.96,0.00,Home Care
22/08/2017,Adults & Housing Department,Direct Health UK Ltd,Personal Care / Generic,617.11,0.00,Home Care
22/08/2017,Adults & Housing Department,Direct Health UK Ltd,Personal Care / Generic,692.20,0.00,Home Care
22/08/2017,Adults & Housing Department,Direct Health UK Ltd,Personal Care / Generic,633.89,0.00,Home Care
22/08/2017,Adults & Housing Department,Direct Health UK Ltd,Personal Care / Generic,568.89,0.00,Home Care
22/08/2017,Adults & Housing Department,Direct Health UK Ltd,Personal Care / Generic,730.37,0.00,Home Care
22/08/2017,Adults & Housing Department,Direct Health UK Ltd,Personal Care / Generic,527.69,0.00,Home Care
22/08/2017,Adults & Housing Department,Direct Health UK Ltd,Personal Care / Generic,698.83,0.00,Home Care
22/08/2017,Adults & Housing Department,Direct Health UK Ltd,Personal Care / Generic,"1,963.67",0.00,Home Care
22/08/2017,Adults & Housing Department,Direct Health UK Ltd,Personal Care / Generic,623.38,0.00,Home Care
22/08/2017,Adults & Housing Department,Direct Health UK Ltd,Personal Care / Generic,"1,519.58",0.00,Home Care
22/08/2017,Adults & Housing Department,Direct Health UK Ltd,Personal Care / Generic,527.69,0.00,Home Care
22/08/2017,Adults & Housing Department,Direct Health UK Ltd,Personal Care / Generic,528.85,0.00,Home Care
22/08/2017,Adults & Housing Department,Direct Health UK Ltd,Personal Care / Generic,581.47,0.00,Home Care
22/08/2017,Adults & Housing Department,Direct Health UK Ltd,Personal Care / Generic,757.86,0.00,Home Care
22/08/2017,Adults & Housing Department,Direct Health UK Ltd,Personal Care / Generic,889.59,0.00,Home Care
22/08/2017,Adults & Housing Department,Direct Health UK Ltd,Personal Care / Generic,524.17,0.00,Home Care
22/08/2017,Adults & Housing Department,Direct Health UK Ltd,Personal Care / Generic,"1,066.80",0.00,Home Care
,Adults & Housing Department,Domiciliary Care Services UK Ltd,Personal Care / Generic,"1,792.14",0.00,Home Care
,Adults & Housing Department,Domiciliary Care Services UK Ltd,Personal Care / Generic,"1,992.06",0.00,Home Care
,Adults & Housing Department,Domiciliary Care Services UK Ltd,Personal Care / Generic,"1,249.50",0.00,Home Care
,Adults & Housing Department,Domiciliary Care Services UK Ltd,Personal Care / Generic,585.48,0.00,Home Care
,Adults & Housing Department,Domiciliary Care Services UK Ltd,Personal Care / Generic,"2,409.75",0.00,Home Care
,Adults & Housing Department,Domiciliary Care Services UK Ltd,Personal Care / Generic,542.64,0.00,Home Care
,Adults & Housing Department,Domiciliary Care Services UK Ltd,Personal Care / Generic,"2,252.67",0.00,Home Care
,Adults & Housing Department,Domiciliary Care Services UK Ltd,Personal Care / Generic,885.36,0.00,Home Care
,Adults & Housing Department,Domiciliary Care Services UK Ltd,Personal Care / Generic,"1,799.28",0.00,Home Care
,Adults & Housing Department,Domiciliary Care Services UK Ltd,Personal Care / Generic,"1,685.04",0.00,Home Care
,Adults & Housing Department,Domiciliary Care Services UK Ltd,Personal Care / Generic,"1,599.36",0.00,Home Care
,Adults & Housing Department,Domiciliary Care Services UK Ltd,Personal Care / Generic,902.02,0.00,Home Care
,Adults & Housing Department,Domiciliary Care Services UK Ltd,Personal Care / Generic,735.42,0.00,Home Care
,Adults & Housing Department,Domiciliary Care Services UK Ltd,Personal Care / Generic,956.76,0.00,Home Care
,Adults & Housing Department,Domiciliary Care Services UK Ltd,Personal Care / Generic,"1,799.28",0.00,Home Care
,Adults & Housing Department,Domiciliary Care Services UK Ltd,Personal Care / Generic,"1,399.44",0.00,Home Care
,Adults & Housing Department,Domiciliary Care Services UK Ltd,Personal Care / Generic,628.32,0.00,Home Care
,Adults & Housing Department,Domiciliary Care Services UK Ltd,Personal Care / Generic,"1,999.20",0.00,Home Care
,Adults & Housing Department,Domiciliary Care Services UK Ltd,Personal Care / Generic,"1,635.06",0.00,Home Care
,Adults & Housing Department,Domiciliary Care Services UK Ltd,Personal Care / Generic,"1,049.58",0.00,Home Care
,Adults & Housing Department,Domiciliary Care Services UK Ltd,Personal Care / Generic,"1,792.14",0.00,Home Care
,Adults & Housing Department,Domiciliary Care Services UK Ltd,Personal Care / Generic,699.72,0.00,Home Care
,Adults & Housing Department,Domiciliary Care Services UK Ltd,Personal Care / Generic,"1,913.52",0.00,Home Care
,Adults & Housing Department,Domiciliary Care Services UK Ltd,Personal Care / Generic,"2,115.82",0.00,Home Care
,Adults & Housing Department,Domiciliary Care Services UK Ltd,Personal Care / Generic,"1,399.44",0.00,Home Care
,Adults & Housing Department,Domiciliary Care Services UK Ltd,Personal Care / Generic,"1,635.06",0.00,Home Care
,Adults & Housing Department,Domiciliary Care Services UK Ltd,Personal Care / Generic,"1,942.08",0.00,Home Care
,Adults & Housing Department,Domiciliary Care Services UK Ltd,Personal Care / Generic,"1,399.44",0.00,Home Care
,Adults & Housing Department,Domiciliary Care Services UK Ltd,Personal Care / Generic,"1,599.36",0.00,Home Care
,Adults & Housing Department,Domiciliary Care Services UK Ltd,Personal Care / Generic,799.68,0.00,Home Care
,Adults & Housing Department,Domiciliary Care Services UK Ltd,Personal Care / Generic,"1,827.84",0.00,Home Care
,Adults & Housing Department,Domiciliary Care Services UK Ltd,Personal Care / Generic,"1,513.68",0.00,Home Care
,Adults & Housing Department,Domiciliary Care Services UK Ltd,Personal Care / Generic,635.46,0.00,Home Care
04/08/2017,Adults & Housing Department,Domiciliary Care Services UK Ltd,Personal Care / Generic,606.90,0.00,Home Care
,Adults & Housing Department,Domiciliary Care Services UK Ltd,Personal Care / Generic,"1,817.13",0.00,Home Care
,Adults & Housing Department,Domiciliary Care Services UK Ltd,Personal Care / Generic,813.96,0.00,Home Care
,Adults & Housing Department,Domiciliary Care Services UK Ltd,Personal Care / Generic,"2,134.86",0.00,Home Care
,Adults & Housing Department,Domiciliary Care Services UK Ltd,Personal Care / Generic,642.60,0.00,Home Care
,Adults & Housing Department,Domiciliary Care Services UK Ltd,Personal Care / Generic,642.60,0.00,Home Care
04/08/2017,Adults & Housing Department,Domiciliary Care Services UK Ltd,Personal Care / Generic,749.70,0.00,Home Care
,Adults & Housing Department,Domiciliary Care Services UK Ltd,Personal Care / Generic,799.68,0.00,Home Care
,Adults & Housing Department,Domiciliary Care Services UK Ltd,Personal Care / Generic,717.57,0.00,Home Care
,Adults & Housing Department,Domiciliary Care Services UK Ltd,Personal Care / Generic,"1,799.28",0.00,Home Care
,Adults & Housing Department,Domiciliary Care Services UK Ltd,Personal Care / Generic,799.68,0.00,Home Care
,Adults & Housing Department,Domiciliary Care Services UK Ltd,Personal Care / Generic,"1,799.28",0.00,Home Care
,Adults & Housing Department,Domiciliary Care Services UK Ltd,Personal Care / Generic,"1,999.20",0.00,Home Care
,Adults & Housing Department,Domiciliary Care Services UK Ltd,Personal Care / Generic,"1,999.20",0.00,Home Care
,Adults & Housing Department,Domiciliary Care Services UK Ltd,Personal Care / Generic,"1,680.28",0.00,Home Care
,Adults & Housing Department,Domiciliary Care Services UK Ltd,Personal Care / Generic,"1,901.62",0.00,Home Care
04/08/2017,Adults & Housing Department,Domiciliary Care Services UK Ltd,Personal Care / Generic,535.50,0.00,Home Care
,Adults & Housing Department,Domiciliary Care Services UK Ltd,Personal Care / Generic,"1,799.28",0.00,Home Care
,Adults & Housing Department,Domiciliary Care Services UK Ltd,Personal Care / Generic,978.18,0.00,Home Care
,Adults & Housing Department,Domiciliary Care Services UK Ltd,Personal Care / Generic,"1,999.20",0.00,Home Care
,Adults & Housing Department,Domiciliary Care Services UK Ltd,Personal Care / Generic,599.76,0.00,Home Care
,Adults & Housing Department,Domiciliary Care Services UK Ltd,Personal Care / Generic,"1,799.28",0.00,Home Care
,Adults & Housing Department,Domiciliary Care Services UK Ltd,Personal Care / Generic,610.47,0.00,Home Care
,Adults & Housing Department,Domiciliary Care Services UK Ltd,Personal Care / Generic,"1,792.14",0.00,Home Care
18/08/2017,Adults & Housing Department,Hales Group Ltd,Personal Care / Generic,"1,038.00",0.00,Home Care
02/08/2017,Adults & Housing Department,Hales Group Ltd,Personal Care / Generic,"1,498.41",0.00,Home Care
02/08/2017,Adults & Housing Department,Hales Group Ltd,Personal Care / Generic,622.80,0.00,Home Care
02/08/2017,Adults & Housing Department,Hales Group Ltd,Personal Care / Generic,614.73,0.00,Home Care
02/08/2017,Adults & Housing Department,Hales Group Ltd,Personal Care / Generic,"1,736.92",0.00,Home Care
18/08/2017,Adults & Housing Department,Hales Group Ltd,Personal Care / Generic,804.10,0.00,Home Care
18/08/2017,Adults & Housing Department,Hales Group Ltd,Personal Care / Generic,"1,527.01",0.00,Home Care
18/08/2017,Adults & Housing Department,Hales Group Ltd,Personal Care / Generic,872.61,0.00,Home Care
02/08/2017,Adults & Housing Department,Hales Group Ltd,Personal Care / Generic,896.14,0.00,Home Care
23/08/2017,Adults & Housing Department,Help At Home,Personal Care / Generic,612.72,0.00,Home Care
23/08/2017,Adults & Housing Department,Help At Home,Personal Care / Generic,629.37,0.00,Home Care
23/08/2017,Adults & Housing Department,Help At Home,Personal Care / Generic,589.41,0.00,Home Care
23/08/2017,Adults & Housing Department,Help At Home,Personal Care / Generic,606.06,0.00,Home Care
23/08/2017,Adults & Housing Department,Help At Home,Personal Care / Generic,546.12,0.00,Home Care
23/08/2017,Adults & Housing Department,Help At Home,Personal Care / Generic,"1,397.94",0.00,Home Care
23/08/2017,Adults & Housing Department,Help At Home,Personal Care / Generic,"1,145.52",0.00,Home Care
23/08/2017,Adults & Housing Department,Help At Home,Personal Care / Generic,534.35,0.00,Home Care
23/08/2017,Adults & Housing Department,Help At Home,Personal Care / Generic,"1,678.32",0.00,Home Care
23/08/2017,Adults & Housing Department,Help At Home,Personal Care / Generic,705.96,0.00,Home Care
23/08/2017,Adults & Housing Department,Help At Home,Personal Care / Generic,652.68,0.00,Home Care
23/08/2017,Adults & Housing Department,Help At Home,Personal Care / Generic,789.21,0.00,Home Care
23/08/2017,Adults & Housing Department,Help At Home,Personal Care / Generic,603.62,0.00,Home Care
23/08/2017,Adults & Housing Department,Help At Home,Personal Care / Generic,562.77,0.00,Home Care
23/08/2017,Adults & Housing Department,Help At Home,Personal Care / Generic,802.53,0.00,Home Care
23/08/2017,Adults & Housing Department,Help At Home,Personal Care / Generic,819.18,0.00,Home Care
23/08/2017,Adults & Housing Department,Help At Home,Personal Care / Generic,"2,434.23",0.00,Home Care
23/08/2017,Adults & Housing Department,Help At Home,Personal Care / Generic,619.38,0.00,Home Care
23/08/2017,Adults & Housing Department,Help At Home,Personal Care / Generic,"1,588.41",0.00,Home Care
23/08/2017,Adults & Housing Department,Help At Home,Personal Care / Generic,762.57,0.00,Home Care
23/08/2017,Adults & Housing Department,Help At Home,Personal Care / Generic,576.09,0.00,Home Care
23/08/2017,Adults & Housing Department,Help At Home,Personal Care / Generic,563.44,0.00,Home Care
23/08/2017,Adults & Housing Department,Help At Home,Personal Care / Generic,839.16,0.00,Home Care
23/08/2017,Adults & Housing Department,Help At Home,Personal Care / Generic,613.39,0.00,Home Care
23/08/2017,Adults & Housing Department,Help At Home,Personal Care / Generic,905.76,0.00,Home Care
23/08/2017,Adults & Housing Department,Help At Home,Personal Care / Generic,909.09,0.00,Home Care
23/08/2017,Adults & Housing Department,Help At Home,Personal Care / Generic,752.58,0.00,Home Care
23/08/2017,Adults & Housing Department,Help At Home,Personal Care / Generic,539.24,0.00,Home Care
23/08/2017,Adults & Housing Department,Help At Home,Personal Care / Generic,652.68,0.00,Home Care
23/08/2017,Adults & Housing Department,Help At Home,Personal Care / Generic,802.53,0.00,Home Care
23/08/2017,Adults & Housing Department,Help At Home,Personal Care / Generic,658.45,0.00,Home Care
23/08/2017,Adults & Housing Department,Help At Home,Personal Care / Generic,925.74,0.00,Home Care
23/08/2017,Adults & Housing Department,Help At Home,Personal Care / Generic,506.16,0.00,Home Care
23/08/2017,Adults & Housing Department,Help At Home,Personal Care / Generic,552.12,0.00,Home Care
23/08/2017,Adults & Housing Department,Help At Home,Personal Care / Generic,556.11,0.00,Home Care
23/08/2017,Adults & Housing Department,Help At Home,Personal Care / Generic,650.24,0.00,Home Care
23/08/2017,Adults & Housing Department,Help at Home (Previously Mears Care Ltd),Personal Care / Generic,676.20,0.00,Home Care
23/08/2017,Adults & Housing Department,Help at Home (Previously Mears Care Ltd),Personal Care / Generic,672.74,0.00,Home Care
22/08/2017,Adults & Housing Department,Private Home Care Uk Ltd FA SL&FSB,Personal Care / Generic,"2,577.04",0.00,Home Care
22/08/2017,Adults & Housing Department,Private Home Care Uk Ltd FA SL&FSB,Personal Care / Generic,"1,464.72",0.00,Home Care
22/08/2017,Adults & Housing Department,Private Home Care Uk Ltd FA SL&FSB,Personal Care / Generic,"1,098.80",0.00,Home Care
22/08/2017,Adults & Housing Department,Private Home Care Uk Ltd FA SL&FSB,Personal Care / Generic,949.48,0.00,Home Care
22/08/2017,Adults & Housing Department,Private Home Care Uk Ltd FA SL&FSB,Personal Care / Generic,559.35,0.00,Home Care
22/08/2017,Adults & Housing Department,Private Home Care Uk Ltd FA SL&FSB,Personal Care / Generic,637.32,0.00,Home Care
22/08/2017,Adults & Housing Department,Private Home Care Uk Ltd FA SL&FSB,Personal Care / Generic,841.04,0.00,Home Care
22/08/2017,Adults & Housing Department,Private Home Care Uk Ltd FA SL&FSB,Personal Care / Generic,664.44,0.00,Home Care
22/08/2017,Adults & Housing Department,Private Home Care Uk Ltd FA SL&FSB,Personal Care / Generic,772.92,0.00,Home Care
22/08/2017,Adults & Housing Department,Private Home Care Uk Ltd FA SL&FSB,Personal Care / Generic,569.80,0.00,Home Care
22/08/2017,Adults & Housing Department,Private Home Care Uk Ltd FA SL&FSB,Personal Care / Generic,854.28,0.00,Home Care
22/08/2017,Adults & Housing Department,Private Home Care Uk Ltd FA SL&FSB,Personal Care / Generic,759.36,0.00,Home Care
22/08/2017,Adults & Housing Department,Private Home Care Uk Ltd FA SL&FSB,Personal Care / Generic,664.44,0.00,Home Care
22/08/2017,Adults & Housing Department,Private Home Care Uk Ltd FA SL&FSB,Personal Care / Generic,569.52,0.00,Home Care
22/08/2017,Adults & Housing Department,Private Home Care Uk Ltd FA SL&FSB,Personal Care / Generic,"1,708.56",0.00,Home Care
22/08/2017,Adults & Housing Department,Private Home Care Uk Ltd FA SL&FSB,Personal Care / Generic,935.64,0.00,Home Care
22/08/2017,Adults & Housing Department,Private Home Care Uk Ltd FA SL&FSB,Personal Care / Generic,718.72,0.00,Home Care
22/08/2017,Adults & Housing Department,Private Home Care Uk Ltd FA SL&FSB,Personal Care / Generic,542.80,0.00,Home Care
22/08/2017,Adults & Housing Department,Private Home Care Uk Ltd FA SL&FSB,Personal Care / Generic,569.80,0.00,Home Care
22/08/2017,Adults & Housing Department,Private Home Care Uk Ltd FA SL&FSB,Personal Care / Generic,"1,139.04",0.00,Home Care
22/08/2017,Adults & Housing Department,Private Home Care Uk Ltd FA SL&FSB,Personal Care / Generic,624.08,0.00,Home Care
22/08/2017,Adults & Housing Department,Private Home Care Uk Ltd FA SL&FSB,Personal Care / Generic,759.64,0.00,Home Care
22/08/2017,Adults & Housing Department,Private Home Care Uk Ltd FA SL&FSB,Personal Care / Generic,583.08,0.00,Home Care
22/08/2017,Adults & Housing Department,Private Home Care Uk Ltd FA SL&FSB,Personal Care / Generic,773.28,0.00,Home Care
18/08/2017,Adults & Housing Department,Sevacare (UK) Ltd,Personal Care / Generic,902.16,0.00,Home Care
18/08/2017,Adults & Housing Department,Sevacare (UK) Ltd,Personal Care / Generic,565.58,0.00,Home Care
18/08/2017,Adults & Housing Department,Sevacare (UK) Ltd,Personal Care / Generic,683.62,0.00,Home Care
16/08/2017,Adults & Housing Department,Sevacare (UK) Ltd,Personal Care / Generic,598.40,0.00,Home Care
18/08/2017,Adults & Housing Department,Sevacare (UK) Ltd,Personal Care / Generic,576.38,0.00,Home Care
18/08/2017,Adults & Housing Department,Sevacare (UK) Ltd,Personal Care / Generic,590.69,0.00,Home Care
18/08/2017,Adults & Housing Department,Sevacare (UK) Ltd,Personal Care / Generic,"1,270.48",0.00,Home Care
15/08/2017,Adults & Housing Department,Sevacare (UK) Ltd,Personal Care / Generic,556.86,0.00,Home Care
18/08/2017,Adults & Housing Department,Sevacare (UK) Ltd,Personal Care / Generic,847.60,0.00,Home Care
18/08/2017,Adults & Housing Department,Sevacare (UK) Ltd,Personal Care / Generic,775.48,0.00,Home Care
18/08/2017,Adults & Housing Department,Sevacare (UK) Ltd,Personal Care / Generic,766.12,0.00,Home Care
18/08/2017,Adults & Housing Department,Sevacare (UK) Ltd,Personal Care / Generic,880.64,0.00,Home Care
18/08/2017,Adults & Housing Department,Sevacare (UK) Ltd,Personal Care / Generic,837.71,0.00,Home Care
18/08/2017,Adults & Housing Department,Sevacare (UK) Ltd,Personal Care / Generic,945.03,0.00,Home Care
16/08/2017,Adults & Housing Department,Sevacare (UK) Ltd,Personal Care / Generic,783.30,0.00,Home Care
18/08/2017,Adults & Housing Department,Sevacare (UK) Ltd,Personal Care / Generic,"1,202.32",0.00,Home Care
18/08/2017,Adults & Housing Department,Sevacare (UK) Ltd,Personal Care / Generic,887.78,0.00,Home Care
18/08/2017,Adults & Housing Department,Sevacare (UK) Ltd,Personal Care / Generic,652.98,0.00,Home Care
18/08/2017,Adults & Housing Department,Sevacare (UK) Ltd,Personal Care / Generic,550.65,0.00,Home Care
18/08/2017,Adults & Housing Department,Sevacare (UK) Ltd,Personal Care / Generic,728.12,0.00,Home Care
18/08/2017,Adults & Housing Department,Sevacare (UK) Ltd,Personal Care / Generic,"2,777.40",0.00,Home Care
18/08/2017,Adults & Housing Department,Sevacare (UK) Ltd,Personal Care / Generic,"1,396.20",0.00,Home Care
18/08/2017,Adults & Housing Department,Sevacare (UK) Ltd,Personal Care / Generic,"1,721.97",0.00,Home Care
18/08/2017,Adults & Housing Department,Sevacare (UK) Ltd,Personal Care / Generic,"1,317.44",0.00,Home Care
18/08/2017,Adults & Housing Department,Sevacare (UK) Ltd,Personal Care / Generic,902.16,0.00,Home Care
18/08/2017,Adults & Housing Department,Sevacare (UK) Ltd,Personal Care / Generic,587.06,0.00,Home Care
18/08/2017,Adults & Housing Department,Sevacare (UK) Ltd,Personal Care / Generic,522.68,0.00,Home Care
18/08/2017,Adults & Housing Department,Sevacare (UK) Ltd,Personal Care / Generic,"1,700.77",0.00,Home Care
18/08/2017,Adults & Housing Department,Sevacare (UK) Ltd,Personal Care / Generic,"1,804.32",0.00,Home Care
18/08/2017,Adults & Housing Department,Sevacare (UK) Ltd,Personal Care / Generic,529.55,0.00,Home Care
18/08/2017,Adults & Housing Department,Sevacare (UK) Ltd,Personal Care / Generic,"1,800.74",0.00,Home Care
18/08/2017,Adults & Housing Department,Sevacare (UK) Ltd,Personal Care / Generic,591.61,0.00,Home Care
15/08/2017,Adults & Housing Department,UK TOP CARE LTD,Personal Care / Generic,"1,177.12",0.00,Home Care
11/08/2017,Adults & Housing Department,Universal Care Services (UK) Ltd,Personal Care / Generic,754.80,0.00,Home Care
11/08/2017,Adults & Housing Department,Universal Care Services (UK) Ltd,Personal Care / Generic,591.85,0.00,Home Care
11/08/2017,Adults & Housing Department,Universal Care Services (UK) Ltd,Personal Care / Generic,660.01,0.00,Home Care
11/08/2017,Adults & Housing Department,Universal Care Services (UK) Ltd,Personal Care / Generic,663.11,0.00,Home Care
11/08/2017,Adults & Housing Department,Universal Care Services (UK) Ltd,Personal Care / Generic,802.97,0.00,Home Care
11/08/2017,Adults & Housing Department,Universal Care Services (UK) Ltd,Personal Care / Generic,782.55,0.00,Home Care
11/08/2017,Adults & Housing Department,Universal Care Services (UK) Ltd,Personal Care / Generic,736.60,0.00,Home Care
11/08/2017,Adults & Housing Department,Universal Care Services (UK) Ltd,Personal Care / Generic,636.25,0.00,Home Care
11/08/2017,Adults & Housing Department,Universal Care Services (UK) Ltd,Personal Care / Generic,"1,215.01",0.00,Home Care
11/08/2017,Adults & Housing Department,Universal Care Services (UK) Ltd,Personal Care / Generic,"1,660.56",0.00,Home Care
11/08/2017,Adults & Housing Department,Universal Care Services (UK) Ltd,Personal Care / Generic,905.98,0.00,Home Care
11/08/2017,Adults & Housing Department,Universal Care Services (UK) Ltd,Personal Care / Generic,559.44,0.00,Home Care
11/08/2017,Adults & Housing Department,Universal Care Services (UK) Ltd,Personal Care / Generic,"1,255.85",0.00,Home Care
11/08/2017,Adults & Housing Department,Universal Care Services (UK) Ltd,Personal Care / Generic,"1,401.71",0.00,Home Care
11/08/2017,Adults & Housing Department,Universal Care Services (UK) Ltd,Personal Care / Generic,"1,389.28",0.00,Home Care
11/08/2017,Adults & Housing Department,Universal Care Services (UK) Ltd,Personal Care / Generic,919.75,0.00,Home Care
11/08/2017,Adults & Housing Department,Universal Care Services (UK) Ltd,Personal Care / Generic,507.05,0.00,Home Care
11/08/2017,Adults & Housing Department,Universal Care Services (UK) Ltd,Personal Care / Generic,804.08,0.00,Home Care
11/08/2017,Adults & Housing Department,Universal Care Services (UK) Ltd,Personal Care / Generic,614.50,0.00,Home Care
11/08/2017,Adults & Housing Department,Universal Care Services (UK) Ltd,Personal Care / Generic,815.85,0.00,Home Care
11/08/2017,Adults & Housing Department,Universal Care Services (UK) Ltd,Personal Care / Generic,752.14,0.00,Home Care
11/08/2017,Adults & Housing Department,Universal Care Services (UK) Ltd,Personal Care / Generic,794.09,0.00,Home Care
11/08/2017,Adults & Housing Department,Universal Care Services (UK) Ltd,Personal Care / Generic,844.50,0.00,Home Care
11/08/2017,Adults & Housing Department,Universal Care Services (UK) Ltd,Personal Care / Generic,832.72,0.00,Home Care
11/08/2017,Adults & Housing Department,Westminster Homecare Ltd ),Personal Care / Generic,638.78,0.00,Home Care
11/08/2017,Adults & Housing Department,Westminster Homecare Ltd ),Personal Care / Generic,859.95,0.00,Home Care
11/08/2017,Adults & Housing Department,Westminster Homecare Ltd ),Personal Care / Generic,"1,965.28",0.00,Home Care
11/08/2017,Adults & Housing Department,Westminster Homecare Ltd ),Personal Care / Generic,505.40,0.00,Home Care
11/08/2017,Adults & Housing Department,Westminster Homecare Ltd ),Personal Care / Generic,993.33,0.00,Home Care
11/08/2017,Adults & Housing Department,Westminster Homecare Ltd ),Personal Care / Generic,875.03,0.00,Home Care
11/08/2017,Adults & Housing Department,Westminster Homecare Ltd ),Personal Care / Generic,896.89,0.00,Home Care
11/08/2017,Adults & Housing Department,Westminster Homecare Ltd ),Personal Care / Generic,"1,591.51",0.00,Home Care
11/08/2017,Adults & Housing Department,Westminster Homecare Ltd ),Personal Care / Generic,"2,010.69",0.00,Home Care
11/08/2017,Adults & Housing Department,Westminster Homecare Ltd ),Personal Care / Generic,687.00,0.00,Home Care
11/08/2017,Adults & Housing Department,Westminster Homecare Ltd ),Personal Care / Generic,687.61,0.00,Home Care
11/08/2017,Adults & Housing Department,Westminster Homecare Ltd ),Personal Care / Generic,684.45,0.00,Home Care
11/08/2017,Adults & Housing Department,Westminster Homecare Ltd ),Personal Care / Generic,"2,165.36",0.00,Home Care
11/08/2017,Adults & Housing Department,Westminster Homecare Ltd ),Personal Care / Generic,797.14,0.00,Home Care
11/08/2017,Adults & Housing Department,Westminster Homecare Ltd ),Personal Care / Generic,"2,463.71",0.00,Home Care
11/08/2017,Adults & Housing Department,Westminster Homecare Ltd ),Personal Care / Generic,982.80,0.00,Home Care
11/08/2017,Adults & Housing Department,Westminster Homecare Ltd ),Personal Care / Generic,804.87,0.00,Home Care
11/08/2017,Adults & Housing Department,Westminster Homecare Ltd ),Personal Care / Generic,"1,765.53",0.00,Home Care
11/08/2017,Adults & Housing Department,Westminster Homecare Ltd ),Personal Care / Generic,684.45,0.00,Home Care
11/08/2017,Adults & Housing Department,Westminster Homecare Ltd ),Personal Care / Generic,"1,157.63",0.00,Home Care
11/08/2017,Adults & Housing Department,Westminster Homecare Ltd ),Personal Care / Generic,507.47,0.00,Home Care
11/08/2017,Adults & Housing Department,Westminster Homecare Ltd ),Personal Care / Generic,927.90,0.00,Home Care
11/08/2017,Adults & Housing Department,Westminster Homecare Ltd ),Personal Care / Generic,"1,382.53",0.00,Home Care
11/08/2017,Adults & Housing Department,Westminster Homecare Ltd ),Personal Care / Generic,"1,969.02",0.00,Home Care
11/08/2017,Adults & Housing Department,Westminster Homecare Ltd ),Personal Care / Generic,663.38,0.00,Home Care
11/08/2017,Adults & Housing Department,Westminster Homecare Ltd ),Personal Care / Generic,622.47,0.00,Home Care
11/08/2017,Adults & Housing Department,Westminster Homecare Ltd ),Personal Care / Generic,"2,337.48",0.00,Home Care
11/08/2017,Adults & Housing Department,Westminster Homecare Ltd ),Personal Care / Generic,"1,186.09",0.00,Home Care
11/08/2017,Adults & Housing Department,Westminster Homecare Ltd ),Personal Care / Generic,702.20,0.00,Home Care
11/08/2017,Adults & Housing Department,Westminster Homecare Ltd ),Personal Care / Generic,"1,347.83",0.00,Home Care
11/08/2017,Adults & Housing Department,Westminster Homecare Ltd ),Personal Care / Generic,782.69,0.00,Home Care
11/08/2017,Adults & Housing Department,Westminster Homecare Ltd ),Personal Care / Generic,"1,632.15",0.00,Home Care
11/08/2017,Adults & Housing Department,Westminster Homecare Ltd ),Personal Care / Generic,554.69,0.00,Home Care
11/08/2017,Adults & Housing Department,Westminster Homecare Ltd ),Personal Care / Generic,"1,621.58",0.00,Home Care
11/08/2017,Adults & Housing Department,Westminster Homecare Ltd ),Personal Care / Generic,624.78,0.00,Home Care
11/08/2017,Adults & Housing Department,Westminster Homecare Ltd ),Personal Care / Generic,595.92,0.00,Home Care
11/08/2017,Adults & Housing Department,Westminster Homecare Ltd ),Personal Care / Generic,543.89,0.00,Home Care
11/08/2017,Adults & Housing Department,Westminster Homecare Ltd ),Personal Care / Generic,540.64,0.00,Home Care
11/08/2017,Adults & Housing Department,Westminster Homecare Ltd ),Personal Care / Generic,781.04,0.00,Home Care
,Adults & Housing Department,Westminster Homecare Ltd ),Personal Care / Generic,660.82,0.00,Home Care
11/08/2017,Adults & Housing Department,Westminster Homecare Ltd ),Personal Care / Generic,"1,016.36",0.00,Home Care
11/08/2017,Adults & Housing Department,Westminster Homecare Ltd ),Personal Care / Generic,506.10,0.00,Home Care
11/08/2017,Adults & Housing Department,Westminster Homecare Ltd ),Personal Care / Generic,956.50,0.00,Home Care
11/08/2017,Adults & Housing Department,Westminster Homecare Ltd ),Personal Care / Generic,603.59,0.00,Home Care
11/08/2017,Adults & Housing Department,Westminster Homecare Ltd ),Personal Care / Generic,"1,358.35",0.00,Home Care
11/08/2017,Adults & Housing Department,Westminster Homecare Ltd ),Personal Care / Generic,"1,769.04",0.00,Home Care
11/08/2017,Adults & Housing Department,Westminster Homecare Ltd ),Personal Care / Generic,968.76,0.00,Home Care
11/08/2017,Adults & Housing Department,Westminster Homecare Ltd ),Personal Care / Generic,592.21,0.00,Home Care
11/08/2017,Adults & Housing Department,Westminster Homecare Ltd ),Personal Care / Generic,650.57,0.00,Home Care
11/08/2017,Adults & Housing Department,Westminster Homecare Ltd ),Personal Care / Generic,517.08,0.00,Home Care
09/08/2017,Adults & Housing Department,Westminster Homecare Ltd ),Personal Care / Generic,653.79,0.00,Home Care
18/08/2017,Adults & Housing Department,Westminster Homecare Ltd ),Personal Care / Generic,758.62,0.00,Home Care
11/08/2017,Adults & Housing Department,Westminster Homecare Ltd ),Personal Care / Generic,880.73,0.00,Home Care
11/08/2017,Adults & Housing Department,Westminster Homecare Ltd ),Personal Care / Generic,"1,779.48",0.00,Home Care
11/08/2017,Adults & Housing Department,Westminster Homecare Ltd ),Personal Care / Generic,869.24,0.00,Home Care
11/08/2017,Adults & Housing Department,Westminster Homecare Ltd ),Personal Care / Generic,"1,765.53",0.00,Home Care
11/08/2017,Adults & Housing Department,Westminster Homecare Ltd ),Personal Care / Generic,647.89,0.00,Home Care
25/08/2017,Adults & Housing Department,Community Dental Services,Dental Epidemiolgy C0-ordinator/Trainer,"4,750.00",950.00,Hospital & Community Providers
08/08/2017,Education & Childrens Services,Acorn Care & Education Ltd,Independent School Fees,"19,993.67",0.00,Independent School Fees
15/08/2017,Education & Childrens Services,Acorn Care & Education Ltd,Independent School Fees,"19,993.67",0.00,Independent School Fees
15/08/2017,Education & Childrens Services,Acorn Care & Education Ltd,Independent School Fees,"20,393.33",0.00,Independent School Fees
09/08/2017,Education & Childrens Services,Acorn Care & Education Ltd,Independent School Fees,"19,993.66",0.00,Independent School Fees
08/08/2017,Education & Childrens Services,Acorn Care & Education Ltd,Independent School Fees,"19,993.67",0.00,Independent School Fees
08/08/2017,Education & Childrens Services,Acorn Care & Education Ltd,Independent School Fees,"18,942.00",0.00,Independent School Fees
09/08/2017,Education & Childrens Services,Acorn Care & Education Ltd,Independent School Fees,"19,993.66",0.00,Independent School Fees
15/08/2017,Education & Childrens Services,Acorn Care & Education Ltd,Independent School Fees,"20,393.33",0.00,Independent School Fees
09/08/2017,Education & Childrens Services,Acorn Care & Education Ltd,Independent School Fees,"19,993.66",0.00,Independent School Fees
02/08/2017,Education & Childrens Services,ASD Midlands Ltd,Independent School Fees,"5,490.00",0.00,Independent School Fees
02/08/2017,Education & Childrens Services,ASD Midlands Ltd,Independent School Fees,"3,375.00",0.00,Independent School Fees
,Education & Childrens Services,Doncaster Deaf Trust,Independent School Fees,"1,387.01",0.00,Independent School Fees
25/08/2017,Education & Childrens Services,Nisai Virtual Academy Ltd,Independent School Fees,"3,016.66",0.00,Independent School Fees
22/08/2017,Education & Childrens Services,Os (Education) Ltd,Independent School Fees,933.00,0.00,Independent School Fees
29/08/2017,Education & Childrens Services,Senad Ltd,Independent School Fees,"76,271.30",0.00,Independent School Fees
29/08/2017,Education & Childrens Services,Senad Ltd,Independent School Fees,"42,707.67",0.00,Independent School Fees
29/08/2017,Education & Childrens Services,Senad Ltd,Independent School Fees,"29,215.00",0.00,Independent School Fees
29/08/2017,Education & Childrens Services,Senad Ltd,Independent School Fees,"29,215.00",0.00,Independent School Fees
29/08/2017,Education & Childrens Services,Sketchley Horizon Priory,Independent School Fees,"22,398.32",0.00,Independent School Fees
29/08/2017,Education & Childrens Services,Sketchley Horizon Priory,Independent School Fees,"22,398.32",0.00,Independent School Fees
,Education & Childrens Services,Sketchley Horizon Priory,Independent School Fees,"22,398.32",0.00,Independent School Fees
18/08/2017,Education & Childrens Services,Sketchley Horizon Priory,Independent School Fees,"1,178.53",0.00,Independent School Fees
,Education & Childrens Services,Sketchley Horizon Priory,Independent School Fees,"26,293.68",0.00,Independent School Fees
29/08/2017,Education & Childrens Services,Wilds Lodge School,Independent School Fees,"17,500.00",0.00,Independent School Fees
29/08/2017,Education & Childrens Services,Wilds Lodge School,Independent School Fees,"18,333.33",0.00,Independent School Fees
29/08/2017,City Developments and Neighbourhood,Fitness in Schools,Western - Ward Consultative Committees,500.00,0.00,Independent Units Within The Council
29/08/2017,City Developments and Neighbourhood,Fitness in Schools,Western - Ward Consultative Committees,500.00,0.00,Independent Units Within The Council
29/08/2017,City Developments and Neighbourhood,Fitness in Schools,Western - Ward Consultative Committees,500.00,0.00,Independent Units Within The Council
29/08/2017,City Developments and Neighbourhood,Fitness in Schools,Western - Ward Consultative Committees,500.00,0.00,Independent Units Within The Council
15/08/2017,City Developments and Neighbourhood,Golden Mile Cultural & Heritage Project,Belgrave - Ward Consultative Committees,500.00,0.00,Independent Units Within The Council
29/08/2017,City Developments and Neighbourhood,Northfields Play Association,Troon - Ward Consultative Committees,500.00,0.00,Independent Units Within The Council
29/08/2017,City Developments and Neighbourhood,Park Lodge Project,Castle - Ward Consultative Committees,500.00,0.00,Independent Units Within The Council
,City Developments and Neighbourhood,The Real Junk Food Project,AREA 2 Humberstone,967.00,0.00,Independent Units Within The Council
15/08/2017,Education & Childrens Services,Ace Cleaning Company (Leicester) Ltd,Internal Contract Cleaning Services,"2,649.57",529.91,Internal Contract Building Cleaning
08/08/2017,City Developments and Neighbourhood,Ace Cleaning Company (Leicester) Ltd,Internal Contract Cleaning Services,945.00,189.00,Internal Contract Building Cleaning
,City Developments and Neighbourhood,Leicestershire County Council,Internal Contract Cleaning Services,746.58,149.32,Internal Contract Building Cleaning
,City Developments and Neighbourhood,Leicestershire County Council,Internal Contract Cleaning Services,904.14,180.83,Internal Contract Building Cleaning
,Education & Childrens Services,KCOM Group PLC,Internet Charges,768.91,153.78,Internet Charges
11/08/2017,Education & Childrens Services,KCOM Group PLC,Internet Charges,"15,429.41","3,085.88",Internet Charges
11/08/2017,Education & Childrens Services,KCOM Group PLC,Internet Charges,"16,268.56","3,253.71",Internet Charges
11/08/2017,Education & Childrens Services,KCOM Group PLC,Internet Charges,"8,118.58","1,623.72",Internet Charges
11/08/2017,Education & Childrens Services,KCOM Group PLC,Internet Charges,"3,612.69",722.54,Internet Charges
11/08/2017,Education & Childrens Services,KCOM Group PLC,Internet Charges,"2,422.80",484.56,Internet Charges
11/08/2017,Education & Childrens Services,KCOM Group PLC,Internet Charges,"7,827.49","1,565.50",Internet Charges
11/08/2017,Education & Childrens Services,KCOM Group PLC,Internet Charges,"11,526.67","2,305.33",Internet Charges
11/08/2017,Education & Childrens Services,KCOM Group PLC,Internet Charges,"13,269.33","2,653.87",Internet Charges
18/08/2017,City Developments and Neighbourhood,Triscan Systems Ltd,Internet Charges,"2,250.00",450.00,Internet Charges
15/08/2017,Adults & Housing Department,Unecom IT Ltd,Internet Charges,"6,000.00","1,200.00",Internet Charges
29/08/2017,Education & Childrens Services,ACS Business Supplies Ltd,IT Consumables,549.90,109.98,IT Consumables
,City Developments and Neighbourhood,The Desk Top Publishing Group,IT Consumables,515.79,103.16,IT Consumables
,City Developments and Neighbourhood,The Desk Top Publishing Group,IT Consumables,515.79,103.16,IT Consumables
16/08/2017,,Babington Community  College (Academy),IT Hardware Capital,"72,201.00",0.00,IT Hardware
,City Developments and Neighbourhood,De Lage Landen Leasing Ltd,IT Hardware,"2,058.37",411.67,IT Hardware
,Education & Childrens Services,Insight Direct (Uk) Ltd,IT Hardware,750.00,150.00,IT Hardware
,Education & Childrens Services,Insight Direct (Uk) Ltd,IT Hardware,"1,125.00",225.00,IT Hardware
16/08/2017,,Rushey Mead Academy,IT Hardware Capital,"61,759.00",0.00,IT Hardware
11/08/2017,Corporate Resources & Support,Dotmailer,IT Software,"1,109.00",221.80,IT Software
25/08/2017,,Headland,IT Software,"6,700.00","1,340.00",IT Software
23/08/2017,,Northgate Public Services (uk) Ltd,IT Software,"1,990.12",398.02,IT Software
25/08/2017,,Northgate Public Services (uk) Ltd,IT Software,"23,113.00","4,622.60",IT Software
25/08/2017,,Northgate Public Services (uk) Ltd,IT Software,"60,824.00","12,164.80",IT Software
,Corporate Resources & Support,Phoenix Software,IT Software,569.50,113.90,IT Software
,Corporate Resources & Support,Phoenix Software,IT Software,"1,587.32",317.46,IT Software
11/08/2017,Corporate Resources & Support,Softcat Ltd,IT Software,618.22,123.64,IT Software
15/08/2017,Adults & Housing Department,Accredo Support & Development Ltd FA SL&FSB,DAY SUPPORT,"5,601.96",0.00,LD Supported Living
15/08/2017,Adults & Housing Department,Accredo Support & Development Ltd FA SL&FSB,DAY SUPPORT,"6,224.40",0.00,LD Supported Living
15/08/2017,Adults & Housing Department,Accredo Support & Development Ltd FA SL&FSB,DAY SUPPORT,"6,224.40",0.00,LD Supported Living
15/08/2017,Adults & Housing Department,Accredo Support & Development Ltd FA SL&FSB,DAY SUPPORT,"4,772.04",0.00,LD Supported Living
15/08/2017,Adults & Housing Department,Accredo Support & Development Ltd FA SL&FSB,DAY SUPPORT,"6,224.42",0.00,LD Supported Living
,Adults & Housing Department,Accredo Support & Development Ltd FA SL&FSB,DAY SUPPORT,"1,244.88",0.00,LD Supported Living
15/08/2017,Adults & Housing Department,Accredo Support & Development Ltd FA SL&FSB,DAY SUPPORT,"12,448.80",0.00,LD Supported Living
15/08/2017,Adults & Housing Department,Accredo Support & Development Ltd FA SL&FSB,DAY SUPPORT,"2,667.60",0.00,LD Supported Living
15/08/2017,Adults & Housing Department,Accredo Support & Development Ltd FA SL&FSB,DAY SUPPORT,"4,268.15",0.00,LD Supported Living
15/08/2017,Adults & Housing Department,Accredo Support & Development Ltd FA SL&FSB,DAY SUPPORT,"5,394.48",0.00,LD Supported Living
,Adults & Housing Department,Accredo Support & Development Ltd FA SL&FSB,DAY SUPPORT,"2,074.80",0.00,LD Supported Living
,Adults & Housing Department,Accredo Support & Development Ltd FA SL&FSB,DAY SUPPORT,"12,448.80",0.00,LD Supported Living
,Adults & Housing Department,Accredo Support & Development Ltd FA SL&FSB,WAKING NIGHT SUPPORT,"3,734.64",0.00,LD Supported Living
15/08/2017,Adults & Housing Department,Accredo Support & Development Ltd FA SL&FSB,SLEEP-IN SUPPORT,"1,328.04",0.00,LD Supported Living
15/08/2017,Adults & Housing Department,Accredo Support & Development Ltd FA SL&FSB,SLEEP-IN SUPPORT,664.02,0.00,LD Supported Living
,Adults & Housing Department,Accredo Support & Development Ltd FA SL&FSB,DAY SUPPORT,"6,224.42",0.00,LD Supported Living
,Adults & Housing Department,Accredo Support & Development Ltd FA SL&FSB,DAY SUPPORT,"4,772.04",0.00,LD Supported Living
,Adults & Housing Department,Accredo Support & Development Ltd FA SL&FSB,SLEEP-IN SUPPORT,"1,067.07",0.00,LD Supported Living
,Adults & Housing Department,Accredo Support & Development Ltd FA SL&FSB,DAY SUPPORT,829.92,0.00,LD Supported Living
,Adults & Housing Department,Accredo Support & Development Ltd FA SL&FSB,SLEEP-IN SUPPORT,664.02,0.00,LD Supported Living
,Adults & Housing Department,Accredo Support & Development Ltd FA SL&FSB,SLEEP-IN SUPPORT,"1,328.04",0.00,LD Supported Living
15/08/2017,Adults & Housing Department,Accredo Support & Development Ltd FA SL&FSB,SLEEP-IN SUPPORT,664.02,0.00,LD Supported Living
15/08/2017,Adults & Housing Department,Accredo Support & Development Ltd FA SL&FSB,SLEEP-IN SUPPORT,"1,067.07",0.00,LD Supported Living
,Adults & Housing Department,Accredo Support & Development Ltd FA SL&FSB,DAY SUPPORT,"4,208.90",0.00,LD Supported Living
,Adults & Housing Department,Accredo Support & Development Ltd FA SL&FSB,DAY SUPPORT,"5,601.96",0.00,LD Supported Living
,Adults & Housing Department,Accredo Support & Development Ltd FA SL&FSB,DAY SUPPORT,"6,224.40",0.00,LD Supported Living
,Adults & Housing Department,Accredo Support & Development Ltd FA SL&FSB,DAY SUPPORT,"7,291.44",0.00,LD Supported Living
,Adults & Housing Department,Accredo Support & Development Ltd FA SL&FSB,DAY SUPPORT,"2,059.98",0.00,LD Supported Living
,Adults & Housing Department,Accredo Support & Development Ltd FA SL&FSB,WAKING NIGHT SUPPORT,"1,867.32",0.00,LD Supported Living
,Adults & Housing Department,Accredo Support & Development Ltd FA SL&FSB,DAY SUPPORT,"4,031.05",0.00,LD Supported Living
15/08/2017,Adults & Housing Department,Accredo Support & Development Ltd FA SL&FSB,SLEEP-IN SUPPORT,"1,328.04",0.00,LD Supported Living
15/08/2017,Adults & Housing Department,Accredo Support & Development Ltd FA SL&FSB,DAY SUPPORT,"1,244.88",0.00,LD Supported Living
15/08/2017,Adults & Housing Department,Accredo Support & Development Ltd FA SL&FSB,DAY SUPPORT,829.92,0.00,LD Supported Living
15/08/2017,Adults & Housing Department,Accredo Support & Development Ltd FA SL&FSB,WAKING NIGHT SUPPORT,933.66,0.00,LD Supported Living
15/08/2017,Adults & Housing Department,Accredo Support & Development Ltd FA SL&FSB,SLEEP-IN SUPPORT,"1,328.04",0.00,LD Supported Living
15/08/2017,Adults & Housing Department,Accredo Support & Development Ltd FA SL&FSB,WAKING NIGHT SUPPORT,"1,867.32",0.00,LD Supported Living
,Adults & Housing Department,Accredo Support & Development Ltd FA SL&FSB,WAKING NIGHT SUPPORT,"3,734.64",0.00,LD Supported Living
,Adults & Housing Department,Accredo Support & Development Ltd FA SL&FSB,DAY SUPPORT,"4,268.15",0.00,LD Supported Living
,Adults & Housing Department,Accredo Support & Development Ltd FA SL&FSB,DAY SUPPORT,"2,178.54",0.00,LD Supported Living
15/08/2017,Adults & Housing Department,Accredo Support & Development Ltd FA SL&FSB,WAKING NIGHT SUPPORT,"3,734.64",0.00,LD Supported Living
15/08/2017,Adults & Housing Department,Accredo Support & Development Ltd FA SL&FSB,DAY SUPPORT,"2,059.98",0.00,LD Supported Living
15/08/2017,Adults & Housing Department,Accredo Support & Development Ltd FA SL&FSB,DAY SUPPORT,"4,031.05",0.00,LD Supported Living
15/08/2017,Adults & Housing Department,Accredo Support & Development Ltd FA SL&FSB,SLEEP-IN SUPPORT,664.02,0.00,LD Supported Living
,Adults & Housing Department,Accredo Support & Development Ltd FA SL&FSB,DAY SUPPORT,"3,912.49",0.00,LD Supported Living
15/08/2017,Adults & Housing Department,Accredo Support & Development Ltd FA SL&FSB,DAY SUPPORT,"2,074.80",0.00,LD Supported Living
15/08/2017,Adults & Housing Department,Accredo Support & Development Ltd FA SL&FSB,DAY SUPPORT,"7,291.44",0.00,LD Supported Living
15/08/2017,Adults & Housing Department,Accredo Support & Development Ltd FA SL&FSB,DAY SUPPORT,"4,208.90",0.00,LD Supported Living
,Adults & Housing Department,Accredo Support & Development Ltd FA SL&FSB,WAKING NIGHT SUPPORT,"1,867.32",0.00,LD Supported Living
,Adults & Housing Department,Accredo Support & Development Ltd FA SL&FSB,DAY SUPPORT,"2,667.60",0.00,LD Supported Living
,Adults & Housing Department,Accredo Support & Development Ltd FA SL&FSB,DAY SUPPORT,"5,394.48",0.00,LD Supported Living
15/08/2017,Adults & Housing Department,Accredo Support & Development Ltd FA SL&FSB,WAKING NIGHT SUPPORT,"3,734.64",0.00,LD Supported Living
15/08/2017,Adults & Housing Department,Accredo Support & Development Ltd FA SL&FSB,WAKING NIGHT SUPPORT,"1,867.32",0.00,LD Supported Living
15/08/2017,Adults & Housing Department,Accredo Support & Development Ltd FA SL&FSB,DAY SUPPORT,"2,178.54",0.00,LD Supported Living
15/08/2017,Adults & Housing Department,Accredo Support & Development Ltd FA SL&FSB,DAY SUPPORT,"3,912.49",0.00,LD Supported Living
,Adults & Housing Department,Accredo Support & Development Ltd FA SL&FSB,SLEEP-IN SUPPORT,664.02,0.00,LD Supported Living
,Adults & Housing Department,Accredo Support & Development Ltd FA SL&FSB,SLEEP-IN SUPPORT,"1,328.04",0.00,LD Supported Living
,Adults & Housing Department,Accredo Support & Development Ltd FA SL&FSB,DAY SUPPORT,"6,224.40",0.00,LD Supported Living
,Adults & Housing Department,Accredo Support & Development Ltd FA SL&FSB,SLEEP-IN SUPPORT,664.02,0.00,LD Supported Living
15/08/2017,Adults & Housing Department,Affinity Trust FA SL&FSB,WAKING NIGHT SUPPORT,"3,742.20",0.00,LD Supported Living
15/08/2017,Adults & Housing Department,Affinity Trust FA SL&FSB,DAY SUPPORT,"2,435.40",0.00,LD Supported Living
15/08/2017,Adults & Housing Department,Affinity Trust FA SL&FSB,DAY SUPPORT,712.80,0.00,LD Supported Living
15/08/2017,Adults & Housing Department,Affinity Trust FA SL&FSB,SLEEP-IN SUPPORT,687.96,0.00,LD Supported Living
15/08/2017,Adults & Housing Department,Affinity Trust FA SL&FSB,DAY SUPPORT,"6,237.00",0.00,LD Supported Living
15/08/2017,Adults & Housing Department,Affinity Trust FA SL&FSB,DAY SUPPORT,"2,494.80",0.00,LD Supported Living
15/08/2017,Adults & Housing Department,Affinity Trust FA SL&FSB,WAKING NIGHT SUPPORT,"1,247.40",0.00,LD Supported Living
15/08/2017,Adults & Housing Department,Affinity Trust FA SL&FSB,DAY SUPPORT,"3,800.41",0.00,LD Supported Living
15/08/2017,Adults & Housing Department,Affinity Trust FA SL&FSB,DAY SUPPORT,"9,355.50",0.00,LD Supported Living
15/08/2017,Adults & Housing Department,Affinity Trust FA SL&FSB,DAY SUPPORT,"2,619.54",0.00,LD Supported Living
15/08/2017,Adults & Housing Department,Affinity Trust FA SL&FSB,DAY SUPPORT,504.90,0.00,LD Supported Living
15/08/2017,Adults & Housing Department,Affinity Trust FA SL&FSB,DAY SUPPORT,"2,376.00",0.00,LD Supported Living
15/08/2017,Adults & Housing Department,Affinity Trust FA SL&FSB,SLEEP-IN SUPPORT,687.96,0.00,LD Supported Living
15/08/2017,Adults & Housing Department,Affinity Trust FA SL&FSB,DAY SUPPORT,"1,039.50",0.00,LD Supported Living
15/08/2017,Adults & Housing Department,Affinity Trust FA SL&FSB,DAY SUPPORT,"12,474.00",0.00,LD Supported Living
15/08/2017,Adults & Housing Department,Affinity Trust FA SL&FSB,DAY SUPPORT,"3,125.63",0.00,LD Supported Living
15/08/2017,Adults & Housing Department,Affinity Trust FA SL&FSB,DAY SUPPORT,"1,930.50",0.00,LD Supported Living
15/08/2017,Adults & Housing Department,Affinity Trust FA SL&FSB,DAY SUPPORT,"1,188.00",0.00,LD Supported Living
15/08/2017,Adults & Housing Department,Affinity Trust FA SL&FSB,DAY SUPPORT,"1,277.10",0.00,LD Supported Living
15/08/2017,Adults & Housing Department,Affinity Trust FA SL&FSB,DAY SUPPORT,"6,237.00",0.00,LD Supported Living
15/08/2017,Adults & Housing Department,Affinity Trust FA SL&FSB,DAY SUPPORT,623.70,0.00,LD Supported Living
16/08/2017,Adults & Housing Department,Community Integrated Care FA SL&FSB,WAKING NIGHT SUPPORT,"1,287.00",0.00,LD Supported Living
16/08/2017,Adults & Housing Department,Community Integrated Care FA SL&FSB,DAY SUPPORT,"6,006.00",0.00,LD Supported Living
16/08/2017,Adults & Housing Department,Community Integrated Care FA SL&FSB,WAKING NIGHT SUPPORT,600.60,0.00,LD Supported Living
16/08/2017,Adults & Housing Department,Community Integrated Care FA SL&FSB,DAY SUPPORT,"4,633.19",0.00,LD Supported Living
16/08/2017,Adults & Housing Department,Community Integrated Care FA SL&FSB,DAY SUPPORT,"5,405.40",0.00,LD Supported Living
16/08/2017,Adults & Housing Department,Community Integrated Care FA SL&FSB,DAY SUPPORT,"2,287.89",0.00,LD Supported Living
16/08/2017,Adults & Housing Department,Community Integrated Care FA SL&FSB,DAY SUPPORT,"3,603.60",0.00,LD Supported Living
16/08/2017,Adults & Housing Department,Community Integrated Care FA SL&FSB,DAY SUPPORT,800.80,0.00,LD Supported Living
16/08/2017,Adults & Housing Department,Community Integrated Care FA SL&FSB,DAY SUPPORT,"1,372.80",0.00,LD Supported Living
16/08/2017,Adults & Housing Department,Community Integrated Care FA SL&FSB,DAY SUPPORT,"1,515.79",0.00,LD Supported Living
